Workbook

Sheet 1 ExpenseReport
AA1: DOCUMENT #
F2: EXPENSE REPORT/ACCOUNTABLE ADVANCE SETTLEMENT | Q2: ACCOUNTING INFORMATION
G3: TO BE COMPLETED BY CLAIMANT | Q3: TO BE COMPLETED BY BUSINESS OFFICER
A4: TO BE COMPLETED BY CLAIMANT
Q5: Purpose: Select claim type. Enter code, below, to complete G/L account. If G/L account is not listed, enter appropriate G/L account on "OTHER" line. | Y5: 0 | Z5: EMPLOYEE FIELD TRIP
A6: =IF(A8="","","STATEMENT DATE:") ->  | C6: =IF(AND(A8<>"",statementDate<>"0"),statementDate,"") ->  | G6: NOTE: | Y6: 1 | Z6: EMPLOYEE CONFERENCE
A7: =IF(A8<>"","REFERENCE (credit card)#:","") ->  | C7: =IF(A8="amex payment",AMEXaccount,IF(A8="visa payment",VISAaccount,IF(A8="",""))) ->  | G7: 1. | H7: For expense reimbursements in a currency other than CAD, DO NOT convert expenses to CAD value. | Y7: 2 | Z7: STUDENT FIELD TRIP
A8: =IF(reimbt="","",IF(reimbt="AMEX","AMEX PAYMENT",IF(reimbt="VISA","VISA PAYMENT",IF(reimbt<>"AMEX","")))) ->  | C8: =IF(reimbt="","",IF(reimbt="dd","DIRECT DEPOSIT",IF(reimbt="chq","REIMBURSE BY CHEQUE",IF(reimbt<>"","")))) ->  | Y8: 3 | Z8: STUDENT CONFERENCE
A9: =IF(OR(A8="AMEX PAYMENT",A8="VISA PAYMENT"),"*VENDOR#","") ->  | B9: =IF(A8="amex payment",103050,IF(A8="visa payment",131703,IF(A8="",""))) ->  | C9: PERIOD OF EXPENDITURES: | H9: Indicate reimbursement currency: | Y9: 4 | Z9: VISITOR
A10: =IF(C8="direct deposit","PERSONNEL#:","") ->  | B10: =IF(C8="DIRECT DEPOSIT",empl_no,"") ->  | C10: =IF(time_period=" ","",time_period) -> 
A11: LAST NAME: | C11: FIRST NAME: | G11: 2. | H11: ORIGINAL RECEIPTS ARE REQUIRED (INCL. DETAILED BILLS, BOARDING PASS)
A12: ='3 Receipt itemization'!E2 -> 0 | C12: ='3 Receipt itemization'!E3 -> 0
A13: ADDRESS: | I13: EXPENSE CATEGORIES | R13: GENERAL LEDGER
A14: =IF(reimbt="CHQ",'3 Receipt itemization'!G12,"") -> 0 | H14: Summary of non-refundable items | X14: Tax Code | Z14: Cost Centre | AA14: Internal or Order | AB14: Fund Centre | AD14: Commitment Item
L15: # of KM (round trip) | N15: AMOUNT | Q15: G/L ACCOUNT NUMBER | AC15: Fund | AG15: r | AH15: print pg1 | AI15: yes
A16: =IF(reimbt="dd","N/A - DIRECT DEPOSIT TO BANK",IF(reimbt="amex","AMEX, PO Box 2000 West Hill, ON M1E 5H4", IF(reimbt="visa","Scotiabank Commercial Card Payments, PO Box 8828, Postal Stn A, Toronto, ON M5W 1P8",IF(reimbt="chq","")))) -> N/A - DIRECT DEPOSIT TO BANK | H16: AIRFARE: Attach proof of payment & proof of air travel (*) | I16: ECONOMY | J16: Travel within Canada | L16: =atemi_km1 -> 0 | N16: =airfare1 -> 0 | Q16: 8 | R16: 4 | T16: 0 | U16: 1 | V16: 0 | X16: ER | Y16: ='categories and subtotals'!AI5 ->  | AG16: s | AH16: print pg2 | AI16: =IF('2 Missing Receipts Form'!D21>0,"yes","no") -> no
J17: Travel to USA from Ontario | L17: =atemi_km2 -> 0 | N17: =airfare2 -> 0 | Q17: 8 | R17: 4 | T17: 0 | U17: 1 | V17: 0 | X17: EE | Y17: ='categories and subtotals'!AI6 ->  | AG17: t | AH17: print p3 | AI17: yes
A18: Purpose and Relevance to University Business: | J18: All other Airfare | L18: =atemi_km3 -> 0 | N18: =airfare3 -> 0 | Q18: 8 | R18: 4 | T18: 0 | U18: 1 | V18: 0 | X18: E0 | Y18: ='categories and subtotals'!AI7 ->  | AG18: u | AH18: print cat n subttl | AI18: yes
I19: ABOVE-ECONOMY | J19: Travel within Canada | L19: =atemi_km4 -> 0 | N19: =airfare4 -> 0 | Q19: 8 | R19: 4 | T19: 0 | U19: 1 | V19: 0 | X19: ER | Y19: ='categories and subtotals'!AI8 -> 
J20: Travel to USA from Ontario | L20: =atemi_km5 -> 0 | N20: =airfare5 -> 0 | Q20: 8 | R20: 4 | T20: 0 | U20: 1 | V20: 0 | X20: EE | Y20: ='categories and subtotals'!AI9 -> 
J21: All other Airfare | L21: =atemi_km6 -> 0 | N21: =airfare6 -> 0 | Q21: 8 | R21: 4 | T21: 0 | U21: 1 | V21: 0 | X21: E0 | Y21: ='categories and subtotals'!AI10 -> 
A22: =IF(location_desc=" ","",location_desc) ->  | H22: ACCOMMODATION: | I22: ON (13% HST) | N22: =accom1 -> 0 | Q22: 8 | R22: 4 | T22: 0 | U22: 2 | V22: 0 | X22: ER | Y22: ='categories and subtotals'!AI11 ->  | AG22: v | AH22: print pg4 | AI22: =IF(ttlperdiem>0,"yes","no") -> no
I23: PEI, NS, NF, NB (15%HST) | N23: =accom2 -> 0 | Q23: 8 | R23: 4 | T23: 0 | U23: 2 | V23: 0 | X23: EN | Y23: ='categories and subtotals'!AI12 ->  | AG23: w | AH23: print pg5 | AI23: =IF(KMclaimed>0,"yes","no") -> no
A24: DEPARTMENTAL CONTACT & DEPARTMENT (incl. address): | I24: All other provinces / territories | N24: =accom4 -> 0 | Q24: 8 | R24: 4 | T24: 0 | U24: 2 | V24: 0 | X24: EE | Y24: ='categories and subtotals'!AI13 -> 
A25: =contact -> Sangeeta Panjwani | I25: USA / International | N25: =accom5 -> 0 | Q25: 8 | R25: 4 | T25: 0 | U25: 2 | V25: 0 | X25: E0 | Y25: ='categories and subtotals'!AI14 -> 
A26: =division -> Cell and Systems Biology | H26: ALLOWANCES: | J26: PER DIEM: in Canada | N26: =IF(diemCDNorUS,,ttlperdiem) -> 0 | Q26: 8 | R26: 4 | T26: 0 | U26: 3 | V26: 0 | X26: EA
J27: PER DIEM: USA/International | N27: =IF(diemCDNorUS,ttlperdiem) -> FALSE | Q27: 8 | R27: 4 | T27: 0 | U27: 3 | V27: 0 | X27: E0
A28: =IF(pick_up<>"NO","CALL FOR PICK UP"," ") ->  | H28: =KM -> 0 | J28: KMS X 0.57/km | N28: =KMclaimed -> 0 | Q28: 8 | R28: 4 | T28: 0 | U28: 4 | V28: 0 | X28: EA
A29: TELEPHONE: | C29: FAX: | H29: RAIL/BUS: | I29: WITHIN CANADA | N29: =rail1 -> 0 | Q29: 8 | R29: 4 | T29: 0 | U29: 5 | V29: 0 | X29: ER | Y29: ='categories and subtotals'!AI15 -> 
A30: =contact_phone -> 416-946-8171 | I30: OUTSIDE CANADA | N30: =rail2 -> 0 | Q30: 8 | R30: 4 | T30: 0 | U30: 5 | V30: 0 | X30: E0 | Y30: ='categories and subtotals'!AI16 -> 
A31: DATE PREPARED: | H31: PUBLIC TRANSIT: | I31: WITHIN or OUTSIDE CANADA | N31: =transit -> 0 | Q31: 8 | R31: 4 | T31: 0 | U31: 5 | V31: 5 | X31: E0 | Y31: ='categories and subtotals'!AI17 -> 
A32: =TODAY() -> 2024-08-13 | H32: CAR RENTAL: Attach detailed receipt & contract (*) | I32: ON (13% HST) | N32: =carrental1 -> 0 | Q32: 8 | R32: 4 | T32: 0 | U32: 6 | V32: 0 | X32: ER | Y32: ='categories and subtotals'!AI18 -> 
I33: PEI, NS, NF, NB (15%HST) | N33: =carrental2 -> 0 | Q33: 8 | R33: 4 | T33: 0 | U33: 6 | V33: 0 | X33: EN | Y33: ='categories and subtotals'!AI19 -> 
I34: All other provinces / territories | N34: =carrental4 -> 0 | Q34: 8 | R34: 4 | T34: 0 | U34: 6 | V34: 0 | X34: EE | Y34: ='categories and subtotals'!AI20 -> 
A35: CLAIMANT DECLARATION: I certify that I have incurred the expenses claimed, they are in compliance with University policies & procedures, all sponsor terms and conditions (if applicable), & have not been claimed through other sources. | I35: USA / International | N35: =carrental5 -> 0 | Q35: 8 | R35: 4 | T35: 0 | U35: 6 | V35: 0 | X35: E0 | Y35: ='categories and subtotals'!AI21 -> 
H36: MEALS: Attach detailed itemized receipts (*) | I36: ON (13% HST) | N36: =meals1 -> 0 | Q36: 8 | R36: 4 | T36: 0 | U36: 7 | V36: 0 | X36: ER | Y36: ='categories and subtotals'!AI23 -> 
I37: PEI, NS, NF, NB (15%HST) | N37: =meals2 -> 0 | Q37: 8 | R37: 4 | T37: 0 | U37: 7 | V37: 0 | X37: EN | Y37: ='categories and subtotals'!AI24 -> 
I38: All other provinces / territories | N38: =meals4 -> 0 | Q38: 8 | R38: 4 | T38: 0 | U38: 7 | V38: 0 | X38: EE | Y38: ='categories and subtotals'!AI25 -> 
I39: USA / International | N39: =meals5 -> 0 | Q39: 8 | R39: 4 | T39: 0 | U39: 7 | V39: 0 | X39: E0 | Y39: ='categories and subtotals'!AI26 -> 
H40: TAXI: | I40: ON (13% HST) | N40: =taxi1 -> 0 | Q40: 845000 | X40: ER | Y40: ='categories and subtotals'!AI27 -> 
I41: PEI, NS, NF, NB (15%HST) | N41: =taxi2 -> 0 | Q41: 845000 | X41: EN | Y41: ='categories and subtotals'!AI28 -> 
A42: Signature of Claimant | I42: All other provinces / territories | N42: =taxi4 -> 0 | Q42: 845000 | X42: EE | Y42: ='categories and subtotals'!AI29 -> 
A43: =IF(firstname="","",CONCATENATE(firstname," ",surname)) ->  | D43: =IF(title = " ","",title) ->  | I43: USA / International | N43: =taxi5 -> 0 | Q43: 845000 | X43: E0 | Y43: ='categories and subtotals'!AI30 -> 
H44: OTHER COSTS: | K44: HOSPITALITY / Meals in Toronto | N44: =hospitality -> 0 | Q44: =IF(N44>0,'categories and subtotals'!B22,"") ->  | X44: =IF(N44>0,'categories and subtotals'!G22,"") ->  | Y44: ='categories and subtotals'!AI22 -> 
A45: Name | D45: Title | H45: ='categories and subtotals'!AJ31 -> 0 | K45: Conference | N45: =other1+other2 -> 0 | Q45: =IF(N45>0,'categories and subtotals'!B31,"") ->  | X45: =IF(N45>0,'categories and subtotals'!G31,"") -> 
K46: =IF(N46>0,'categories and subtotals'!A33,"") ->  | N46: =other3 -> 0 | Q46: =IF(N46>0,'categories and subtotals'!B33,"") ->  | X46: =IF(N46>0,'categories and subtotals'!G33,"") ->  | Y46: ='categories and subtotals'!AI33 -> 
A47: AUTHORIZED APPROVAL Declaration: I certify the expenses claimed were reasonable & required for University business & (if applicable) are relevant to the research being funded. | K47: =IF(N47>0,'categories and subtotals'!A34,"") ->  | N47: =other4 -> 0 | Q47: =IF(N47>0,'categories and subtotals'!B34,"") ->  | X47: =IF(N47>0,'categories and subtotals'!G34,"") ->  | Y47: ='categories and subtotals'!AI34 -> 
K48: =IF(N48>0,'categories and subtotals'!A35,"") ->  | N48: =other5 -> 0 | Q48: =IF(N48>0,'categories and subtotals'!B35,"") ->  | X48: =IF(N48>0,'categories and subtotals'!G35,"") ->  | Y48: ='categories and subtotals'!AI35 -> 
K49: =IF(N49>0,'categories and subtotals'!A36,"") ->  | N49: =other6 -> 0 | Q49: =IF(N49>0,'categories and subtotals'!B36,"") ->  | X49: =IF(N49>0,'categories and subtotals'!G36,"") ->  | Y49: ='categories and subtotals'!AI36 -> 
K50: =IF(N50>0,'categories and subtotals'!A37,"") ->  | N50: =other7 -> 0 | Q50: =IF(N50>0,'categories and subtotals'!B37,"") ->  | X50: =IF(N50>0,'categories and subtotals'!G37,"") ->  | Y50: ='categories and subtotals'!AI37 -> 
A51: Signature of Approver | K51: =IF(N51>0,'categories and subtotals'!A38,"") ->  | N51: =other8 -> 0 | Q51: =IF(N51>0,'categories and subtotals'!B38,"") ->  | X51: =IF(N51>0,'categories and subtotals'!G38,"") ->  | Y51: ='categories and subtotals'!AI38 -> 
A52: =approver -> 0 | D52: =approver_title -> 0 | K52: =IF(N52>0,'categories and subtotals'!A39,"") ->  | N52: =other9 -> 0 | Q52: =IF(N52>0,'categories and subtotals'!B39,"") ->  | X52: =IF(N52>0,'categories and subtotals'!G39,"") ->  | Y52: ='categories and subtotals'!AI39 -> 
K53: =IF(N53>0,'categories and subtotals'!A40,"") ->  | N53: =other10 -> 0 | Q53: =IF(N53>0,'categories and subtotals'!B40,"") ->  | X53: =IF(N53>0,'categories and subtotals'!G40,"") ->  | Y53: ='categories and subtotals'!AI40 -> 
A54: Name | D54: Title | K54: =IF(N54>0,'categories and subtotals'!A41,"") ->  | N54: =other11 -> 0 | Q54: =IF(N54>0,'categories and subtotals'!B41,"") ->  | X54: =IF(N54>0,'categories and subtotals'!G41,"") ->  | Y54: ='categories and subtotals'!AI41 -> 
A55: For AA Settlements: Financial Services (original copy) Originating department (photocopy) | K55: =IF(N55>0,'categories and subtotals'!A42,"") ->  | N55: =other12 -> 0 | Q55: =IF(N55>0,'categories and subtotals'!B42,"") ->  | X55: =IF(N55>0,'categories and subtotals'!G42,"") ->  | Y55: ='categories and subtotals'!AI42 -> 
K57: TOTAL EXPENSES | N57: =SUM(N16:N55) -> 0
I58: (LESS ACCOUNTABLE ADVANCE) | Z58: (*) Refer to expense reimbursement checklist @ | AA58: Expense Reimbursement Checklist - Template - Financial Services
Z59: and the Guide to Financial Management @ | AA59: Travel & Other Reimbursable Expenses - Policies and Guidelines - Financial Services
A60: revised Mar2023 | K60: REIMBURSEMENT REQUESTED OR REPAYMENT | N60: =SUM(N57:N59) -> 0

Sheet 2 Missing Receipts Form
A1: MISSING RECEIPTS - Reimbursable Expenses For Which There Is No Original Receipt
A2: This form is used when detailed restaurant bills, boarding passes, documents, and receipts are not available. Submit this form with your (i) Expense Report Claim and/or (ii) request for payment of AMEX Statements.
A3: The following is a detailed list of expenses incurred while conducting business or carrying out related duties on behalf of the University and for which there are no original receipts. Furthermore, I will not be seeking reimbursement from any other source, nor, if the missing receipts are subsequently found, will they be re-submitted for reimbursement.
A5: Receipt# | B5: Date | C5: Description of Cost | D5: Vendor / Location | E5: Reason for no receipt | F5: Amount $CAD
A6: =IFERROR(MATCH('3 Receipt itemization'!A26,'3 Receipt itemization'!AB:AB,0)-25,"") ->  | B6: =IFERROR(IF(VLOOKUP($A6,'3 Receipt itemization'!$A:$P,2,FALSE)=0,"",VLOOKUP($A6,'3 Receipt itemization'!$A:$P,2,FALSE)),"") ->  | C6: =IFERROR(IF(VLOOKUP($A6,'3 Receipt itemization'!$A:$P,7,FALSE)=0,"",VLOOKUP($A6,'3 Receipt itemization'!$A:$P,7,FALSE)),"") ->  | D6: =IFERROR(IF(VLOOKUP($A6,'3 Receipt itemization'!$A:$P,5,FALSE)=0,"",VLOOKUP($A6,'3 Receipt itemization'!$A:$P,5,FALSE)),"") ->  | F6: =IFERROR(IF(VLOOKUP($A6,'3 Receipt itemization'!$A:$P,4,FALSE)=0,"",VLOOKUP($A6,'3 Receipt itemization'!$A:$P,4,FALSE)),"") -> 
A7: =IFERROR(MATCH('3 Receipt itemization'!A27,'3 Receipt itemization'!AB:AB,0)-25,"") ->  | B7: =IFERROR(IF(VLOOKUP($A7,'3 Receipt itemization'!$A:$P,2,FALSE)=0,"",VLOOKUP($A7,'3 Receipt itemization'!$A:$P,2,FALSE)),"") ->  | C7: =IFERROR(IF(VLOOKUP($A7,'3 Receipt itemization'!$A:$P,7,FALSE)=0,"",VLOOKUP($A7,'3 Receipt itemization'!$A:$P,7,FALSE)),"") ->  | D7: =IFERROR(IF(VLOOKUP($A7,'3 Receipt itemization'!$A:$P,5,FALSE)=0,"",VLOOKUP($A7,'3 Receipt itemization'!$A:$P,5,FALSE)),"") ->  | F7: =IFERROR(IF(VLOOKUP($A7,'3 Receipt itemization'!$A:$P,4,FALSE)=0,"",VLOOKUP($A7,'3 Receipt itemization'!$A:$P,4,FALSE)),"") -> 
A8: =IFERROR(MATCH('3 Receipt itemization'!A28,'3 Receipt itemization'!AB:AB,0)-25,"") ->  | B8: =IFERROR(IF(VLOOKUP($A8,'3 Receipt itemization'!$A:$P,2,FALSE)=0,"",VLOOKUP($A8,'3 Receipt itemization'!$A:$P,2,FALSE)),"") ->  | C8: =IFERROR(IF(VLOOKUP($A8,'3 Receipt itemization'!$A:$P,7,FALSE)=0,"",VLOOKUP($A8,'3 Receipt itemization'!$A:$P,7,FALSE)),"") ->  | D8: =IFERROR(IF(VLOOKUP($A8,'3 Receipt itemization'!$A:$P,5,FALSE)=0,"",VLOOKUP($A8,'3 Receipt itemization'!$A:$P,5,FALSE)),"") ->  | F8: =IFERROR(IF(VLOOKUP($A8,'3 Receipt itemization'!$A:$P,4,FALSE)=0,"",VLOOKUP($A8,'3 Receipt itemization'!$A:$P,4,FALSE)),"") -> 
A9: =IFERROR(MATCH('3 Receipt itemization'!A29,'3 Receipt itemization'!AB:AB,0)-25,"") ->  | B9: =IFERROR(IF(VLOOKUP($A9,'3 Receipt itemization'!$A:$P,2,FALSE)=0,"",VLOOKUP($A9,'3 Receipt itemization'!$A:$P,2,FALSE)),"") ->  | C9: =IFERROR(IF(VLOOKUP($A9,'3 Receipt itemization'!$A:$P,7,FALSE)=0,"",VLOOKUP($A9,'3 Receipt itemization'!$A:$P,7,FALSE)),"") ->  | D9: =IFERROR(IF(VLOOKUP($A9,'3 Receipt itemization'!$A:$P,5,FALSE)=0,"",VLOOKUP($A9,'3 Receipt itemization'!$A:$P,5,FALSE)),"") ->  | F9: =IFERROR(IF(VLOOKUP($A9,'3 Receipt itemization'!$A:$P,4,FALSE)=0,"",VLOOKUP($A9,'3 Receipt itemization'!$A:$P,4,FALSE)),"") -> 
A10: =IFERROR(MATCH('3 Receipt itemization'!A30,'3 Receipt itemization'!AB:AB,0)-25,"") ->  | B10: =IFERROR(IF(VLOOKUP($A10,'3 Receipt itemization'!$A:$P,2,FALSE)=0,"",VLOOKUP($A10,'3 Receipt itemization'!$A:$P,2,FALSE)),"") ->  | C10: =IFERROR(IF(VLOOKUP($A10,'3 Receipt itemization'!$A:$P,7,FALSE)=0,"",VLOOKUP($A10,'3 Receipt itemization'!$A:$P,7,FALSE)),"") ->  | D10: =IFERROR(IF(VLOOKUP($A10,'3 Receipt itemization'!$A:$P,5,FALSE)=0,"",VLOOKUP($A10,'3 Receipt itemization'!$A:$P,5,FALSE)),"") ->  | F10: =IFERROR(IF(VLOOKUP($A10,'3 Receipt itemization'!$A:$P,4,FALSE)=0,"",VLOOKUP($A10,'3 Receipt itemization'!$A:$P,4,FALSE)),"") -> 
A11: =IFERROR(MATCH('3 Receipt itemization'!A31,'3 Receipt itemization'!AB:AB,0)-25,"") ->  | B11: =IFERROR(IF(VLOOKUP($A11,'3 Receipt itemization'!$A:$P,2,FALSE)=0,"",VLOOKUP($A11,'3 Receipt itemization'!$A:$P,2,FALSE)),"") ->  | C11: =IFERROR(IF(VLOOKUP($A11,'3 Receipt itemization'!$A:$P,7,FALSE)=0,"",VLOOKUP($A11,'3 Receipt itemization'!$A:$P,7,FALSE)),"") ->  | D11: =IFERROR(IF(VLOOKUP($A11,'3 Receipt itemization'!$A:$P,5,FALSE)=0,"",VLOOKUP($A11,'3 Receipt itemization'!$A:$P,5,FALSE)),"") ->  | F11: =IFERROR(IF(VLOOKUP($A11,'3 Receipt itemization'!$A:$P,4,FALSE)=0,"",VLOOKUP($A11,'3 Receipt itemization'!$A:$P,4,FALSE)),"") -> 
A12: =IFERROR(MATCH('3 Receipt itemization'!A32,'3 Receipt itemization'!AB:AB,0)-25,"") ->  | B12: =IFERROR(IF(VLOOKUP($A12,'3 Receipt itemization'!$A:$P,2,FALSE)=0,"",VLOOKUP($A12,'3 Receipt itemization'!$A:$P,2,FALSE)),"") ->  | C12: =IFERROR(IF(VLOOKUP($A12,'3 Receipt itemization'!$A:$P,7,FALSE)=0,"",VLOOKUP($A12,'3 Receipt itemization'!$A:$P,7,FALSE)),"") ->  | D12: =IFERROR(IF(VLOOKUP($A12,'3 Receipt itemization'!$A:$P,5,FALSE)=0,"",VLOOKUP($A12,'3 Receipt itemization'!$A:$P,5,FALSE)),"") ->  | F12: =IFERROR(IF(VLOOKUP($A12,'3 Receipt itemization'!$A:$P,4,FALSE)=0,"",VLOOKUP($A12,'3 Receipt itemization'!$A:$P,4,FALSE)),"") -> 
A13: =IFERROR(MATCH('3 Receipt itemization'!A33,'3 Receipt itemization'!AB:AB,0)-25,"") ->  | B13: =IFERROR(IF(VLOOKUP($A13,'3 Receipt itemization'!$A:$P,2,FALSE)=0,"",VLOOKUP($A13,'3 Receipt itemization'!$A:$P,2,FALSE)),"") ->  | C13: =IFERROR(IF(VLOOKUP($A13,'3 Receipt itemization'!$A:$P,7,FALSE)=0,"",VLOOKUP($A13,'3 Receipt itemization'!$A:$P,7,FALSE)),"") ->  | D13: =IFERROR(IF(VLOOKUP($A13,'3 Receipt itemization'!$A:$P,5,FALSE)=0,"",VLOOKUP($A13,'3 Receipt itemization'!$A:$P,5,FALSE)),"") ->  | F13: =IFERROR(IF(VLOOKUP($A13,'3 Receipt itemization'!$A:$P,4,FALSE)=0,"",VLOOKUP($A13,'3 Receipt itemization'!$A:$P,4,FALSE)),"") -> 
A14: =IFERROR(MATCH('3 Receipt itemization'!A34,'3 Receipt itemization'!AB:AB,0)-25,"") ->  | B14: =IFERROR(IF(VLOOKUP($A14,'3 Receipt itemization'!$A:$P,2,FALSE)=0,"",VLOOKUP($A14,'3 Receipt itemization'!$A:$P,2,FALSE)),"") ->  | C14: =IFERROR(IF(VLOOKUP($A14,'3 Receipt itemization'!$A:$P,7,FALSE)=0,"",VLOOKUP($A14,'3 Receipt itemization'!$A:$P,7,FALSE)),"") ->  | D14: =IFERROR(IF(VLOOKUP($A14,'3 Receipt itemization'!$A:$P,5,FALSE)=0,"",VLOOKUP($A14,'3 Receipt itemization'!$A:$P,5,FALSE)),"") ->  | F14: =IFERROR(IF(VLOOKUP($A14,'3 Receipt itemization'!$A:$P,4,FALSE)=0,"",VLOOKUP($A14,'3 Receipt itemization'!$A:$P,4,FALSE)),"") -> 
A15: =IFERROR(MATCH('3 Receipt itemization'!A35,'3 Receipt itemization'!AB:AB,0)-25,"") ->  | B15: =IFERROR(IF(VLOOKUP($A15,'3 Receipt itemization'!$A:$P,2,FALSE)=0,"",VLOOKUP($A15,'3 Receipt itemization'!$A:$P,2,FALSE)),"") ->  | C15: =IFERROR(IF(VLOOKUP($A15,'3 Receipt itemization'!$A:$P,7,FALSE)=0,"",VLOOKUP($A15,'3 Receipt itemization'!$A:$P,7,FALSE)),"") ->  | D15: =IFERROR(IF(VLOOKUP($A15,'3 Receipt itemization'!$A:$P,5,FALSE)=0,"",VLOOKUP($A15,'3 Receipt itemization'!$A:$P,5,FALSE)),"") ->  | F15: =IFERROR(IF(VLOOKUP($A15,'3 Receipt itemization'!$A:$P,4,FALSE)=0,"",VLOOKUP($A15,'3 Receipt itemization'!$A:$P,4,FALSE)),"") -> 
A16: =IFERROR(MATCH('3 Receipt itemization'!A36,'3 Receipt itemization'!AB:AB,0)-25,"") ->  | B16: =IFERROR(IF(VLOOKUP($A16,'3 Receipt itemization'!$A:$P,2,FALSE)=0,"",VLOOKUP($A16,'3 Receipt itemization'!$A:$P,2,FALSE)),"") ->  | C16: =IFERROR(IF(VLOOKUP($A16,'3 Receipt itemization'!$A:$P,7,FALSE)=0,"",VLOOKUP($A16,'3 Receipt itemization'!$A:$P,7,FALSE)),"") ->  | D16: =IFERROR(IF(VLOOKUP($A16,'3 Receipt itemization'!$A:$P,5,FALSE)=0,"",VLOOKUP($A16,'3 Receipt itemization'!$A:$P,5,FALSE)),"") ->  | F16: =IFERROR(IF(VLOOKUP($A16,'3 Receipt itemization'!$A:$P,4,FALSE)=0,"",VLOOKUP($A16,'3 Receipt itemization'!$A:$P,4,FALSE)),"") -> 
A17: =IFERROR(MATCH('3 Receipt itemization'!A37,'3 Receipt itemization'!AB:AB,0)-25,"") ->  | B17: =IFERROR(IF(VLOOKUP($A17,'3 Receipt itemization'!$A:$P,2,FALSE)=0,"",VLOOKUP($A17,'3 Receipt itemization'!$A:$P,2,FALSE)),"") ->  | C17: =IFERROR(IF(VLOOKUP($A17,'3 Receipt itemization'!$A:$P,7,FALSE)=0,"",VLOOKUP($A17,'3 Receipt itemization'!$A:$P,7,FALSE)),"") ->  | D17: =IFERROR(IF(VLOOKUP($A17,'3 Receipt itemization'!$A:$P,5,FALSE)=0,"",VLOOKUP($A17,'3 Receipt itemization'!$A:$P,5,FALSE)),"") ->  | F17: =IFERROR(IF(VLOOKUP($A17,'3 Receipt itemization'!$A:$P,4,FALSE)=0,"",VLOOKUP($A17,'3 Receipt itemization'!$A:$P,4,FALSE)),"") -> 
A18: =IFERROR(MATCH('3 Receipt itemization'!A38,'3 Receipt itemization'!AB:AB,0)-25,"") ->  | B18: =IFERROR(IF(VLOOKUP($A18,'3 Receipt itemization'!$A:$P,2,FALSE)=0,"",VLOOKUP($A18,'3 Receipt itemization'!$A:$P,2,FALSE)),"") ->  | C18: =IFERROR(IF(VLOOKUP($A18,'3 Receipt itemization'!$A:$P,7,FALSE)=0,"",VLOOKUP($A18,'3 Receipt itemization'!$A:$P,7,FALSE)),"") ->  | D18: =IFERROR(IF(VLOOKUP($A18,'3 Receipt itemization'!$A:$P,5,FALSE)=0,"",VLOOKUP($A18,'3 Receipt itemization'!$A:$P,5,FALSE)),"") ->  | F18: =IFERROR(IF(VLOOKUP($A18,'3 Receipt itemization'!$A:$P,4,FALSE)=0,"",VLOOKUP($A18,'3 Receipt itemization'!$A:$P,4,FALSE)),"") -> 
A19: =IFERROR(MATCH('3 Receipt itemization'!A39,'3 Receipt itemization'!AB:AB,0)-25,"") ->  | B19: =IFERROR(IF(VLOOKUP($A19,'3 Receipt itemization'!$A:$P,2,FALSE)=0,"",VLOOKUP($A19,'3 Receipt itemization'!$A:$P,2,FALSE)),"") ->  | C19: =IFERROR(IF(VLOOKUP($A19,'3 Receipt itemization'!$A:$P,7,FALSE)=0,"",VLOOKUP($A19,'3 Receipt itemization'!$A:$P,7,FALSE)),"") ->  | D19: =IFERROR(IF(VLOOKUP($A19,'3 Receipt itemization'!$A:$P,5,FALSE)=0,"",VLOOKUP($A19,'3 Receipt itemization'!$A:$P,5,FALSE)),"") ->  | F19: =IFERROR(IF(VLOOKUP($A19,'3 Receipt itemization'!$A:$P,4,FALSE)=0,"",VLOOKUP($A19,'3 Receipt itemization'!$A:$P,4,FALSE)),"") -> 
A20: =IFERROR(MATCH('3 Receipt itemization'!A40,'3 Receipt itemization'!AB:AB,0)-25,"") ->  | B20: =IFERROR(IF(VLOOKUP($A20,'3 Receipt itemization'!$A:$P,2,FALSE)=0,"",VLOOKUP($A20,'3 Receipt itemization'!$A:$P,2,FALSE)),"") ->  | C20: =IFERROR(IF(VLOOKUP($A20,'3 Receipt itemization'!$A:$P,7,FALSE)=0,"",VLOOKUP($A20,'3 Receipt itemization'!$A:$P,7,FALSE)),"") ->  | D20: =IFERROR(IF(VLOOKUP($A20,'3 Receipt itemization'!$A:$P,5,FALSE)=0,"",VLOOKUP($A20,'3 Receipt itemization'!$A:$P,5,FALSE)),"") ->  | F20: =IFERROR(IF(VLOOKUP($A20,'3 Receipt itemization'!$A:$P,4,FALSE)=0,"",VLOOKUP($A20,'3 Receipt itemization'!$A:$P,4,FALSE)),"") -> 
D21: TOTAL - Missing Receipts | F21: =SUM(F6:F20) -> 0
A22: I acknowledge that original detailed receipts are necessary for reimbursement per University policy, and will endeavour to adhere to this requirement on future expense claims. I also understand and acknowledge that Canada Revenue Agency may consider all amounts paid to individuals without receipts to be taxable income to the individual.
A23: Please approve the total amount of expenses incurred without original detailed receipts for reimbursement as noted above. www.finance.utoronto.ca/gtfm/travel.htm
E24: Date: | F24: =NOW() -> 2024-08-13T10:32:20.950
A25: Name/Title of Claimant: | C25: =CONCATENATE(firstname &" ",surname &", ",title) -> ,
E27: Date:
A28: Name/Title of Approver: | C28: =CONCATENATE(approver &", ",approver_title) -> ,

Sheet 3 Receipt itemization
A1: *** Do not change print setup, rows 1 to 15 are not to be printed *** | AB1: ||||
D2: Last name | F2: =IF(surname=0,"!! Required"," ") -> !! Required
D3: First name | F3: =IF(firstname=0,"!! Required"," ") -> !! Required
D4: Title | F4: =IF(title=0,"!! Required"," ") -> !! Required
D5: Personnel# | F5: =IF(empl_no=0,"!! Required"," ") -> !! Required
D6: Faculty or Department & Address | E6: Cell and Systems Biology | F6: =IF(division=0,"!! Required"," ") -> 
D7: Contact Name | E7: Sangeeta Panjwani | F7: =IF(contact=0,"!! Required"," ") -> 
D8: Tel# | E8: 416-946-8171 | F8: =IF(contact_phone=0,"!! Required"," ") -> 
D10: Approver's Name
D11: Approver's Title | G11: =IF(reimbt="CHQ","Enter Claimant's address below (cell G12)","") -> 
D12: Expense type (select payment type) | H12: Click button to clear all receipt details below.
F13: =IF(AND(reimbt="amex",AMEXaccount=0),"!! Required, enter AMEX account number"," ") -> 
D14: VISA # | F14: =IF(AND(reimbt="visa",VISAaccount=0),"!! Required, enter VISA account number"," ") -> 
D15: Statement Date | F15: =IF(AND(OR(reimbt="VISA",reimbt="AMEX"),statementDate=0),"!! Required, enter Statement Date", " ") -> 
A16: All expense claims should be submitted for reimbursement on a timely basis, and it would be unreasonable to expect reimbursement after more than 1 year.
D17: Period of expenditures | F17: =IF(time_period=0,"!! Required: enter date range of expenditures (i.e. Jan 1 - 31, 2023)"," ") -> !! Required: enter date range of expenditures (i.e. Jan 1 - 31, 2023)
D18: Brief description of expenditures | F18: =IF(location_desc=0,"!! Required"," ") -> !! Required
B21: TOTAL | D21: =SUM(D22:D24) -> 0 | E21: =CONCATENATE(firstname &" ",surname) ->  | F21: =IF('3 Receipt itemization'!D21='1 ExpenseReport'!N57,"","!! Error - Total does not balance to TAB1") ->  | H21: =IF(D21='1 ExpenseReport'!N57,"","Category missing: please select for each expense item") -> 
B22: per diem allowance | D22: =ttlperdiem -> 0
B23: km allowance | D23: =KMclaimed -> 0 | I23: ATEMI | AB23: formula to populate missing receipt tab
B24: subtotal | D24: =SUM(D26:D92) -> 0 | J24: airmilescalculator.com
A25: Receipt # | B25: Date | D25: Amount $ | E25: Vendor / Merchant | F25: Missing Receipt? | G25: Description of Cost: Business Purpose, Location, Attendees (provide clear details of the expenditure as to the purpose and relevance to University business) | H25: Category | I25: Airfare: ECONOMY or ABOVE-ECONOMY | J25: Total KM flown | K25: Hotel: Indicate # of nights | L25: Hotel rate | M25: Meals: Indicate "Yes" if alcohol is claimed | N25: FIS account | O25: G/L | P25: tax
A26: 1 | L26: =IF(K26>0,D26/K26,"") ->  | O26: =IF(H26="","",VLOOKUP(H26,'categories and subtotals'!$A$5:$G$42,2,FALSE)) ->  | P26: =IF(H26="","",VLOOKUP(H26,'categories and subtotals'!$A$5:$G$42,7,FALSE)) ->  | AB26: =IF(F26="YES",AB25+1,0+AB25) -> 0
A27: 2 | L27: =IF(K27>0,D27/K27,"") ->  | O27: =IF(H27="","",VLOOKUP(H27,'categories and subtotals'!$A$5:$G$42,2,FALSE)) ->  | P27: =IF(H27="","",VLOOKUP(H27,'categories and subtotals'!$A$5:$G$42,7,FALSE)) ->  | AB27: =IF(F27="YES",AB26+1,0+AB26) -> 0
A28: 3 | O28: =IF(H28="","",VLOOKUP(H28,'categories and subtotals'!$A$5:$G$42,2,FALSE)) ->  | P28: =IF(H28="","",VLOOKUP(H28,'categories and subtotals'!$A$5:$G$42,7,FALSE)) ->  | AB28: =IF(F28="YES",AB27+1,0+AB27) -> 0
A29: 4 | O29: =IF(H29="","",VLOOKUP(H29,'categories and subtotals'!$A$5:$G$42,2,FALSE)) ->  | P29: =IF(H29="","",VLOOKUP(H29,'categories and subtotals'!$A$5:$G$42,7,FALSE)) ->  | AB29: 0
A30: 5 | O30: =IF(H30="","",VLOOKUP(H30,'categories and subtotals'!$A$5:$G$42,2,FALSE)) ->  | P30: =IF(H30="","",VLOOKUP(H30,'categories and subtotals'!$A$5:$G$42,7,FALSE)) ->  | AB30: 0
A31: 6 | O31: =IF(H31="","",VLOOKUP(H31,'categories and subtotals'!$A$5:$G$42,2,FALSE)) ->  | P31: =IF(H31="","",VLOOKUP(H31,'categories and subtotals'!$A$5:$G$42,7,FALSE)) ->  | AB31: 0
A32: 7 | O32: =IF(H32="","",VLOOKUP(H32,'categories and subtotals'!$A$5:$G$42,2,FALSE)) ->  | P32: =IF(H32="","",VLOOKUP(H32,'categories and subtotals'!$A$5:$G$42,7,FALSE)) ->  | AB32: 0
A33: 8 | O33: =IF(H33="","",VLOOKUP(H33,'categories and subtotals'!$A$5:$G$42,2,FALSE)) ->  | P33: =IF(H33="","",VLOOKUP(H33,'categories and subtotals'!$A$5:$G$42,7,FALSE)) ->  | AB33: 0
A34: 9 | O34: =IF(H34="","",VLOOKUP(H34,'categories and subtotals'!$A$5:$G$42,2,FALSE)) ->  | P34: =IF(H34="","",VLOOKUP(H34,'categories and subtotals'!$A$5:$G$42,7,FALSE)) ->  | AB34: 0
A35: 10 | O35: =IF(H35="","",VLOOKUP(H35,'categories and subtotals'!$A$5:$G$42,2,FALSE)) ->  | P35: =IF(H35="","",VLOOKUP(H35,'categories and subtotals'!$A$5:$G$42,7,FALSE)) ->  | AB35: 0
A36: 11 | O36: =IF(H36="","",VLOOKUP(H36,'categories and subtotals'!$A$5:$G$42,2,FALSE)) ->  | P36: =IF(H36="","",VLOOKUP(H36,'categories and subtotals'!$A$5:$G$42,7,FALSE)) ->  | AB36: 0
A37: 12 | O37: =IF(H37="","",VLOOKUP(H37,'categories and subtotals'!$A$5:$G$42,2,FALSE)) ->  | P37: =IF(H37="","",VLOOKUP(H37,'categories and subtotals'!$A$5:$G$42,7,FALSE)) ->  | AB37: 0
A38: 13 | O38: =IF(H38="","",VLOOKUP(H38,'categories and subtotals'!$A$5:$G$42,2,FALSE)) ->  | P38: =IF(H38="","",VLOOKUP(H38,'categories and subtotals'!$A$5:$G$42,7,FALSE)) ->  | AB38: 0
A39: 14 | O39: =IF(H39="","",VLOOKUP(H39,'categories and subtotals'!$A$5:$G$42,2,FALSE)) ->  | P39: =IF(H39="","",VLOOKUP(H39,'categories and subtotals'!$A$5:$G$42,7,FALSE)) ->  | AB39: 0
A40: 15 | O40: =IF(H40="","",VLOOKUP(H40,'categories and subtotals'!$A$5:$G$42,2,FALSE)) ->  | P40: =IF(H40="","",VLOOKUP(H40,'categories and subtotals'!$A$5:$G$42,7,FALSE)) ->  | AB40: 0
A41: 16 | O41: =IF(H41="","",VLOOKUP(H41,'categories and subtotals'!$A$5:$G$42,2,FALSE)) ->  | P41: =IF(H41="","",VLOOKUP(H41,'categories and subtotals'!$A$5:$G$42,7,FALSE)) ->  | AB41: 0
A42: 17 | O42: =IF(H42="","",VLOOKUP(H42,'categories and subtotals'!$A$5:$G$42,2,FALSE)) ->  | P42: =IF(H42="","",VLOOKUP(H42,'categories and subtotals'!$A$5:$G$42,7,FALSE)) ->  | AB42: 0
A43: 18 | O43: =IF(H43="","",VLOOKUP(H43,'categories and subtotals'!$A$5:$G$42,2,FALSE)) ->  | P43: =IF(H43="","",VLOOKUP(H43,'categories and subtotals'!$A$5:$G$42,7,FALSE)) ->  | AB43: 0
A44: 19 | O44: =IF(H44="","",VLOOKUP(H44,'categories and subtotals'!$A$5:$G$42,2,FALSE)) ->  | P44: =IF(H44="","",VLOOKUP(H44,'categories and subtotals'!$A$5:$G$42,7,FALSE)) ->  | AB44: 0
A45: 20 | O45: =IF(H45="","",VLOOKUP(H45,'categories and subtotals'!$A$5:$G$42,2,FALSE)) ->  | P45: =IF(H45="","",VLOOKUP(H45,'categories and subtotals'!$A$5:$G$42,7,FALSE)) ->  | AB45: 0
A46: 21 | O46: =IF(H46="","",VLOOKUP(H46,'categories and subtotals'!$A$5:$G$42,2,FALSE)) ->  | P46: =IF(H46="","",VLOOKUP(H46,'categories and subtotals'!$A$5:$G$42,7,FALSE)) ->  | AB46: 0
A47: 22 | O47: =IF(H47="","",VLOOKUP(H47,'categories and subtotals'!$A$5:$G$42,2,FALSE)) ->  | P47: =IF(H47="","",VLOOKUP(H47,'categories and subtotals'!$A$5:$G$42,7,FALSE)) ->  | AB47: 0
A48: 23 | O48: =IF(H48="","",VLOOKUP(H48,'categories and subtotals'!$A$5:$G$42,2,FALSE)) ->  | P48: =IF(H48="","",VLOOKUP(H48,'categories and subtotals'!$A$5:$G$42,7,FALSE)) ->  | AB48: 0
A49: 24 | O49: =IF(H49="","",VLOOKUP(H49,'categories and subtotals'!$A$5:$G$42,2,FALSE)) ->  | P49: =IF(H49="","",VLOOKUP(H49,'categories and subtotals'!$A$5:$G$42,7,FALSE)) ->  | AB49: 0
A50: 25 | O50: =IF(H50="","",VLOOKUP(H50,'categories and subtotals'!$A$5:$G$42,2,FALSE)) ->  | P50: =IF(H50="","",VLOOKUP(H50,'categories and subtotals'!$A$5:$G$42,7,FALSE)) ->  | AB50: 0
A51: 26 | O51: =IF(H51="","",VLOOKUP(H51,'categories and subtotals'!$A$5:$G$42,2,FALSE)) ->  | P51: =IF(H51="","",VLOOKUP(H51,'categories and subtotals'!$A$5:$G$42,7,FALSE)) ->  | AB51: 0
A52: 27 | O52: =IF(H52="","",VLOOKUP(H52,'categories and subtotals'!$A$5:$G$42,2,FALSE)) ->  | P52: =IF(H52="","",VLOOKUP(H52,'categories and subtotals'!$A$5:$G$42,7,FALSE)) ->  | AB52: 0
A53: 28 | O53: =IF(H53="","",VLOOKUP(H53,'categories and subtotals'!$A$5:$G$42,2,FALSE)) ->  | P53: =IF(H53="","",VLOOKUP(H53,'categories and subtotals'!$A$5:$G$42,7,FALSE)) ->  | AB53: 0
A54: 29 | O54: =IF(H54="","",VLOOKUP(H54,'categories and subtotals'!$A$5:$G$42,2,FALSE)) ->  | P54: =IF(H54="","",VLOOKUP(H54,'categories and subtotals'!$A$5:$G$42,7,FALSE)) ->  | AB54: 0
A55: 30 | O55: =IF(H55="","",VLOOKUP(H55,'categories and subtotals'!$A$5:$G$42,2,FALSE)) ->  | P55: =IF(H55="","",VLOOKUP(H55,'categories and subtotals'!$A$5:$G$42,7,FALSE)) ->  | AB55: 0
A56: 31 | O56: =IF(H56="","",VLOOKUP(H56,'categories and subtotals'!$A$5:$G$42,2,FALSE)) ->  | P56: =IF(H56="","",VLOOKUP(H56,'categories and subtotals'!$A$5:$G$42,7,FALSE)) ->  | AB56: 0
A57: 32 | O57: =IF(H57="","",VLOOKUP(H57,'categories and subtotals'!$A$5:$G$42,2,FALSE)) ->  | P57: =IF(H57="","",VLOOKUP(H57,'categories and subtotals'!$A$5:$G$42,7,FALSE)) ->  | AB57: 0
A58: 33 | O58: =IF(H58="","",VLOOKUP(H58,'categories and subtotals'!$A$5:$G$42,2,FALSE)) ->  | P58: =IF(H58="","",VLOOKUP(H58,'categories and subtotals'!$A$5:$G$42,7,FALSE)) ->  | AB58: 0
A59: 34 | O59: =IF(H59="","",VLOOKUP(H59,'categories and subtotals'!$A$5:$G$42,2,FALSE)) ->  | P59: =IF(H59="","",VLOOKUP(H59,'categories and subtotals'!$A$5:$G$42,7,FALSE)) ->  | AB59: 0
A60: 35 | O60: =IF(H60="","",VLOOKUP(H60,'categories and subtotals'!$A$5:$G$42,2,FALSE)) ->  | P60: =IF(H60="","",VLOOKUP(H60,'categories and subtotals'!$A$5:$G$42,7,FALSE)) ->  | AB60: 0
A61: 36 | O61: =IF(H61="","",VLOOKUP(H61,'categories and subtotals'!$A$5:$G$42,2,FALSE)) ->  | P61: =IF(H61="","",VLOOKUP(H61,'categories and subtotals'!$A$5:$G$42,7,FALSE)) ->  | AB61: 0
A62: 37 | O62: =IF(H62="","",VLOOKUP(H62,'categories and subtotals'!$A$5:$G$42,2,FALSE)) ->  | P62: =IF(H62="","",VLOOKUP(H62,'categories and subtotals'!$A$5:$G$42,7,FALSE)) ->  | AB62: 0
A63: 38 | O63: =IF(H63="","",VLOOKUP(H63,'categories and subtotals'!$A$5:$G$42,2,FALSE)) ->  | P63: =IF(H63="","",VLOOKUP(H63,'categories and subtotals'!$A$5:$G$42,7,FALSE)) ->  | AB63: 0
A64: 39 | O64: =IF(H64="","",VLOOKUP(H64,'categories and subtotals'!$A$5:$G$42,2,FALSE)) ->  | P64: =IF(H64="","",VLOOKUP(H64,'categories and subtotals'!$A$5:$G$42,7,FALSE)) ->  | AB64: 0
A65: 40 | O65: =IF(H65="","",VLOOKUP(H65,'categories and subtotals'!$A$5:$G$42,2,FALSE)) ->  | P65: =IF(H65="","",VLOOKUP(H65,'categories and subtotals'!$A$5:$G$42,7,FALSE)) ->  | AB65: 0
A66: 41 | O66: =IF(H66="","",VLOOKUP(H66,'categories and subtotals'!$A$5:$G$42,2,FALSE)) ->  | P66: =IF(H66="","",VLOOKUP(H66,'categories and subtotals'!$A$5:$G$42,7,FALSE)) ->  | AB66: 0
A67: 42 | O67: =IF(H67="","",VLOOKUP(H67,'categories and subtotals'!$A$5:$G$42,2,FALSE)) ->  | P67: =IF(H67="","",VLOOKUP(H67,'categories and subtotals'!$A$5:$G$42,7,FALSE)) ->  | AB67: 0
A68: 43 | O68: =IF(H68="","",VLOOKUP(H68,'categories and subtotals'!$A$5:$G$42,2,FALSE)) ->  | P68: =IF(H68="","",VLOOKUP(H68,'categories and subtotals'!$A$5:$G$42,7,FALSE)) ->  | AB68: 0
A69: 44 | O69: =IF(H69="","",VLOOKUP(H69,'categories and subtotals'!$A$5:$G$42,2,FALSE)) ->  | P69: =IF(H69="","",VLOOKUP(H69,'categories and subtotals'!$A$5:$G$42,7,FALSE)) ->  | AB69: 0
A70: 45 | O70: =IF(H70="","",VLOOKUP(H70,'categories and subtotals'!$A$5:$G$42,2,FALSE)) ->  | P70: =IF(H70="","",VLOOKUP(H70,'categories and subtotals'!$A$5:$G$42,7,FALSE)) ->  | AB70: 0
A71: 46 | O71: =IF(H71="","",VLOOKUP(H71,'categories and subtotals'!$A$5:$G$42,2,FALSE)) ->  | P71: =IF(H71="","",VLOOKUP(H71,'categories and subtotals'!$A$5:$G$42,7,FALSE)) ->  | AB71: 0
A72: 47 | O72: =IF(H72="","",VLOOKUP(H72,'categories and subtotals'!$A$5:$G$42,2,FALSE)) ->  | P72: =IF(H72="","",VLOOKUP(H72,'categories and subtotals'!$A$5:$G$42,7,FALSE)) ->  | AB72: 0
A73: 48 | O73: =IF(H73="","",VLOOKUP(H73,'categories and subtotals'!$A$5:$G$42,2,FALSE)) ->  | P73: =IF(H73="","",VLOOKUP(H73,'categories and subtotals'!$A$5:$G$42,7,FALSE)) ->  | AB73: 0
A74: 49 | O74: =IF(H74="","",VLOOKUP(H74,'categories and subtotals'!$A$5:$G$42,2,FALSE)) ->  | P74: =IF(H74="","",VLOOKUP(H74,'categories and subtotals'!$A$5:$G$42,7,FALSE)) ->  | AB74: 0
A75: 50 | O75: =IF(H75="","",VLOOKUP(H75,'categories and subtotals'!$A$5:$G$42,2,FALSE)) ->  | P75: =IF(H75="","",VLOOKUP(H75,'categories and subtotals'!$A$5:$G$42,7,FALSE)) ->  | AB75: 0
A76: 51 | O76: =IF(H76="","",VLOOKUP(H76,'categories and subtotals'!$A$5:$G$42,2,FALSE)) ->  | P76: =IF(H76="","",VLOOKUP(H76,'categories and subtotals'!$A$5:$G$42,7,FALSE)) ->  | AB76: 0
A77: 52 | O77: =IF(H77="","",VLOOKUP(H77,'categories and subtotals'!$A$5:$G$42,2,FALSE)) ->  | P77: =IF(H77="","",VLOOKUP(H77,'categories and subtotals'!$A$5:$G$42,7,FALSE)) ->  | AB77: 0
A78: 53 | O78: =IF(H78="","",VLOOKUP(H78,'categories and subtotals'!$A$5:$G$42,2,FALSE)) ->  | P78: =IF(H78="","",VLOOKUP(H78,'categories and subtotals'!$A$5:$G$42,7,FALSE)) ->  | AB78: 0
A79: 54 | O79: =IF(H79="","",VLOOKUP(H79,'categories and subtotals'!$A$5:$G$42,2,FALSE)) ->  | P79: =IF(H79="","",VLOOKUP(H79,'categories and subtotals'!$A$5:$G$42,7,FALSE)) ->  | AB79: 0
A80: 55 | O80: =IF(H80="","",VLOOKUP(H80,'categories and subtotals'!$A$5:$G$42,2,FALSE)) ->  | P80: =IF(H80="","",VLOOKUP(H80,'categories and subtotals'!$A$5:$G$42,7,FALSE)) ->  | AB80: 0
A81: 56 | O81: =IF(H81="","",VLOOKUP(H81,'categories and subtotals'!$A$5:$G$42,2,FALSE)) ->  | P81: =IF(H81="","",VLOOKUP(H81,'categories and subtotals'!$A$5:$G$42,7,FALSE)) ->  | AB81: 0
A82: 57 | O82: =IF(H82="","",VLOOKUP(H82,'categories and subtotals'!$A$5:$G$42,2,FALSE)) ->  | P82: =IF(H82="","",VLOOKUP(H82,'categories and subtotals'!$A$5:$G$42,7,FALSE)) ->  | AB82: 0
A83: 58 | O83: =IF(H83="","",VLOOKUP(H83,'categories and subtotals'!$A$5:$G$42,2,FALSE)) ->  | P83: =IF(H83="","",VLOOKUP(H83,'categories and subtotals'!$A$5:$G$42,7,FALSE)) ->  | AB83: 0
A84: 59 | O84: =IF(H84="","",VLOOKUP(H84,'categories and subtotals'!$A$5:$G$42,2,FALSE)) ->  | P84: =IF(H84="","",VLOOKUP(H84,'categories and subtotals'!$A$5:$G$42,7,FALSE)) ->  | AB84: 0
A85: 60 | O85: =IF(H85="","",VLOOKUP(H85,'categories and subtotals'!$A$5:$G$42,2,FALSE)) ->  | P85: =IF(H85="","",VLOOKUP(H85,'categories and subtotals'!$A$5:$G$42,7,FALSE)) ->  | AB85: 0
A86: 61 | O86: =IF(H86="","",VLOOKUP(H86,'categories and subtotals'!$A$5:$G$42,2,FALSE)) ->  | P86: =IF(H86="","",VLOOKUP(H86,'categories and subtotals'!$A$5:$G$42,7,FALSE)) ->  | AB86: 0
A87: 62 | O87: =IF(H87="","",VLOOKUP(H87,'categories and subtotals'!$A$5:$G$42,2,FALSE)) ->  | P87: =IF(H87="","",VLOOKUP(H87,'categories and subtotals'!$A$5:$G$42,7,FALSE)) ->  | AB87: 0
A88: 63 | O88: =IF(H88="","",VLOOKUP(H88,'categories and subtotals'!$A$5:$G$42,2,FALSE)) ->  | P88: =IF(H88="","",VLOOKUP(H88,'categories and subtotals'!$A$5:$G$42,7,FALSE)) ->  | AB88: 0
A89: 64 | O89: =IF(H89="","",VLOOKUP(H89,'categories and subtotals'!$A$5:$G$42,2,FALSE)) ->  | P89: =IF(H89="","",VLOOKUP(H89,'categories and subtotals'!$A$5:$G$42,7,FALSE)) ->  | AB89: 0
A90: 65 | O90: =IF(H90="","",VLOOKUP(H90,'categories and subtotals'!$A$5:$G$42,2,FALSE)) ->  | P90: =IF(H90="","",VLOOKUP(H90,'categories and subtotals'!$A$5:$G$42,7,FALSE)) ->  | AB90: 0
A91: 66 | L91: =IF(K91>0,D91/K91,"") ->  | O91: =IF(H91="","",VLOOKUP(H91,'categories and subtotals'!$A$5:$G$42,2,FALSE)) ->  | P91: =IF(H91="","",VLOOKUP(H91,'categories and subtotals'!$A$5:$G$42,7,FALSE)) ->  | AB91: 0
A92: 67 | O92: =IF(H92="","",VLOOKUP(H92,'categories and subtotals'!$A$5:$G$42,2,FALSE)) ->  | P92: =IF(H92="","",VLOOKUP(H92,'categories and subtotals'!$A$5:$G$42,7,FALSE)) ->  | AB92: =IF(F92="YES",AB91+1,0+AB91) -> 0

Sheet 4 Per Diem Form
A1: Per Diem Allowance | E1: =CONCATENATE(firstname &" ",surname) -> 
A2: [Attach to expense report]
A3: A fixed allowance covering meals and incidental expenses (e.g. gratuities for housekeeping services and bellhops, etc.) may be claimed, without receipts, in lieu of specific expense reimbursement, in Canadian dollars, as follows: Please note that it is not permitted to claim a full day per diem when at a conference if the conference fees include a meal component, or if travel begins in the middle of the day. Effective Feb 1, 2020: meal allowance rates will change to $80 CAD for travel in Canada and $100 CAD for travel outside of Canada. For long-term travel in excess of 30 consecutive days in one location, the meal allowance rates will be reduced to 75% of the applicable per diem rate. | K3: Per diem rates for travel prior to Feb 1, 2020
C4: In Canada $CAD | D4: USA or International $CAD | K4: In Canada $CAD | L4: USA or International $CAD | T4: In Canada | X4: US or international
A5: Breakfast | C5: 15 | D5: 20 | K5: 11 | L5: 15 | T5: prior to 1-Feb-2020 | U5: 2020-02-01 | X5: prior to 1-Feb-2020 | Y5: 2020-02-01
A6: Lunch | C6: 20 | D6: 25 | K6: 17 | L6: 22.5 | T6: In Canada $CAD | U6: In Canada $CAD | X6: In Canada $CAD | Y6: In Canada $CAD
A7: Dinner | C7: 45 | D7: 55 | K7: 27 | L7: 37.5 | T7: 11 | U7: 15 | X7: 15 | Y7: 20
A8: Total Daily Allowance | C8: =SUM(C5:C7) -> 80 | D8: =SUM(D5:D7) -> 100 | K8: 55 | L8: 75 | T8: 17 | U8: 20 | X8: 22.5 | Y8: 25
B9: 2008-10-01 | T9: 27 | U9: 45 | X9: 37.5 | Y9: 55
Q10: FALSE | T10: =SUM(T7:T9) -> 55 | U10: =SUM(U7:U9) -> 80 | X10: =SUM(X7:X9) -> 75 | Y10: =SUM(Y7:Y9) -> 100
Q11: FALSE
T12: 2020-02-01
A13: Date | B13: Breakfast | C13: Lunch | D13: Dinner | E13: Location & Description | Q13: breakfast | R13: lunch | S13: dinner | T13: prior to 1-Feb-2020 | U13: brkfst | V13: lnch | W13: dnr | X13: brkfst INTL | Y13: lnch INTL | Z13: dnr INTL
Q14: FALSE | R14: FALSE | S14: FALSE | T14: =IF(A14>=$T$12,0,TRUE) -> TRUE | U14: =IF(Q14=$T14,$U$7-$T$7,0) -> 0 | V14: =IF(R14=$T14,$U$8-$T$8,0) -> 0 | W14: =IF(S14=$T14,$U$9-$T$9,0) -> 0 | X14: =IF(Q14=$T14,$Y$7-$X$7,0) -> 0 | Y14: =IF(R14=$T14,$Y$8-$X$8,0) -> 0 | Z14: =IF(S14=$T14,$Y$9-$X$9,0) -> 0
Q15: FALSE | R15: FALSE | S15: FALSE | T15: TRUE | U15: =IF(Q15=$T15,$U$7-$T$7,0) -> 0 | V15: =IF(R15=$T15,$U$8-$T$8,0) -> 0 | W15: =IF(S15=$T15,$U$9-$T$9,0) -> 0 | X15: =IF(Q15=$T15,$Y$7-$X$7,0) -> 0 | Y15: =IF(R15=$T15,$Y$8-$X$8,0) -> 0 | Z15: =IF(S15=$T15,$Y$9-$X$9,0) -> 0
Q16: FALSE | R16: FALSE | S16: FALSE | T16: TRUE | U16: 0 | V16: 0 | W16: 0 | X16: 0 | Y16: 0 | Z16: 0
Q17: FALSE | R17: FALSE | S17: FALSE | T17: TRUE | U17: 0 | V17: 0 | W17: 0 | X17: 0 | Y17: 0 | Z17: 0
Q18: FALSE | R18: FALSE | S18: FALSE | T18: TRUE | U18: 0 | V18: 0 | W18: 0 | X18: 0 | Y18: 0 | Z18: 0
Q19: FALSE | R19: FALSE | S19: FALSE | T19: TRUE | U19: 0 | V19: 0 | W19: 0 | X19: 0 | Y19: 0 | Z19: 0
Q20: FALSE | R20: FALSE | S20: FALSE | T20: TRUE | U20: 0 | V20: 0 | W20: 0 | X20: 0 | Y20: 0 | Z20: 0
Q21: FALSE | R21: FALSE | S21: FALSE | T21: TRUE | U21: 0 | V21: 0 | W21: 0 | X21: 0 | Y21: 0 | Z21: 0
Q22: FALSE | R22: FALSE | S22: FALSE | T22: TRUE | U22: 0 | V22: 0 | W22: 0 | X22: 0 | Y22: 0 | Z22: 0
Q23: FALSE | R23: FALSE | S23: FALSE | T23: TRUE | U23: 0 | V23: 0 | W23: 0 | X23: 0 | Y23: 0 | Z23: 0
Q24: FALSE | R24: FALSE | S24: FALSE | T24: TRUE | U24: 0 | V24: 0 | W24: 0 | X24: 0 | Y24: 0 | Z24: 0
Q25: FALSE | R25: FALSE | S25: FALSE | T25: TRUE | U25: 0 | V25: 0 | W25: 0 | X25: 0 | Y25: 0 | Z25: 0
Q26: FALSE | R26: FALSE | S26: FALSE | T26: TRUE | U26: 0 | V26: 0 | W26: 0 | X26: 0 | Y26: 0 | Z26: 0
Q27: FALSE | R27: FALSE | S27: FALSE | T27: TRUE | U27: 0 | V27: 0 | W27: 0 | X27: 0 | Y27: 0 | Z27: 0
Q28: FALSE | R28: FALSE | S28: FALSE | T28: TRUE | U28: 0 | V28: 0 | W28: 0 | X28: 0 | Y28: 0 | Z28: 0
Q29: FALSE | R29: FALSE | S29: FALSE | T29: TRUE | U29: 0 | V29: 0 | W29: 0 | X29: 0 | Y29: 0 | Z29: 0
Q30: FALSE | R30: FALSE | S30: FALSE | T30: TRUE | U30: 0 | V30: 0 | W30: 0 | X30: 0 | Y30: 0 | Z30: 0
Q31: FALSE | R31: FALSE | S31: FALSE | T31: TRUE | U31: 0 | V31: 0 | W31: 0 | X31: 0 | Y31: 0 | Z31: 0
Q32: FALSE | R32: FALSE | S32: FALSE | T32: TRUE | U32: 0 | V32: 0 | W32: 0 | X32: 0 | Y32: 0 | Z32: 0
Q33: FALSE | R33: FALSE | S33: FALSE | T33: TRUE | U33: 0 | V33: 0 | W33: 0 | X33: 0 | Y33: 0 | Z33: 0
A34: No. Days | B34: =COUNTIF(Q14:Q33,TRUE) -> 0 | C34: =COUNTIF(R14:R33,TRUE) -> 0 | D34: =COUNTIF(S14:S33,TRUE) -> 0 | U34: =SUM(U14:U33) -> 0 | V34: =SUM(V14:V33) -> 0 | W34: =SUM(W14:W33) -> 0 | X34: =SUM(X14:X33) -> 0 | Y34: 0 | Z34: 0
A35: Subtotal | B35: =IF(diemCDNorUS,B34*$D$5-X34,B34*$C$5-U34) -> 0 | C35: =IF(diemCDNorUS,C34*$D$6-Y34,C34*$C$6-V34) -> 0 | D35: =IF(diemCDNorUS,D34*$D$7-Z34,D34*$C$7-W34) -> 0
C37: Per Diem - Total | D37: =SUM(B35:D35) -> 0

Sheet 5 Kilometerage Form
A1: Kilometerage Allowance | D1: =CONCATENATE(firstname &" ",surname) -> 
A2: [Attach to expense report]
A3: Click here to view additional details/guidelines on Use of Employee Owned Vehicle.
A4: All car expenses are covered by the kilometrage rate including maintenance, repair, towing and fuel cost. Additional charges for parking, bridge, ferry and highway tolls while on University business are eligible expenses. (Note that the reimbursement rates of the granting agency guidelines, or a specific research award, will apply if they are lower than the University rates.) The rate allowed for use of a personally owned automobile while on approved University business is 57 cents per kilometre (effective rate from Mar 31, 2016 to Jan 31, 2020 was 0.54 / km). Conversion: Multiply miles by 1.609 to convert to kilometres.
A5: CALCULATOR: miles to kms | B5: 1 | C5: =B5*1.609 -> 1.609
A6: 2020-01-31 | C6: 2006-09-01
A7: Date | B7: Km claimed | C7: 0.57 | D7: Address From/To: Purpose of Trip
C8: =ROUND(IF(A8>$A$6,B8*0.57,B8*0.54),2) -> 0
C9: =ROUND(IF(A9>$A$6,B9*0.57,B9*0.54),2) -> 0
C10: 0
C11: 0
C12: 0
C13: 0
C14: 0
C15: 0
C16: 0
C17: 0
C18: 0
C19: 0
C20: 0
C21: 0
C22: 0
C23: 0
C24: 0
C25: 0
C26: 0
C27: 0
A28: Total | B28: =SUM(B8:B27) -> 0 | C28: =SUM(C8:C27) -> 0
A29: Limitation: The standard is that a personally owned vehicle may be used for trips up to 500 km in round trip length. For longer trips a traveller may elect to use his or her own vehicle, but reimbursement for kilometerage will be limited to the equivalent least expensive mode of transportation to and from that destination. (See GTFM for additional information). If the total round trip exceed 500 km, include a quote showing the equivalent least expensive mode of transportation for the actual dates of travel (i.e. quote for airfare, train, or car rental).

Sheet Alcohol
A1: Guide to Financial Management: Policies and Guidelines regarding alcohol
B2: https://finance.utoronto.ca/?p=1165#hospitality
B4: Hospitality: if you need to calculate how much to deduct for alcohol, tax and tip
B5: enter details from receipt in the shaded area marked with an asterick (*)
B6: subtotal before tax | C6: 100 | D6: *
B7: =C7/C6 -> 0.15 | C7: 15 | D7: *
B8: subtotal before tip | C8: =SUM(C6:C7) -> 115
B9: =C9/C6 -> 0.16 | C9: 16 | D9: *
B10: invoice total | C10: =SUM(C8:C9) -> 131
B12: alcohol beverages | C12: =15+20 -> 35 | D12: *
B13: =(C7+C9)/C6 -> 0.31 | C13: =C12*B13 -> 10.85
B14: alcohol bev total / personal cost | C14: =SUM(C12:C13) -> 45.85
B15: Amount to be reimbursed / UofT cost | C15: =C10-C14 -> 85.15
B21: Entertainment of University Employees:
B22: For regular in-house meetings between University employees, no alcohol is permitted.
B23: Alcohol may be provided at special social events such as holiday lunches, holiday parties, retirement parties and other social events and require prior approval of department head.

Sheet categories and subtotals
A1: DO NOT DELETE DATA OR FORMULAS ON THIS PAGE. | AI1: ||||
A2: ***ACCOUNTING INFORMATION FOR UPDATING FIS***
A4: Categories Available to Select are: | B4: GL | D4: KM | E4: subtotals | G4: Tax | I4: =AD5 -> 0 | J4: =AD6 -> 0 | K4: =$AD7 -> 0 | L4: =$AD8 -> 0 | M4: =$AD9 -> 0 | N4: =AD10 -> 0 | O4: =AD11 -> 0 | P4: =$AD12 -> 0 | Q4: =AD13 -> 0 | R4: =AD14 -> 0 | S4: =AD15 -> 0 | T4: =AD16 -> 0 | U4: =AD17 -> 0 | V4: =AD18 -> 0 | W4: =AD19 -> 0 | X4: =AD20 -> 0 | Y4: =AD21 -> 0 | Z4: =AD22 -> 0 | AA4: =AD23 -> 0 | AB4: FIS account o/s
A5: Airfare: Travel within Canada | B5: 84__010 | D5: =SUMIFS('3 Receipt itemization'!$J$26:$J$92,'3 Receipt itemization'!$H$26:$H$92,A5,'3 Receipt itemization'!$I$26:$I$92,"ECONOMY") -> 0 | E5: =SUMIFS('3 Receipt itemization'!$D$26:$D$92,'3 Receipt itemization'!$H$26:$H$92,A5,'3 Receipt itemization'!$I$26:$I$92,"ECONOMY") -> 0 | G5: ER | I5: =SUMIFS('3 Receipt itemization'!$D$26:$D$92,'3 Receipt itemization'!$H$26:$H$92,$A5,'3 Receipt itemization'!$N$26:$N$92,I$4,'3 Receipt itemization'!$I$26:$I$92,"ECONOMY") -> 0 | J5: =SUMIFS('3 Receipt itemization'!$D$26:$D$92,'3 Receipt itemization'!$H$26:$H$92,$A5,'3 Receipt itemization'!$N$26:$N$92,J$4,'3 Receipt itemization'!$I$26:$I$92,"ECONOMY") -> 0 | K5: =SUMIFS('3 Receipt itemization'!$D$26:$D$92,'3 Receipt itemization'!$H$26:$H$92,$A5,'3 Receipt itemization'!$N$26:$N$92,K$4,'3 Receipt itemization'!$I$26:$I$92,"ECONOMY") -> 0 | L5: =SUMIFS('3 Receipt itemization'!$D$26:$D$92,'3 Receipt itemization'!$H$26:$H$92,$A5,'3 Receipt itemization'!$N$26:$N$92,L$4,'3 Receipt itemization'!$I$26:$I$92,"ECONOMY") -> 0 | M5: =SUMIFS('3 Receipt itemization'!$D$26:$D$92,'3 Receipt itemization'!$H$26:$H$92,$A5,'3 Receipt itemization'!$N$26:$N$92,M$4,'3 Receipt itemization'!$I$26:$I$92,"ECONOMY") -> 0 | N5: =SUMIFS('3 Receipt itemization'!$D$26:$D$92,'3 Receipt itemization'!$H$26:$H$92,$A5,'3 Receipt itemization'!$N$26:$N$92,N$4,'3 Receipt itemization'!$I$26:$I$92,"ECONOMY") -> 0 | O5: =SUMIFS('3 Receipt itemization'!$D$26:$D$92,'3 Receipt itemization'!$H$26:$H$92,$A5,'3 Receipt itemization'!$N$26:$N$92,O$4,'3 Receipt itemization'!$I$26:$I$92,"ECONOMY") -> 0 | P5: =SUMIFS('3 Receipt itemization'!$D$26:$D$92,'3 Receipt itemization'!$H$26:$H$92,$A5,'3 Receipt itemization'!$N$26:$N$92,P$4,'3 Receipt itemization'!$I$26:$I$92,"ECONOMY") -> 0 | Q5: =SUMIFS('3 Receipt itemization'!$D$26:$D$92,'3 Receipt itemization'!$H$26:$H$92,$A5,'3 Receipt itemization'!$N$26:$N$92,Q$4,'3 Receipt itemization'!$I$26:$I$92,"ECONOMY") -> 0 | R5: =SUMIFS('3 Receipt itemization'!$D$26:$D$92,'3 Receipt itemization'!$H$26:$H$92,$A5,'3 Receipt itemization'!$N$26:$N$92,R$4,'3 Receipt itemization'!$I$26:$I$92,"ECONOMY") -> 0 | S5: =SUMIFS('3 Receipt itemization'!$D$26:$D$92,'3 Receipt itemization'!$H$26:$H$92,$A5,'3 Receipt itemization'!$N$26:$N$92,S$4,'3 Receipt itemization'!$I$26:$I$92,"ECONOMY") -> 0 | T5: =SUMIFS('3 Receipt itemization'!$D$26:$D$92,'3 Receipt itemization'!$H$26:$H$92,$A5,'3 Receipt itemization'!$N$26:$N$92,T$4,'3 Receipt itemization'!$I$26:$I$92,"ECONOMY") -> 0 | U5: =SUMIFS('3 Receipt itemization'!$D$26:$D$92,'3 Receipt itemization'!$H$26:$H$92,$A5,'3 Receipt itemization'!$N$26:$N$92,U$4,'3 Receipt itemization'!$I$26:$I$92,"ECONOMY") -> 0 | V5: =SUMIFS('3 Receipt itemization'!$D$26:$D$92,'3 Receipt itemization'!$H$26:$H$92,$A5,'3 Receipt itemization'!$N$26:$N$92,V$4,'3 Receipt itemization'!$I$26:$I$92,"ECONOMY") -> 0 | W5: =SUMIFS('3 Receipt itemization'!$D$26:$D$92,'3 Receipt itemization'!$H$26:$H$92,$A5,'3 Receipt itemization'!$N$26:$N$92,W$4,'3 Receipt itemization'!$I$26:$I$92,"ECONOMY") -> 0 | X5: =SUMIFS('3 Receipt itemization'!$D$26:$D$92,'3 Receipt itemization'!$H$26:$H$92,$A5,'3 Receipt itemization'!$N$26:$N$92,X$4,'3 Receipt itemization'!$I$26:$I$92,"ECONOMY") -> 0 | Y5: =SUMIFS('3 Receipt itemization'!$D$26:$D$92,'3 Receipt itemization'!$H$26:$H$92,$A5,'3 Receipt itemization'!$N$26:$N$92,Y$4,'3 Receipt itemization'!$I$26:$I$92,"ECONOMY") -> 0 | Z5: =SUMIFS('3 Receipt itemization'!$D$26:$D$92,'3 Receipt itemization'!$H$26:$H$92,$A5,'3 Receipt itemization'!$N$26:$N$92,Z$4,'3 Receipt itemization'!$I$26:$I$92,"ECONOMY") -> 0 | AA5: =SUMIFS('3 Receipt itemization'!$D$26:$D$92,'3 Receipt itemization'!$H$26:$H$92,$A5,'3 Receipt itemization'!$N$26:$N$92,AA$4,'3 Receipt itemization'!$I$26:$I$92,"ECONOMY") -> 0 | AB5: =SUMIFS('3 Receipt itemization'!$D$26:$D$92,'3 Receipt itemization'!$H$26:$H$92,$A5,'3 Receipt itemization'!$N$26:$N$92,"",'3 Receipt itemization'!$I$26:$I$92,"ECONOMY") -> 0 | AD5: ='FIS accounts'!A1 -> 0 | AI5: =CONCATENATE(IF(I5>0,I$4&" ",""),IF(J5>0,J$4&" ",""),IF(K5>0,K$4&" ",""),IF(L5>0,L$4&" ",""),IF(M5>0,M$4&" ",""),IF(N5>0,N$4&" ",""),IF(O5>0,O$4&" ",""),IF(P5>0,P$4&" ",""),IF(Q5>0,Q$4&" ",""),IF(R5>0,R$4&" ",""),IF(S5>0,S$4&" ",""),IF(T5>0,T$4&" ",""),IF(U5>0,U$4&" ",""),IF(V5>0,V$4&" ",""),IF(W5>0,W$4&" ",""),IF(X5>0,X$4&" ",""),IF(Y5>0,Y$4&" ",""),IF(Z5>0,Z$4&" ",""),IF(AA5>0,AA$4&" ","")) -> 
A6: Airfare: Travel to USA from Ontario | B6: 84__010 | D6: =SUMIFS('3 Receipt itemization'!$J$26:$J$92,'3 Receipt itemization'!$H$26:$H$92,A6,'3 Receipt itemization'!$I$26:$I$92,"ECONOMY") -> 0 | E6: =SUMIFS('3 Receipt itemization'!$D$26:$D$92,'3 Receipt itemization'!$H$26:$H$92,A6,'3 Receipt itemization'!$I$26:$I$92,"ECONOMY") -> 0 | G6: EE | I6: =SUMIFS('3 Receipt itemization'!$D$26:$D$92,'3 Receipt itemization'!$H$26:$H$92,$A6,'3 Receipt itemization'!$N$26:$N$92,I$4,'3 Receipt itemization'!$I$26:$I$92,"ECONOMY") -> 0 | J6: =SUMIFS('3 Receipt itemization'!$D$26:$D$92,'3 Receipt itemization'!$H$26:$H$92,$A6,'3 Receipt itemization'!$N$26:$N$92,J$4,'3 Receipt itemization'!$I$26:$I$92,"ECONOMY") -> 0 | K6: =SUMIFS('3 Receipt itemization'!$D$26:$D$92,'3 Receipt itemization'!$H$26:$H$92,$A6,'3 Receipt itemization'!$N$26:$N$92,K$4,'3 Receipt itemization'!$I$26:$I$92,"ECONOMY") -> 0 | L6: =SUMIFS('3 Receipt itemization'!$D$26:$D$92,'3 Receipt itemization'!$H$26:$H$92,$A6,'3 Receipt itemization'!$N$26:$N$92,L$4,'3 Receipt itemization'!$I$26:$I$92,"ECONOMY") -> 0 | M6: =SUMIFS('3 Receipt itemization'!$D$26:$D$92,'3 Receipt itemization'!$H$26:$H$92,$A6,'3 Receipt itemization'!$N$26:$N$92,M$4,'3 Receipt itemization'!$I$26:$I$92,"ECONOMY") -> 0 | N6: =SUMIFS('3 Receipt itemization'!$D$26:$D$92,'3 Receipt itemization'!$H$26:$H$92,$A6,'3 Receipt itemization'!$N$26:$N$92,N$4,'3 Receipt itemization'!$I$26:$I$92,"ECONOMY") -> 0 | O6: =SUMIFS('3 Receipt itemization'!$D$26:$D$92,'3 Receipt itemization'!$H$26:$H$92,$A6,'3 Receipt itemization'!$N$26:$N$92,O$4,'3 Receipt itemization'!$I$26:$I$92,"ECONOMY") -> 0 | P6: =SUMIFS('3 Receipt itemization'!$D$26:$D$92,'3 Receipt itemization'!$H$26:$H$92,$A6,'3 Receipt itemization'!$N$26:$N$92,P$4,'3 Receipt itemization'!$I$26:$I$92,"ECONOMY") -> 0 | Q6: =SUMIFS('3 Receipt itemization'!$D$26:$D$92,'3 Receipt itemization'!$H$26:$H$92,$A6,'3 Receipt itemization'!$N$26:$N$92,Q$4,'3 Receipt itemization'!$I$26:$I$92,"ECONOMY") -> 0 | R6: =SUMIFS('3 Receipt itemization'!$D$26:$D$92,'3 Receipt itemization'!$H$26:$H$92,$A6,'3 Receipt itemization'!$N$26:$N$92,R$4,'3 Receipt itemization'!$I$26:$I$92,"ECONOMY") -> 0 | S6: =SUMIFS('3 Receipt itemization'!$D$26:$D$92,'3 Receipt itemization'!$H$26:$H$92,$A6,'3 Receipt itemization'!$N$26:$N$92,S$4,'3 Receipt itemization'!$I$26:$I$92,"ECONOMY") -> 0 | T6: =SUMIFS('3 Receipt itemization'!$D$26:$D$92,'3 Receipt itemization'!$H$26:$H$92,$A6,'3 Receipt itemization'!$N$26:$N$92,T$4,'3 Receipt itemization'!$I$26:$I$92,"ECONOMY") -> 0 | U6: =SUMIFS('3 Receipt itemization'!$D$26:$D$92,'3 Receipt itemization'!$H$26:$H$92,$A6,'3 Receipt itemization'!$N$26:$N$92,U$4,'3 Receipt itemization'!$I$26:$I$92,"ECONOMY") -> 0 | V6: =SUMIFS('3 Receipt itemization'!$D$26:$D$92,'3 Receipt itemization'!$H$26:$H$92,$A6,'3 Receipt itemization'!$N$26:$N$92,V$4,'3 Receipt itemization'!$I$26:$I$92,"ECONOMY") -> 0 | W6: =SUMIFS('3 Receipt itemization'!$D$26:$D$92,'3 Receipt itemization'!$H$26:$H$92,$A6,'3 Receipt itemization'!$N$26:$N$92,W$4,'3 Receipt itemization'!$I$26:$I$92,"ECONOMY") -> 0 | X6: =SUMIFS('3 Receipt itemization'!$D$26:$D$92,'3 Receipt itemization'!$H$26:$H$92,$A6,'3 Receipt itemization'!$N$26:$N$92,X$4,'3 Receipt itemization'!$I$26:$I$92,"ECONOMY") -> 0 | Y6: =SUMIFS('3 Receipt itemization'!$D$26:$D$92,'3 Receipt itemization'!$H$26:$H$92,$A6,'3 Receipt itemization'!$N$26:$N$92,Y$4,'3 Receipt itemization'!$I$26:$I$92,"ECONOMY") -> 0 | Z6: =SUMIFS('3 Receipt itemization'!$D$26:$D$92,'3 Receipt itemization'!$H$26:$H$92,$A6,'3 Receipt itemization'!$N$26:$N$92,Z$4,'3 Receipt itemization'!$I$26:$I$92,"ECONOMY") -> 0 | AA6: =SUMIFS('3 Receipt itemization'!$D$26:$D$92,'3 Receipt itemization'!$H$26:$H$92,$A6,'3 Receipt itemization'!$N$26:$N$92,AA$4,'3 Receipt itemization'!$I$26:$I$92,"ECONOMY") -> 0 | AB6: =SUMIFS('3 Receipt itemization'!$D$26:$D$92,'3 Receipt itemization'!$H$26:$H$92,$A6,'3 Receipt itemization'!$N$26:$N$92,"",'3 Receipt itemization'!$I$26:$I$92,"ECONOMY") -> 0 | AD6: ='FIS accounts'!A2 -> 0 | AI6: =CONCATENATE(IF(I6>0,I$4&" ",""),IF(J6>0,J$4&" ",""),IF(K6>0,K$4&" ",""),IF(L6>0,L$4&" ",""),IF(M6>0,M$4&" ",""),IF(N6>0,N$4&" ",""),IF(O6>0,O$4&" ",""),IF(P6>0,P$4&" ",""),IF(Q6>0,Q$4&" ",""),IF(R6>0,R$4&" ",""),IF(S6>0,S$4&" ",""),IF(T6>0,T$4&" ",""),IF(U6>0,U$4&" ",""),IF(V6>0,V$4&" ",""),IF(W6>0,W$4&" ",""),IF(X6>0,X$4&" ",""),IF(Y6>0,Y$4&" ",""),IF(Z6>0,Z$4&" ",""),IF(AA6>0,AA$4&" ","")) -> 
A7: Airfare: All other Airfare | B7: 84__010 | D7: =SUMIFS('3 Receipt itemization'!$J$26:$J$92,'3 Receipt itemization'!$H$26:$H$92,A7,'3 Receipt itemization'!$I$26:$I$92,"ECONOMY") -> 0 | E7: =SUMIFS('3 Receipt itemization'!$D$26:$D$92,'3 Receipt itemization'!$H$26:$H$92,A7,'3 Receipt itemization'!$I$26:$I$92,"ECONOMY") -> 0 | G7: E0 | I7: =SUMIFS('3 Receipt itemization'!$D$26:$D$92,'3 Receipt itemization'!$H$26:$H$92,$A7,'3 Receipt itemization'!$N$26:$N$92,I$4,'3 Receipt itemization'!$I$26:$I$92,"ECONOMY") -> 0 | J7: =SUMIFS('3 Receipt itemization'!$D$26:$D$92,'3 Receipt itemization'!$H$26:$H$92,$A7,'3 Receipt itemization'!$N$26:$N$92,J$4,'3 Receipt itemization'!$I$26:$I$92,"ECONOMY") -> 0 | K7: =SUMIFS('3 Receipt itemization'!$D$26:$D$92,'3 Receipt itemization'!$H$26:$H$92,$A7,'3 Receipt itemization'!$N$26:$N$92,K$4,'3 Receipt itemization'!$I$26:$I$92,"ECONOMY") -> 0 | L7: =SUMIFS('3 Receipt itemization'!$D$26:$D$92,'3 Receipt itemization'!$H$26:$H$92,$A7,'3 Receipt itemization'!$N$26:$N$92,L$4,'3 Receipt itemization'!$I$26:$I$92,"ECONOMY") -> 0 | M7: =SUMIFS('3 Receipt itemization'!$D$26:$D$92,'3 Receipt itemization'!$H$26:$H$92,$A7,'3 Receipt itemization'!$N$26:$N$92,M$4,'3 Receipt itemization'!$I$26:$I$92,"ECONOMY") -> 0 | N7: =SUMIFS('3 Receipt itemization'!$D$26:$D$92,'3 Receipt itemization'!$H$26:$H$92,$A7,'3 Receipt itemization'!$N$26:$N$92,N$4,'3 Receipt itemization'!$I$26:$I$92,"ECONOMY") -> 0 | O7: =SUMIFS('3 Receipt itemization'!$D$26:$D$92,'3 Receipt itemization'!$H$26:$H$92,$A7,'3 Receipt itemization'!$N$26:$N$92,O$4,'3 Receipt itemization'!$I$26:$I$92,"ECONOMY") -> 0 | P7: =SUMIFS('3 Receipt itemization'!$D$26:$D$92,'3 Receipt itemization'!$H$26:$H$92,$A7,'3 Receipt itemization'!$N$26:$N$92,P$4,'3 Receipt itemization'!$I$26:$I$92,"ECONOMY") -> 0 | Q7: =SUMIFS('3 Receipt itemization'!$D$26:$D$92,'3 Receipt itemization'!$H$26:$H$92,$A7,'3 Receipt itemization'!$N$26:$N$92,Q$4,'3 Receipt itemization'!$I$26:$I$92,"ECONOMY") -> 0 | R7: =SUMIFS('3 Receipt itemization'!$D$26:$D$92,'3 Receipt itemization'!$H$26:$H$92,$A7,'3 Receipt itemization'!$N$26:$N$92,R$4,'3 Receipt itemization'!$I$26:$I$92,"ECONOMY") -> 0 | S7: =SUMIFS('3 Receipt itemization'!$D$26:$D$92,'3 Receipt itemization'!$H$26:$H$92,$A7,'3 Receipt itemization'!$N$26:$N$92,S$4,'3 Receipt itemization'!$I$26:$I$92,"ECONOMY") -> 0 | T7: =SUMIFS('3 Receipt itemization'!$D$26:$D$92,'3 Receipt itemization'!$H$26:$H$92,$A7,'3 Receipt itemization'!$N$26:$N$92,T$4,'3 Receipt itemization'!$I$26:$I$92,"ECONOMY") -> 0 | U7: =SUMIFS('3 Receipt itemization'!$D$26:$D$92,'3 Receipt itemization'!$H$26:$H$92,$A7,'3 Receipt itemization'!$N$26:$N$92,U$4,'3 Receipt itemization'!$I$26:$I$92,"ECONOMY") -> 0 | V7: =SUMIFS('3 Receipt itemization'!$D$26:$D$92,'3 Receipt itemization'!$H$26:$H$92,$A7,'3 Receipt itemization'!$N$26:$N$92,V$4,'3 Receipt itemization'!$I$26:$I$92,"ECONOMY") -> 0 | W7: =SUMIFS('3 Receipt itemization'!$D$26:$D$92,'3 Receipt itemization'!$H$26:$H$92,$A7,'3 Receipt itemization'!$N$26:$N$92,W$4,'3 Receipt itemization'!$I$26:$I$92,"ECONOMY") -> 0 | X7: =SUMIFS('3 Receipt itemization'!$D$26:$D$92,'3 Receipt itemization'!$H$26:$H$92,$A7,'3 Receipt itemization'!$N$26:$N$92,X$4,'3 Receipt itemization'!$I$26:$I$92,"ECONOMY") -> 0 | Y7: =SUMIFS('3 Receipt itemization'!$D$26:$D$92,'3 Receipt itemization'!$H$26:$H$92,$A7,'3 Receipt itemization'!$N$26:$N$92,Y$4,'3 Receipt itemization'!$I$26:$I$92,"ECONOMY") -> 0 | Z7: =SUMIFS('3 Receipt itemization'!$D$26:$D$92,'3 Receipt itemization'!$H$26:$H$92,$A7,'3 Receipt itemization'!$N$26:$N$92,Z$4,'3 Receipt itemization'!$I$26:$I$92,"ECONOMY") -> 0 | AA7: =SUMIFS('3 Receipt itemization'!$D$26:$D$92,'3 Receipt itemization'!$H$26:$H$92,$A7,'3 Receipt itemization'!$N$26:$N$92,AA$4,'3 Receipt itemization'!$I$26:$I$92,"ECONOMY") -> 0 | AB7: =SUMIFS('3 Receipt itemization'!$D$26:$D$92,'3 Receipt itemization'!$H$26:$H$92,$A7,'3 Receipt itemization'!$N$26:$N$92,"",'3 Receipt itemization'!$I$26:$I$92,"ECONOMY") -> 0 | AD7: ='FIS accounts'!A3 -> 0
A8: Airfare: Travel within Canada | B8: 84__010 | D8: =SUMIFS('3 Receipt itemization'!$J$26:$J$92,'3 Receipt itemization'!$H$26:$H$92,A8,'3 Receipt itemization'!$I$26:$I$92,"ABOVE-ECONOMY") -> 0 | E8: =SUMIFS('3 Receipt itemization'!$D$26:$D$92,'3 Receipt itemization'!$H$26:$H$92,A8,'3 Receipt itemization'!$I$26:$I$92,"ABOVE-ECONOMY") -> 0 | G8: ER | I8: =SUMIFS('3 Receipt itemization'!$D$26:$D$92,'3 Receipt itemization'!$H$26:$H$92,$A8,'3 Receipt itemization'!$N$26:$N$92,I$4,'3 Receipt itemization'!$I$26:$I$92,"ABOVE-ECONOMY") -> 0 | J8: =SUMIFS('3 Receipt itemization'!$D$26:$D$92,'3 Receipt itemization'!$H$26:$H$92,$A8,'3 Receipt itemization'!$N$26:$N$92,J$4,'3 Receipt itemization'!$I$26:$I$92,"ABOVE-ECONOMY") -> 0 | K8: =SUMIFS('3 Receipt itemization'!$D$26:$D$92,'3 Receipt itemization'!$H$26:$H$92,$A8,'3 Receipt itemization'!$N$26:$N$92,K$4,'3 Receipt itemization'!$I$26:$I$92,"ABOVE-ECONOMY") -> 0 | L8: =SUMIFS('3 Receipt itemization'!$D$26:$D$92,'3 Receipt itemization'!$H$26:$H$92,$A8,'3 Receipt itemization'!$N$26:$N$92,L$4,'3 Receipt itemization'!$I$26:$I$92,"ABOVE-ECONOMY") -> 0 | M8: =SUMIFS('3 Receipt itemization'!$D$26:$D$92,'3 Receipt itemization'!$H$26:$H$92,$A8,'3 Receipt itemization'!$N$26:$N$92,M$4,'3 Receipt itemization'!$I$26:$I$92,"ABOVE-ECONOMY") -> 0 | N8: =SUMIFS('3 Receipt itemization'!$D$26:$D$92,'3 Receipt itemization'!$H$26:$H$92,$A8,'3 Receipt itemization'!$N$26:$N$92,N$4,'3 Receipt itemization'!$I$26:$I$92,"ABOVE-ECONOMY") -> 0 | O8: =SUMIFS('3 Receipt itemization'!$D$26:$D$92,'3 Receipt itemization'!$H$26:$H$92,$A8,'3 Receipt itemization'!$N$26:$N$92,O$4,'3 Receipt itemization'!$I$26:$I$92,"ABOVE-ECONOMY") -> 0 | P8: =SUMIFS('3 Receipt itemization'!$D$26:$D$92,'3 Receipt itemization'!$H$26:$H$92,$A8,'3 Receipt itemization'!$N$26:$N$92,P$4,'3 Receipt itemization'!$I$26:$I$92,"ABOVE-ECONOMY") -> 0 | Q8: =SUMIFS('3 Receipt itemization'!$D$26:$D$92,'3 Receipt itemization'!$H$26:$H$92,$A8,'3 Receipt itemization'!$N$26:$N$92,Q$4,'3 Receipt itemization'!$I$26:$I$92,"ABOVE-ECONOMY") -> 0 | R8: =SUMIFS('3 Receipt itemization'!$D$26:$D$92,'3 Receipt itemization'!$H$26:$H$92,$A8,'3 Receipt itemization'!$N$26:$N$92,R$4,'3 Receipt itemization'!$I$26:$I$92,"ABOVE-ECONOMY") -> 0 | S8: =SUMIFS('3 Receipt itemization'!$D$26:$D$92,'3 Receipt itemization'!$H$26:$H$92,$A8,'3 Receipt itemization'!$N$26:$N$92,S$4,'3 Receipt itemization'!$I$26:$I$92,"ABOVE-ECONOMY") -> 0 | T8: =SUMIFS('3 Receipt itemization'!$D$26:$D$92,'3 Receipt itemization'!$H$26:$H$92,$A8,'3 Receipt itemization'!$N$26:$N$92,T$4,'3 Receipt itemization'!$I$26:$I$92,"ABOVE-ECONOMY") -> 0 | U8: =SUMIFS('3 Receipt itemization'!$D$26:$D$92,'3 Receipt itemization'!$H$26:$H$92,$A8,'3 Receipt itemization'!$N$26:$N$92,U$4,'3 Receipt itemization'!$I$26:$I$92,"ABOVE-ECONOMY") -> 0 | V8: =SUMIFS('3 Receipt itemization'!$D$26:$D$92,'3 Receipt itemization'!$H$26:$H$92,$A8,'3 Receipt itemization'!$N$26:$N$92,V$4,'3 Receipt itemization'!$I$26:$I$92,"ABOVE-ECONOMY") -> 0 | W8: =SUMIFS('3 Receipt itemization'!$D$26:$D$92,'3 Receipt itemization'!$H$26:$H$92,$A8,'3 Receipt itemization'!$N$26:$N$92,W$4,'3 Receipt itemization'!$I$26:$I$92,"ABOVE-ECONOMY") -> 0 | X8: =SUMIFS('3 Receipt itemization'!$D$26:$D$92,'3 Receipt itemization'!$H$26:$H$92,$A8,'3 Receipt itemization'!$N$26:$N$92,X$4,'3 Receipt itemization'!$I$26:$I$92,"ABOVE-ECONOMY") -> 0 | Y8: =SUMIFS('3 Receipt itemization'!$D$26:$D$92,'3 Receipt itemization'!$H$26:$H$92,$A8,'3 Receipt itemization'!$N$26:$N$92,Y$4,'3 Receipt itemization'!$I$26:$I$92,"ABOVE-ECONOMY") -> 0 | Z8: =SUMIFS('3 Receipt itemization'!$D$26:$D$92,'3 Receipt itemization'!$H$26:$H$92,$A8,'3 Receipt itemization'!$N$26:$N$92,Z$4,'3 Receipt itemization'!$I$26:$I$92,"ABOVE-ECONOMY") -> 0 | AA8: =SUMIFS('3 Receipt itemization'!$D$26:$D$92,'3 Receipt itemization'!$H$26:$H$92,$A8,'3 Receipt itemization'!$N$26:$N$92,AA$4,'3 Receipt itemization'!$I$26:$I$92,"ABOVE-ECONOMY") -> 0 | AB8: =SUMIFS('3 Receipt itemization'!$D$26:$D$92,'3 Receipt itemization'!$H$26:$H$92,$A8,'3 Receipt itemization'!$N$26:$N$92,"",'3 Receipt itemization'!$I$26:$I$92,"ABOVE-ECONOMY") -> 0 | AD8: ='FIS accounts'!A4 -> 0
A9: Airfare: Travel to USA from Ontario | B9: 84__010 | D9: =SUMIFS('3 Receipt itemization'!$J$26:$J$92,'3 Receipt itemization'!$H$26:$H$92,A9,'3 Receipt itemization'!$I$26:$I$92,"ABOVE-ECONOMY") -> 0 | E9: =SUMIFS('3 Receipt itemization'!$D$26:$D$92,'3 Receipt itemization'!$H$26:$H$92,A9,'3 Receipt itemization'!$I$26:$I$92,"ABOVE-ECONOMY") -> 0 | G9: EE | I9: =SUMIFS('3 Receipt itemization'!$D$26:$D$92,'3 Receipt itemization'!$H$26:$H$92,$A9,'3 Receipt itemization'!$N$26:$N$92,I$4,'3 Receipt itemization'!$I$26:$I$92,"ABOVE-ECONOMY") -> 0 | J9: =SUMIFS('3 Receipt itemization'!$D$26:$D$92,'3 Receipt itemization'!$H$26:$H$92,$A9,'3 Receipt itemization'!$N$26:$N$92,J$4,'3 Receipt itemization'!$I$26:$I$92,"ABOVE-ECONOMY") -> 0 | K9: =SUMIFS('3 Receipt itemization'!$D$26:$D$92,'3 Receipt itemization'!$H$26:$H$92,$A9,'3 Receipt itemization'!$N$26:$N$92,K$4,'3 Receipt itemization'!$I$26:$I$92,"ABOVE-ECONOMY") -> 0 | L9: =SUMIFS('3 Receipt itemization'!$D$26:$D$92,'3 Receipt itemization'!$H$26:$H$92,$A9,'3 Receipt itemization'!$N$26:$N$92,L$4,'3 Receipt itemization'!$I$26:$I$92,"ABOVE-ECONOMY") -> 0 | M9: =SUMIFS('3 Receipt itemization'!$D$26:$D$92,'3 Receipt itemization'!$H$26:$H$92,$A9,'3 Receipt itemization'!$N$26:$N$92,M$4,'3 Receipt itemization'!$I$26:$I$92,"ABOVE-ECONOMY") -> 0 | N9: =SUMIFS('3 Receipt itemization'!$D$26:$D$92,'3 Receipt itemization'!$H$26:$H$92,$A9,'3 Receipt itemization'!$N$26:$N$92,N$4,'3 Receipt itemization'!$I$26:$I$92,"ABOVE-ECONOMY") -> 0 | O9: =SUMIFS('3 Receipt itemization'!$D$26:$D$92,'3 Receipt itemization'!$H$26:$H$92,$A9,'3 Receipt itemization'!$N$26:$N$92,O$4,'3 Receipt itemization'!$I$26:$I$92,"ABOVE-ECONOMY") -> 0 | P9: =SUMIFS('3 Receipt itemization'!$D$26:$D$92,'3 Receipt itemization'!$H$26:$H$92,$A9,'3 Receipt itemization'!$N$26:$N$92,P$4,'3 Receipt itemization'!$I$26:$I$92,"ABOVE-ECONOMY") -> 0 | Q9: =SUMIFS('3 Receipt itemization'!$D$26:$D$92,'3 Receipt itemization'!$H$26:$H$92,$A9,'3 Receipt itemization'!$N$26:$N$92,Q$4,'3 Receipt itemization'!$I$26:$I$92,"ABOVE-ECONOMY") -> 0 | R9: =SUMIFS('3 Receipt itemization'!$D$26:$D$92,'3 Receipt itemization'!$H$26:$H$92,$A9,'3 Receipt itemization'!$N$26:$N$92,R$4,'3 Receipt itemization'!$I$26:$I$92,"ABOVE-ECONOMY") -> 0 | S9: =SUMIFS('3 Receipt itemization'!$D$26:$D$92,'3 Receipt itemization'!$H$26:$H$92,$A9,'3 Receipt itemization'!$N$26:$N$92,S$4,'3 Receipt itemization'!$I$26:$I$92,"ABOVE-ECONOMY") -> 0 | T9: =SUMIFS('3 Receipt itemization'!$D$26:$D$92,'3 Receipt itemization'!$H$26:$H$92,$A9,'3 Receipt itemization'!$N$26:$N$92,T$4,'3 Receipt itemization'!$I$26:$I$92,"ABOVE-ECONOMY") -> 0 | U9: =SUMIFS('3 Receipt itemization'!$D$26:$D$92,'3 Receipt itemization'!$H$26:$H$92,$A9,'3 Receipt itemization'!$N$26:$N$92,U$4,'3 Receipt itemization'!$I$26:$I$92,"ABOVE-ECONOMY") -> 0 | V9: =SUMIFS('3 Receipt itemization'!$D$26:$D$92,'3 Receipt itemization'!$H$26:$H$92,$A9,'3 Receipt itemization'!$N$26:$N$92,V$4,'3 Receipt itemization'!$I$26:$I$92,"ABOVE-ECONOMY") -> 0 | W9: =SUMIFS('3 Receipt itemization'!$D$26:$D$92,'3 Receipt itemization'!$H$26:$H$92,$A9,'3 Receipt itemization'!$N$26:$N$92,W$4,'3 Receipt itemization'!$I$26:$I$92,"ABOVE-ECONOMY") -> 0 | X9: =SUMIFS('3 Receipt itemization'!$D$26:$D$92,'3 Receipt itemization'!$H$26:$H$92,$A9,'3 Receipt itemization'!$N$26:$N$92,X$4,'3 Receipt itemization'!$I$26:$I$92,"ABOVE-ECONOMY") -> 0 | Y9: =SUMIFS('3 Receipt itemization'!$D$26:$D$92,'3 Receipt itemization'!$H$26:$H$92,$A9,'3 Receipt itemization'!$N$26:$N$92,Y$4,'3 Receipt itemization'!$I$26:$I$92,"ABOVE-ECONOMY") -> 0 | Z9: =SUMIFS('3 Receipt itemization'!$D$26:$D$92,'3 Receipt itemization'!$H$26:$H$92,$A9,'3 Receipt itemization'!$N$26:$N$92,Z$4,'3 Receipt itemization'!$I$26:$I$92,"ABOVE-ECONOMY") -> 0 | AA9: =SUMIFS('3 Receipt itemization'!$D$26:$D$92,'3 Receipt itemization'!$H$26:$H$92,$A9,'3 Receipt itemization'!$N$26:$N$92,AA$4,'3 Receipt itemization'!$I$26:$I$92,"ABOVE-ECONOMY") -> 0 | AB9: =SUMIFS('3 Receipt itemization'!$D$26:$D$92,'3 Receipt itemization'!$H$26:$H$92,$A9,'3 Receipt itemization'!$N$26:$N$92,"",'3 Receipt itemization'!$I$26:$I$92,"ABOVE-ECONOMY") -> 0 | AD9: ='FIS accounts'!A5 -> 0
A10: Airfare: All other Airfare | B10: 84__010 | D10: =SUMIFS('3 Receipt itemization'!$J$26:$J$92,'3 Receipt itemization'!$H$26:$H$92,A10,'3 Receipt itemization'!$I$26:$I$92,"ABOVE-ECONOMY") -> 0 | E10: =SUMIFS('3 Receipt itemization'!$D$26:$D$92,'3 Receipt itemization'!$H$26:$H$92,A10,'3 Receipt itemization'!$I$26:$I$92,"ABOVE-ECONOMY") -> 0 | G10: E0 | I10: =SUMIFS('3 Receipt itemization'!$D$26:$D$92,'3 Receipt itemization'!$H$26:$H$92,$A10,'3 Receipt itemization'!$N$26:$N$92,I$4,'3 Receipt itemization'!$I$26:$I$92,"ABOVE-ECONOMY") -> 0 | J10: =SUMIFS('3 Receipt itemization'!$D$26:$D$92,'3 Receipt itemization'!$H$26:$H$92,$A10,'3 Receipt itemization'!$N$26:$N$92,J$4,'3 Receipt itemization'!$I$26:$I$92,"ABOVE-ECONOMY") -> 0 | K10: =SUMIFS('3 Receipt itemization'!$D$26:$D$92,'3 Receipt itemization'!$H$26:$H$92,$A10,'3 Receipt itemization'!$N$26:$N$92,K$4,'3 Receipt itemization'!$I$26:$I$92,"ABOVE-ECONOMY") -> 0 | L10: =SUMIFS('3 Receipt itemization'!$D$26:$D$92,'3 Receipt itemization'!$H$26:$H$92,$A10,'3 Receipt itemization'!$N$26:$N$92,L$4,'3 Receipt itemization'!$I$26:$I$92,"ABOVE-ECONOMY") -> 0 | M10: =SUMIFS('3 Receipt itemization'!$D$26:$D$92,'3 Receipt itemization'!$H$26:$H$92,$A10,'3 Receipt itemization'!$N$26:$N$92,M$4,'3 Receipt itemization'!$I$26:$I$92,"ABOVE-ECONOMY") -> 0 | N10: =SUMIFS('3 Receipt itemization'!$D$26:$D$92,'3 Receipt itemization'!$H$26:$H$92,$A10,'3 Receipt itemization'!$N$26:$N$92,N$4,'3 Receipt itemization'!$I$26:$I$92,"ABOVE-ECONOMY") -> 0 | O10: =SUMIFS('3 Receipt itemization'!$D$26:$D$92,'3 Receipt itemization'!$H$26:$H$92,$A10,'3 Receipt itemization'!$N$26:$N$92,O$4,'3 Receipt itemization'!$I$26:$I$92,"ABOVE-ECONOMY") -> 0 | P10: =SUMIFS('3 Receipt itemization'!$D$26:$D$92,'3 Receipt itemization'!$H$26:$H$92,$A10,'3 Receipt itemization'!$N$26:$N$92,P$4,'3 Receipt itemization'!$I$26:$I$92,"ABOVE-ECONOMY") -> 0 | Q10: =SUMIFS('3 Receipt itemization'!$D$26:$D$92,'3 Receipt itemization'!$H$26:$H$92,$A10,'3 Receipt itemization'!$N$26:$N$92,Q$4,'3 Receipt itemization'!$I$26:$I$92,"ABOVE-ECONOMY") -> 0 | R10: =SUMIFS('3 Receipt itemization'!$D$26:$D$92,'3 Receipt itemization'!$H$26:$H$92,$A10,'3 Receipt itemization'!$N$26:$N$92,R$4,'3 Receipt itemization'!$I$26:$I$92,"ABOVE-ECONOMY") -> 0 | S10: =SUMIFS('3 Receipt itemization'!$D$26:$D$92,'3 Receipt itemization'!$H$26:$H$92,$A10,'3 Receipt itemization'!$N$26:$N$92,S$4,'3 Receipt itemization'!$I$26:$I$92,"ABOVE-ECONOMY") -> 0 | T10: =SUMIFS('3 Receipt itemization'!$D$26:$D$92,'3 Receipt itemization'!$H$26:$H$92,$A10,'3 Receipt itemization'!$N$26:$N$92,T$4,'3 Receipt itemization'!$I$26:$I$92,"ABOVE-ECONOMY") -> 0 | U10: =SUMIFS('3 Receipt itemization'!$D$26:$D$92,'3 Receipt itemization'!$H$26:$H$92,$A10,'3 Receipt itemization'!$N$26:$N$92,U$4,'3 Receipt itemization'!$I$26:$I$92,"ABOVE-ECONOMY") -> 0 | V10: =SUMIFS('3 Receipt itemization'!$D$26:$D$92,'3 Receipt itemization'!$H$26:$H$92,$A10,'3 Receipt itemization'!$N$26:$N$92,V$4,'3 Receipt itemization'!$I$26:$I$92,"ABOVE-ECONOMY") -> 0 | W10: =SUMIFS('3 Receipt itemization'!$D$26:$D$92,'3 Receipt itemization'!$H$26:$H$92,$A10,'3 Receipt itemization'!$N$26:$N$92,W$4,'3 Receipt itemization'!$I$26:$I$92,"ABOVE-ECONOMY") -> 0 | X10: =SUMIFS('3 Receipt itemization'!$D$26:$D$92,'3 Receipt itemization'!$H$26:$H$92,$A10,'3 Receipt itemization'!$N$26:$N$92,X$4,'3 Receipt itemization'!$I$26:$I$92,"ABOVE-ECONOMY") -> 0 | Y10: =SUMIFS('3 Receipt itemization'!$D$26:$D$92,'3 Receipt itemization'!$H$26:$H$92,$A10,'3 Receipt itemization'!$N$26:$N$92,Y$4,'3 Receipt itemization'!$I$26:$I$92,"ABOVE-ECONOMY") -> 0 | Z10: =SUMIFS('3 Receipt itemization'!$D$26:$D$92,'3 Receipt itemization'!$H$26:$H$92,$A10,'3 Receipt itemization'!$N$26:$N$92,Z$4,'3 Receipt itemization'!$I$26:$I$92,"ABOVE-ECONOMY") -> 0 | AA10: =SUMIFS('3 Receipt itemization'!$D$26:$D$92,'3 Receipt itemization'!$H$26:$H$92,$A10,'3 Receipt itemization'!$N$26:$N$92,AA$4,'3 Receipt itemization'!$I$26:$I$92,"ABOVE-ECONOMY") -> 0 | AB10: =SUMIFS('3 Receipt itemization'!$D$26:$D$92,'3 Receipt itemization'!$H$26:$H$92,$A10,'3 Receipt itemization'!$N$26:$N$92,"",'3 Receipt itemization'!$I$26:$I$92,"ABOVE-ECONOMY") -> 0 | AD10: ='FIS accounts'!A6 -> 0
A11: Accomodation: ON (13%HST) | B11: 84__020 | E11: =SUMIF('3 Receipt itemization'!$H$26:$H$92,A11,'3 Receipt itemization'!$D$26:$D$92) -> 0 | G11: ER | I11: =SUMIFS('3 Receipt itemization'!$D$26:$D$92,'3 Receipt itemization'!$H$26:$H$92,$A11,'3 Receipt itemization'!$N$26:$N$92,$I$4) -> 0 | J11: =SUMIFS('3 Receipt itemization'!$D$26:$D$92,'3 Receipt itemization'!$H$26:$H$92,$A11,'3 Receipt itemization'!$N$26:$N$92,$J$4) -> 0 | K11: =SUMIFS('3 Receipt itemization'!$D$26:$D$92,'3 Receipt itemization'!$H$26:$H$92,$A11,'3 Receipt itemization'!$N$26:$N$92,K$4) -> 0 | L11: =SUMIFS('3 Receipt itemization'!$D$26:$D$92,'3 Receipt itemization'!$H$26:$H$92,$A11,'3 Receipt itemization'!$N$26:$N$92,L$4) -> 0 | M11: =SUMIFS('3 Receipt itemization'!$D$26:$D$92,'3 Receipt itemization'!$H$26:$H$92,$A11,'3 Receipt itemization'!$N$26:$N$92,M$4) -> 0 | N11: =SUMIFS('3 Receipt itemization'!$D$26:$D$92,'3 Receipt itemization'!$H$26:$H$92,$A11,'3 Receipt itemization'!$N$26:$N$92,$N$4) -> 0 | O11: =SUMIFS('3 Receipt itemization'!$D$26:$D$92,'3 Receipt itemization'!$H$26:$H$92,$A11,'3 Receipt itemization'!$N$26:$N$92,$O$4) -> 0 | P11: =SUMIFS('3 Receipt itemization'!$D$26:$D$92,'3 Receipt itemization'!$H$26:$H$92,$A11,'3 Receipt itemization'!$N$26:$N$92,P$4) -> 0 | Q11: =SUMIFS('3 Receipt itemization'!$D$26:$D$92,'3 Receipt itemization'!$H$26:$H$92,$A11,'3 Receipt itemization'!$N$26:$N$92,$Q$4) -> 0 | R11: =SUMIFS('3 Receipt itemization'!$D$26:$D$92,'3 Receipt itemization'!$H$26:$H$92,$A11,'3 Receipt itemization'!$N$26:$N$92,$R$4) -> 0 | S11: =SUMIFS('3 Receipt itemization'!$D$26:$D$92,'3 Receipt itemization'!$H$26:$H$92,$A11,'3 Receipt itemization'!$N$26:$N$92,$S$4) -> 0 | T11: =SUMIFS('3 Receipt itemization'!$D$26:$D$92,'3 Receipt itemization'!$H$26:$H$92,$A11,'3 Receipt itemization'!$N$26:$N$92,$T$4) -> 0 | U11: =SUMIFS('3 Receipt itemization'!$D$26:$D$92,'3 Receipt itemization'!$H$26:$H$92,$A11,'3 Receipt itemization'!$N$26:$N$92,$U$4) -> 0 | V11: =SUMIFS('3 Receipt itemization'!$D$26:$D$92,'3 Receipt itemization'!$H$26:$H$92,$A11,'3 Receipt itemization'!$N$26:$N$92,$V$4) -> 0 | W11: =SUMIFS('3 Receipt itemization'!$D$26:$D$92,'3 Receipt itemization'!$H$26:$H$92,$A11,'3 Receipt itemization'!$N$26:$N$92,$W$4) -> 0 | X11: =SUMIFS('3 Receipt itemization'!$D$26:$D$92,'3 Receipt itemization'!$H$26:$H$92,$A11,'3 Receipt itemization'!$N$26:$N$92,$X$4) -> 0 | Y11: =SUMIFS('3 Receipt itemization'!$D$26:$D$92,'3 Receipt itemization'!$H$26:$H$92,$A11,'3 Receipt itemization'!$N$26:$N$92,$Y$4) -> 0 | Z11: =SUMIFS('3 Receipt itemization'!$D$26:$D$92,'3 Receipt itemization'!$H$26:$H$92,$A11,'3 Receipt itemization'!$N$26:$N$92,$Z$4) -> 0 | AA11: =SUMIFS('3 Receipt itemization'!$D$26:$D$92,'3 Receipt itemization'!$H$26:$H$92,$A11,'3 Receipt itemization'!$N$26:$N$92,$AA$4) -> 0 | AB11: =SUMIFS('3 Receipt itemization'!$D$26:$D$92,'3 Receipt itemization'!$H$26:$H$92,$A11,'3 Receipt itemization'!$N$26:$N$92,"") -> 0 | AD11: ='FIS accounts'!A7 -> 0
A12: Accomodation: PEI, NS, NF, NB (15% HST) | B12: 84__020 | E12: =SUMIF('3 Receipt itemization'!$H$26:$H$92,A12,'3 Receipt itemization'!$D$26:$D$92) -> 0 | G12: EN | I12: =SUMIFS('3 Receipt itemization'!$D$26:$D$92,'3 Receipt itemization'!$H$26:$H$92,$A12,'3 Receipt itemization'!$N$26:$N$92,$I$4) -> 0 | J12: =SUMIFS('3 Receipt itemization'!$D$26:$D$92,'3 Receipt itemization'!$H$26:$H$92,$A12,'3 Receipt itemization'!$N$26:$N$92,$J$4) -> 0 | K12: =SUMIFS('3 Receipt itemization'!$D$26:$D$92,'3 Receipt itemization'!$H$26:$H$92,$A12,'3 Receipt itemization'!$N$26:$N$92,K$4) -> 0 | L12: =SUMIFS('3 Receipt itemization'!$D$26:$D$92,'3 Receipt itemization'!$H$26:$H$92,$A12,'3 Receipt itemization'!$N$26:$N$92,L$4) -> 0 | M12: =SUMIFS('3 Receipt itemization'!$D$26:$D$92,'3 Receipt itemization'!$H$26:$H$92,$A12,'3 Receipt itemization'!$N$26:$N$92,M$4) -> 0 | N12: =SUMIFS('3 Receipt itemization'!$D$26:$D$92,'3 Receipt itemization'!$H$26:$H$92,$A12,'3 Receipt itemization'!$N$26:$N$92,$N$4) -> 0 | O12: =SUMIFS('3 Receipt itemization'!$D$26:$D$92,'3 Receipt itemization'!$H$26:$H$92,$A12,'3 Receipt itemization'!$N$26:$N$92,$O$4) -> 0 | P12: =SUMIFS('3 Receipt itemization'!$D$26:$D$92,'3 Receipt itemization'!$H$26:$H$92,$A12,'3 Receipt itemization'!$N$26:$N$92,P$4) -> 0 | Q12: =SUMIFS('3 Receipt itemization'!$D$26:$D$92,'3 Receipt itemization'!$H$26:$H$92,$A12,'3 Receipt itemization'!$N$26:$N$92,$Q$4) -> 0 | R12: =SUMIFS('3 Receipt itemization'!$D$26:$D$92,'3 Receipt itemization'!$H$26:$H$92,$A12,'3 Receipt itemization'!$N$26:$N$92,$R$4) -> 0 | S12: =SUMIFS('3 Receipt itemization'!$D$26:$D$92,'3 Receipt itemization'!$H$26:$H$92,$A12,'3 Receipt itemization'!$N$26:$N$92,$S$4) -> 0 | T12: =SUMIFS('3 Receipt itemization'!$D$26:$D$92,'3 Receipt itemization'!$H$26:$H$92,$A12,'3 Receipt itemization'!$N$26:$N$92,$T$4) -> 0 | U12: =SUMIFS('3 Receipt itemization'!$D$26:$D$92,'3 Receipt itemization'!$H$26:$H$92,$A12,'3 Receipt itemization'!$N$26:$N$92,$U$4) -> 0 | V12: =SUMIFS('3 Receipt itemization'!$D$26:$D$92,'3 Receipt itemization'!$H$26:$H$92,$A12,'3 Receipt itemization'!$N$26:$N$92,$V$4) -> 0 | W12: =SUMIFS('3 Receipt itemization'!$D$26:$D$92,'3 Receipt itemization'!$H$26:$H$92,$A12,'3 Receipt itemization'!$N$26:$N$92,$W$4) -> 0 | X12: =SUMIFS('3 Receipt itemization'!$D$26:$D$92,'3 Receipt itemization'!$H$26:$H$92,$A12,'3 Receipt itemization'!$N$26:$N$92,$X$4) -> 0 | Y12: =SUMIFS('3 Receipt itemization'!$D$26:$D$92,'3 Receipt itemization'!$H$26:$H$92,$A12,'3 Receipt itemization'!$N$26:$N$92,$Y$4) -> 0 | Z12: =SUMIFS('3 Receipt itemization'!$D$26:$D$92,'3 Receipt itemization'!$H$26:$H$92,$A12,'3 Receipt itemization'!$N$26:$N$92,$Z$4) -> 0 | AA12: =SUMIFS('3 Receipt itemization'!$D$26:$D$92,'3 Receipt itemization'!$H$26:$H$92,$A12,'3 Receipt itemization'!$N$26:$N$92,$AA$4) -> 0 | AB12: =SUMIFS('3 Receipt itemization'!$D$26:$D$92,'3 Receipt itemization'!$H$26:$H$92,$A12,'3 Receipt itemization'!$N$26:$N$92,"") -> 0 | AD12: ='FIS accounts'!A8 -> 0
A13: Accomodation: all other provinces / territories | B13: 84__020 | E13: =SUMIF('3 Receipt itemization'!$H$26:$H$92,A13,'3 Receipt itemization'!$D$26:$D$92) -> 0 | G13: EE | I13: =SUMIFS('3 Receipt itemization'!$D$26:$D$92,'3 Receipt itemization'!$H$26:$H$92,$A13,'3 Receipt itemization'!$N$26:$N$92,$I$4) -> 0 | J13: =SUMIFS('3 Receipt itemization'!$D$26:$D$92,'3 Receipt itemization'!$H$26:$H$92,$A13,'3 Receipt itemization'!$N$26:$N$92,$J$4) -> 0 | K13: =SUMIFS('3 Receipt itemization'!$D$26:$D$92,'3 Receipt itemization'!$H$26:$H$92,$A13,'3 Receipt itemization'!$N$26:$N$92,K$4) -> 0 | L13: =SUMIFS('3 Receipt itemization'!$D$26:$D$92,'3 Receipt itemization'!$H$26:$H$92,$A13,'3 Receipt itemization'!$N$26:$N$92,L$4) -> 0 | M13: =SUMIFS('3 Receipt itemization'!$D$26:$D$92,'3 Receipt itemization'!$H$26:$H$92,$A13,'3 Receipt itemization'!$N$26:$N$92,M$4) -> 0 | N13: =SUMIFS('3 Receipt itemization'!$D$26:$D$92,'3 Receipt itemization'!$H$26:$H$92,$A13,'3 Receipt itemization'!$N$26:$N$92,$N$4) -> 0 | O13: =SUMIFS('3 Receipt itemization'!$D$26:$D$92,'3 Receipt itemization'!$H$26:$H$92,$A13,'3 Receipt itemization'!$N$26:$N$92,$O$4) -> 0 | P13: =SUMIFS('3 Receipt itemization'!$D$26:$D$92,'3 Receipt itemization'!$H$26:$H$92,$A13,'3 Receipt itemization'!$N$26:$N$92,P$4) -> 0 | Q13: =SUMIFS('3 Receipt itemization'!$D$26:$D$92,'3 Receipt itemization'!$H$26:$H$92,$A13,'3 Receipt itemization'!$N$26:$N$92,$Q$4) -> 0 | R13: =SUMIFS('3 Receipt itemization'!$D$26:$D$92,'3 Receipt itemization'!$H$26:$H$92,$A13,'3 Receipt itemization'!$N$26:$N$92,$R$4) -> 0 | S13: =SUMIFS('3 Receipt itemization'!$D$26:$D$92,'3 Receipt itemization'!$H$26:$H$92,$A13,'3 Receipt itemization'!$N$26:$N$92,$S$4) -> 0 | T13: =SUMIFS('3 Receipt itemization'!$D$26:$D$92,'3 Receipt itemization'!$H$26:$H$92,$A13,'3 Receipt itemization'!$N$26:$N$92,$T$4) -> 0 | U13: =SUMIFS('3 Receipt itemization'!$D$26:$D$92,'3 Receipt itemization'!$H$26:$H$92,$A13,'3 Receipt itemization'!$N$26:$N$92,$U$4) -> 0 | V13: =SUMIFS('3 Receipt itemization'!$D$26:$D$92,'3 Receipt itemization'!$H$26:$H$92,$A13,'3 Receipt itemization'!$N$26:$N$92,$V$4) -> 0 | W13: =SUMIFS('3 Receipt itemization'!$D$26:$D$92,'3 Receipt itemization'!$H$26:$H$92,$A13,'3 Receipt itemization'!$N$26:$N$92,$W$4) -> 0 | X13: =SUMIFS('3 Receipt itemization'!$D$26:$D$92,'3 Receipt itemization'!$H$26:$H$92,$A13,'3 Receipt itemization'!$N$26:$N$92,$X$4) -> 0 | Y13: =SUMIFS('3 Receipt itemization'!$D$26:$D$92,'3 Receipt itemization'!$H$26:$H$92,$A13,'3 Receipt itemization'!$N$26:$N$92,$Y$4) -> 0 | Z13: =SUMIFS('3 Receipt itemization'!$D$26:$D$92,'3 Receipt itemization'!$H$26:$H$92,$A13,'3 Receipt itemization'!$N$26:$N$92,$Z$4) -> 0 | AA13: =SUMIFS('3 Receipt itemization'!$D$26:$D$92,'3 Receipt itemization'!$H$26:$H$92,$A13,'3 Receipt itemization'!$N$26:$N$92,$AA$4) -> 0 | AB13: =SUMIFS('3 Receipt itemization'!$D$26:$D$92,'3 Receipt itemization'!$H$26:$H$92,$A13,'3 Receipt itemization'!$N$26:$N$92,"") -> 0 | AD13: ='FIS accounts'!A9 -> 0
A14: Accomodation: USA / International | B14: 84__020 | E14: =SUMIF('3 Receipt itemization'!$H$26:$H$92,A14,'3 Receipt itemization'!$D$26:$D$92) -> 0 | G14: E0 | I14: =SUMIFS('3 Receipt itemization'!$D$26:$D$92,'3 Receipt itemization'!$H$26:$H$92,$A14,'3 Receipt itemization'!$N$26:$N$92,$I$4) -> 0 | J14: =SUMIFS('3 Receipt itemization'!$D$26:$D$92,'3 Receipt itemization'!$H$26:$H$92,$A14,'3 Receipt itemization'!$N$26:$N$92,$J$4) -> 0 | K14: =SUMIFS('3 Receipt itemization'!$D$26:$D$92,'3 Receipt itemization'!$H$26:$H$92,$A14,'3 Receipt itemization'!$N$26:$N$92,K$4) -> 0 | L14: =SUMIFS('3 Receipt itemization'!$D$26:$D$92,'3 Receipt itemization'!$H$26:$H$92,$A14,'3 Receipt itemization'!$N$26:$N$92,L$4) -> 0 | M14: =SUMIFS('3 Receipt itemization'!$D$26:$D$92,'3 Receipt itemization'!$H$26:$H$92,$A14,'3 Receipt itemization'!$N$26:$N$92,M$4) -> 0 | N14: =SUMIFS('3 Receipt itemization'!$D$26:$D$92,'3 Receipt itemization'!$H$26:$H$92,$A14,'3 Receipt itemization'!$N$26:$N$92,$N$4) -> 0 | O14: =SUMIFS('3 Receipt itemization'!$D$26:$D$92,'3 Receipt itemization'!$H$26:$H$92,$A14,'3 Receipt itemization'!$N$26:$N$92,$O$4) -> 0 | P14: =SUMIFS('3 Receipt itemization'!$D$26:$D$92,'3 Receipt itemization'!$H$26:$H$92,$A14,'3 Receipt itemization'!$N$26:$N$92,P$4) -> 0 | Q14: =SUMIFS('3 Receipt itemization'!$D$26:$D$92,'3 Receipt itemization'!$H$26:$H$92,$A14,'3 Receipt itemization'!$N$26:$N$92,$Q$4) -> 0 | R14: =SUMIFS('3 Receipt itemization'!$D$26:$D$92,'3 Receipt itemization'!$H$26:$H$92,$A14,'3 Receipt itemization'!$N$26:$N$92,$R$4) -> 0 | S14: =SUMIFS('3 Receipt itemization'!$D$26:$D$92,'3 Receipt itemization'!$H$26:$H$92,$A14,'3 Receipt itemization'!$N$26:$N$92,$S$4) -> 0 | T14: =SUMIFS('3 Receipt itemization'!$D$26:$D$92,'3 Receipt itemization'!$H$26:$H$92,$A14,'3 Receipt itemization'!$N$26:$N$92,$T$4) -> 0 | U14: =SUMIFS('3 Receipt itemization'!$D$26:$D$92,'3 Receipt itemization'!$H$26:$H$92,$A14,'3 Receipt itemization'!$N$26:$N$92,$U$4) -> 0 | V14: =SUMIFS('3 Receipt itemization'!$D$26:$D$92,'3 Receipt itemization'!$H$26:$H$92,$A14,'3 Receipt itemization'!$N$26:$N$92,$V$4) -> 0 | W14: =SUMIFS('3 Receipt itemization'!$D$26:$D$92,'3 Receipt itemization'!$H$26:$H$92,$A14,'3 Receipt itemization'!$N$26:$N$92,$W$4) -> 0 | X14: =SUMIFS('3 Receipt itemization'!$D$26:$D$92,'3 Receipt itemization'!$H$26:$H$92,$A14,'3 Receipt itemization'!$N$26:$N$92,$X$4) -> 0 | Y14: =SUMIFS('3 Receipt itemization'!$D$26:$D$92,'3 Receipt itemization'!$H$26:$H$92,$A14,'3 Receipt itemization'!$N$26:$N$92,$Y$4) -> 0 | Z14: =SUMIFS('3 Receipt itemization'!$D$26:$D$92,'3 Receipt itemization'!$H$26:$H$92,$A14,'3 Receipt itemization'!$N$26:$N$92,$Z$4) -> 0 | AA14: =SUMIFS('3 Receipt itemization'!$D$26:$D$92,'3 Receipt itemization'!$H$26:$H$92,$A14,'3 Receipt itemization'!$N$26:$N$92,$AA$4) -> 0 | AB14: =SUMIFS('3 Receipt itemization'!$D$26:$D$92,'3 Receipt itemization'!$H$26:$H$92,$A14,'3 Receipt itemization'!$N$26:$N$92,"") -> 0 | AD14: ='FIS accounts'!A10 -> 0
A15: Rail/Bus travel within Canada | B15: 84__050 | E15: =SUMIF('3 Receipt itemization'!$H$26:$H$92,A15,'3 Receipt itemization'!$D$26:$D$92) -> 0 | G15: ER | I15: =SUMIFS('3 Receipt itemization'!$D$26:$D$92,'3 Receipt itemization'!$H$26:$H$92,$A15,'3 Receipt itemization'!$N$26:$N$92,$I$4) -> 0 | J15: =SUMIFS('3 Receipt itemization'!$D$26:$D$92,'3 Receipt itemization'!$H$26:$H$92,$A15,'3 Receipt itemization'!$N$26:$N$92,$J$4) -> 0 | K15: =SUMIFS('3 Receipt itemization'!$D$26:$D$92,'3 Receipt itemization'!$H$26:$H$92,$A15,'3 Receipt itemization'!$N$26:$N$92,K$4) -> 0 | L15: =SUMIFS('3 Receipt itemization'!$D$26:$D$92,'3 Receipt itemization'!$H$26:$H$92,$A15,'3 Receipt itemization'!$N$26:$N$92,L$4) -> 0 | M15: =SUMIFS('3 Receipt itemization'!$D$26:$D$92,'3 Receipt itemization'!$H$26:$H$92,$A15,'3 Receipt itemization'!$N$26:$N$92,M$4) -> 0 | N15: =SUMIFS('3 Receipt itemization'!$D$26:$D$92,'3 Receipt itemization'!$H$26:$H$92,$A15,'3 Receipt itemization'!$N$26:$N$92,$N$4) -> 0 | O15: =SUMIFS('3 Receipt itemization'!$D$26:$D$92,'3 Receipt itemization'!$H$26:$H$92,$A15,'3 Receipt itemization'!$N$26:$N$92,$O$4) -> 0 | P15: =SUMIFS('3 Receipt itemization'!$D$26:$D$92,'3 Receipt itemization'!$H$26:$H$92,$A15,'3 Receipt itemization'!$N$26:$N$92,P$4) -> 0 | Q15: =SUMIFS('3 Receipt itemization'!$D$26:$D$92,'3 Receipt itemization'!$H$26:$H$92,$A15,'3 Receipt itemization'!$N$26:$N$92,$Q$4) -> 0 | R15: =SUMIFS('3 Receipt itemization'!$D$26:$D$92,'3 Receipt itemization'!$H$26:$H$92,$A15,'3 Receipt itemization'!$N$26:$N$92,$R$4) -> 0 | S15: =SUMIFS('3 Receipt itemization'!$D$26:$D$92,'3 Receipt itemization'!$H$26:$H$92,$A15,'3 Receipt itemization'!$N$26:$N$92,$S$4) -> 0 | T15: =SUMIFS('3 Receipt itemization'!$D$26:$D$92,'3 Receipt itemization'!$H$26:$H$92,$A15,'3 Receipt itemization'!$N$26:$N$92,$T$4) -> 0 | U15: =SUMIFS('3 Receipt itemization'!$D$26:$D$92,'3 Receipt itemization'!$H$26:$H$92,$A15,'3 Receipt itemization'!$N$26:$N$92,$U$4) -> 0 | V15: =SUMIFS('3 Receipt itemization'!$D$26:$D$92,'3 Receipt itemization'!$H$26:$H$92,$A15,'3 Receipt itemization'!$N$26:$N$92,$V$4) -> 0 | W15: =SUMIFS('3 Receipt itemization'!$D$26:$D$92,'3 Receipt itemization'!$H$26:$H$92,$A15,'3 Receipt itemization'!$N$26:$N$92,$W$4) -> 0 | X15: =SUMIFS('3 Receipt itemization'!$D$26:$D$92,'3 Receipt itemization'!$H$26:$H$92,$A15,'3 Receipt itemization'!$N$26:$N$92,$X$4) -> 0 | Y15: =SUMIFS('3 Receipt itemization'!$D$26:$D$92,'3 Receipt itemization'!$H$26:$H$92,$A15,'3 Receipt itemization'!$N$26:$N$92,$Y$4) -> 0 | Z15: =SUMIFS('3 Receipt itemization'!$D$26:$D$92,'3 Receipt itemization'!$H$26:$H$92,$A15,'3 Receipt itemization'!$N$26:$N$92,$Z$4) -> 0 | AA15: =SUMIFS('3 Receipt itemization'!$D$26:$D$92,'3 Receipt itemization'!$H$26:$H$92,$A15,'3 Receipt itemization'!$N$26:$N$92,$AA$4) -> 0 | AB15: =SUMIFS('3 Receipt itemization'!$D$26:$D$92,'3 Receipt itemization'!$H$26:$H$92,$A15,'3 Receipt itemization'!$N$26:$N$92,"") -> 0 | AD15: ='FIS accounts'!A11 -> 0
A16: Rail/bus travel outside Canada | B16: 84__050 | E16: =SUMIF('3 Receipt itemization'!$H$26:$H$92,A16,'3 Receipt itemization'!$D$26:$D$92) -> 0 | G16: E0 | I16: =SUMIFS('3 Receipt itemization'!$D$26:$D$92,'3 Receipt itemization'!$H$26:$H$92,$A16,'3 Receipt itemization'!$N$26:$N$92,$I$4) -> 0 | J16: =SUMIFS('3 Receipt itemization'!$D$26:$D$92,'3 Receipt itemization'!$H$26:$H$92,$A16,'3 Receipt itemization'!$N$26:$N$92,$J$4) -> 0 | K16: =SUMIFS('3 Receipt itemization'!$D$26:$D$92,'3 Receipt itemization'!$H$26:$H$92,$A16,'3 Receipt itemization'!$N$26:$N$92,K$4) -> 0 | L16: =SUMIFS('3 Receipt itemization'!$D$26:$D$92,'3 Receipt itemization'!$H$26:$H$92,$A16,'3 Receipt itemization'!$N$26:$N$92,L$4) -> 0 | M16: =SUMIFS('3 Receipt itemization'!$D$26:$D$92,'3 Receipt itemization'!$H$26:$H$92,$A16,'3 Receipt itemization'!$N$26:$N$92,M$4) -> 0 | N16: =SUMIFS('3 Receipt itemization'!$D$26:$D$92,'3 Receipt itemization'!$H$26:$H$92,$A16,'3 Receipt itemization'!$N$26:$N$92,$N$4) -> 0 | O16: =SUMIFS('3 Receipt itemization'!$D$26:$D$92,'3 Receipt itemization'!$H$26:$H$92,$A16,'3 Receipt itemization'!$N$26:$N$92,$O$4) -> 0 | P16: =SUMIFS('3 Receipt itemization'!$D$26:$D$92,'3 Receipt itemization'!$H$26:$H$92,$A16,'3 Receipt itemization'!$N$26:$N$92,P$4) -> 0 | Q16: =SUMIFS('3 Receipt itemization'!$D$26:$D$92,'3 Receipt itemization'!$H$26:$H$92,$A16,'3 Receipt itemization'!$N$26:$N$92,$Q$4) -> 0 | R16: =SUMIFS('3 Receipt itemization'!$D$26:$D$92,'3 Receipt itemization'!$H$26:$H$92,$A16,'3 Receipt itemization'!$N$26:$N$92,$R$4) -> 0 | S16: =SUMIFS('3 Receipt itemization'!$D$26:$D$92,'3 Receipt itemization'!$H$26:$H$92,$A16,'3 Receipt itemization'!$N$26:$N$92,$S$4) -> 0 | T16: =SUMIFS('3 Receipt itemization'!$D$26:$D$92,'3 Receipt itemization'!$H$26:$H$92,$A16,'3 Receipt itemization'!$N$26:$N$92,$T$4) -> 0 | U16: =SUMIFS('3 Receipt itemization'!$D$26:$D$92,'3 Receipt itemization'!$H$26:$H$92,$A16,'3 Receipt itemization'!$N$26:$N$92,$U$4) -> 0 | V16: =SUMIFS('3 Receipt itemization'!$D$26:$D$92,'3 Receipt itemization'!$H$26:$H$92,$A16,'3 Receipt itemization'!$N$26:$N$92,$V$4) -> 0 | W16: =SUMIFS('3 Receipt itemization'!$D$26:$D$92,'3 Receipt itemization'!$H$26:$H$92,$A16,'3 Receipt itemization'!$N$26:$N$92,$W$4) -> 0 | X16: =SUMIFS('3 Receipt itemization'!$D$26:$D$92,'3 Receipt itemization'!$H$26:$H$92,$A16,'3 Receipt itemization'!$N$26:$N$92,$X$4) -> 0 | Y16: =SUMIFS('3 Receipt itemization'!$D$26:$D$92,'3 Receipt itemization'!$H$26:$H$92,$A16,'3 Receipt itemization'!$N$26:$N$92,$Y$4) -> 0 | Z16: =SUMIFS('3 Receipt itemization'!$D$26:$D$92,'3 Receipt itemization'!$H$26:$H$92,$A16,'3 Receipt itemization'!$N$26:$N$92,$Z$4) -> 0 | AA16: =SUMIFS('3 Receipt itemization'!$D$26:$D$92,'3 Receipt itemization'!$H$26:$H$92,$A16,'3 Receipt itemization'!$N$26:$N$92,$AA$4) -> 0 | AB16: =SUMIFS('3 Receipt itemization'!$D$26:$D$92,'3 Receipt itemization'!$H$26:$H$92,$A16,'3 Receipt itemization'!$N$26:$N$92,"") -> 0 | AD16: ='FIS accounts'!A12 -> 0
A17: Public Transit | B17: 84__055 | E17: =SUMIF('3 Receipt itemization'!$H$26:$H$92,A17,'3 Receipt itemization'!$D$26:$D$92) -> 0 | G17: E0 | I17: =SUMIFS('3 Receipt itemization'!$D$26:$D$92,'3 Receipt itemization'!$H$26:$H$92,$A17,'3 Receipt itemization'!$N$26:$N$92,$I$4) -> 0 | J17: =SUMIFS('3 Receipt itemization'!$D$26:$D$92,'3 Receipt itemization'!$H$26:$H$92,$A17,'3 Receipt itemization'!$N$26:$N$92,$J$4) -> 0 | K17: =SUMIFS('3 Receipt itemization'!$D$26:$D$92,'3 Receipt itemization'!$H$26:$H$92,$A17,'3 Receipt itemization'!$N$26:$N$92,K$4) -> 0 | L17: =SUMIFS('3 Receipt itemization'!$D$26:$D$92,'3 Receipt itemization'!$H$26:$H$92,$A17,'3 Receipt itemization'!$N$26:$N$92,L$4) -> 0 | M17: =SUMIFS('3 Receipt itemization'!$D$26:$D$92,'3 Receipt itemization'!$H$26:$H$92,$A17,'3 Receipt itemization'!$N$26:$N$92,M$4) -> 0 | N17: =SUMIFS('3 Receipt itemization'!$D$26:$D$92,'3 Receipt itemization'!$H$26:$H$92,$A17,'3 Receipt itemization'!$N$26:$N$92,$N$4) -> 0 | O17: =SUMIFS('3 Receipt itemization'!$D$26:$D$92,'3 Receipt itemization'!$H$26:$H$92,$A17,'3 Receipt itemization'!$N$26:$N$92,$O$4) -> 0 | P17: =SUMIFS('3 Receipt itemization'!$D$26:$D$92,'3 Receipt itemization'!$H$26:$H$92,$A17,'3 Receipt itemization'!$N$26:$N$92,P$4) -> 0 | Q17: =SUMIFS('3 Receipt itemization'!$D$26:$D$92,'3 Receipt itemization'!$H$26:$H$92,$A17,'3 Receipt itemization'!$N$26:$N$92,$Q$4) -> 0 | R17: =SUMIFS('3 Receipt itemization'!$D$26:$D$92,'3 Receipt itemization'!$H$26:$H$92,$A17,'3 Receipt itemization'!$N$26:$N$92,$R$4) -> 0 | S17: =SUMIFS('3 Receipt itemization'!$D$26:$D$92,'3 Receipt itemization'!$H$26:$H$92,$A17,'3 Receipt itemization'!$N$26:$N$92,$S$4) -> 0 | T17: =SUMIFS('3 Receipt itemization'!$D$26:$D$92,'3 Receipt itemization'!$H$26:$H$92,$A17,'3 Receipt itemization'!$N$26:$N$92,$T$4) -> 0 | U17: =SUMIFS('3 Receipt itemization'!$D$26:$D$92,'3 Receipt itemization'!$H$26:$H$92,$A17,'3 Receipt itemization'!$N$26:$N$92,$U$4) -> 0 | V17: =SUMIFS('3 Receipt itemization'!$D$26:$D$92,'3 Receipt itemization'!$H$26:$H$92,$A17,'3 Receipt itemization'!$N$26:$N$92,$V$4) -> 0 | W17: =SUMIFS('3 Receipt itemization'!$D$26:$D$92,'3 Receipt itemization'!$H$26:$H$92,$A17,'3 Receipt itemization'!$N$26:$N$92,$W$4) -> 0 | X17: =SUMIFS('3 Receipt itemization'!$D$26:$D$92,'3 Receipt itemization'!$H$26:$H$92,$A17,'3 Receipt itemization'!$N$26:$N$92,$X$4) -> 0 | Y17: =SUMIFS('3 Receipt itemization'!$D$26:$D$92,'3 Receipt itemization'!$H$26:$H$92,$A17,'3 Receipt itemization'!$N$26:$N$92,$Y$4) -> 0 | Z17: =SUMIFS('3 Receipt itemization'!$D$26:$D$92,'3 Receipt itemization'!$H$26:$H$92,$A17,'3 Receipt itemization'!$N$26:$N$92,$Z$4) -> 0 | AA17: =SUMIFS('3 Receipt itemization'!$D$26:$D$92,'3 Receipt itemization'!$H$26:$H$92,$A17,'3 Receipt itemization'!$N$26:$N$92,$AA$4) -> 0 | AB17: =SUMIFS('3 Receipt itemization'!$D$26:$D$92,'3 Receipt itemization'!$H$26:$H$92,$A17,'3 Receipt itemization'!$N$26:$N$92,"") -> 0 | AD17: ='FIS accounts'!A13 -> 0
A18: Car rental: ON (13%HST) | B18: 84__060 | E18: =SUMIF('3 Receipt itemization'!$H$26:$H$92,A18,'3 Receipt itemization'!$D$26:$D$92) -> 0 | G18: ER | I18: =SUMIFS('3 Receipt itemization'!$D$26:$D$92,'3 Receipt itemization'!$H$26:$H$92,$A18,'3 Receipt itemization'!$N$26:$N$92,$I$4) -> 0 | J18: =SUMIFS('3 Receipt itemization'!$D$26:$D$92,'3 Receipt itemization'!$H$26:$H$92,$A18,'3 Receipt itemization'!$N$26:$N$92,$J$4) -> 0 | K18: =SUMIFS('3 Receipt itemization'!$D$26:$D$92,'3 Receipt itemization'!$H$26:$H$92,$A18,'3 Receipt itemization'!$N$26:$N$92,K$4) -> 0 | L18: =SUMIFS('3 Receipt itemization'!$D$26:$D$92,'3 Receipt itemization'!$H$26:$H$92,$A18,'3 Receipt itemization'!$N$26:$N$92,L$4) -> 0 | M18: =SUMIFS('3 Receipt itemization'!$D$26:$D$92,'3 Receipt itemization'!$H$26:$H$92,$A18,'3 Receipt itemization'!$N$26:$N$92,M$4) -> 0 | N18: =SUMIFS('3 Receipt itemization'!$D$26:$D$92,'3 Receipt itemization'!$H$26:$H$92,$A18,'3 Receipt itemization'!$N$26:$N$92,$N$4) -> 0 | O18: =SUMIFS('3 Receipt itemization'!$D$26:$D$92,'3 Receipt itemization'!$H$26:$H$92,$A18,'3 Receipt itemization'!$N$26:$N$92,$O$4) -> 0 | P18: =SUMIFS('3 Receipt itemization'!$D$26:$D$92,'3 Receipt itemization'!$H$26:$H$92,$A18,'3 Receipt itemization'!$N$26:$N$92,P$4) -> 0 | Q18: =SUMIFS('3 Receipt itemization'!$D$26:$D$92,'3 Receipt itemization'!$H$26:$H$92,$A18,'3 Receipt itemization'!$N$26:$N$92,$Q$4) -> 0 | R18: =SUMIFS('3 Receipt itemization'!$D$26:$D$92,'3 Receipt itemization'!$H$26:$H$92,$A18,'3 Receipt itemization'!$N$26:$N$92,$R$4) -> 0 | S18: =SUMIFS('3 Receipt itemization'!$D$26:$D$92,'3 Receipt itemization'!$H$26:$H$92,$A18,'3 Receipt itemization'!$N$26:$N$92,$S$4) -> 0 | T18: =SUMIFS('3 Receipt itemization'!$D$26:$D$92,'3 Receipt itemization'!$H$26:$H$92,$A18,'3 Receipt itemization'!$N$26:$N$92,$T$4) -> 0 | U18: =SUMIFS('3 Receipt itemization'!$D$26:$D$92,'3 Receipt itemization'!$H$26:$H$92,$A18,'3 Receipt itemization'!$N$26:$N$92,$U$4) -> 0 | V18: =SUMIFS('3 Receipt itemization'!$D$26:$D$92,'3 Receipt itemization'!$H$26:$H$92,$A18,'3 Receipt itemization'!$N$26:$N$92,$V$4) -> 0 | W18: =SUMIFS('3 Receipt itemization'!$D$26:$D$92,'3 Receipt itemization'!$H$26:$H$92,$A18,'3 Receipt itemization'!$N$26:$N$92,$W$4) -> 0 | X18: =SUMIFS('3 Receipt itemization'!$D$26:$D$92,'3 Receipt itemization'!$H$26:$H$92,$A18,'3 Receipt itemization'!$N$26:$N$92,$X$4) -> 0 | Y18: =SUMIFS('3 Receipt itemization'!$D$26:$D$92,'3 Receipt itemization'!$H$26:$H$92,$A18,'3 Receipt itemization'!$N$26:$N$92,$Y$4) -> 0 | Z18: =SUMIFS('3 Receipt itemization'!$D$26:$D$92,'3 Receipt itemization'!$H$26:$H$92,$A18,'3 Receipt itemization'!$N$26:$N$92,$Z$4) -> 0 | AA18: =SUMIFS('3 Receipt itemization'!$D$26:$D$92,'3 Receipt itemization'!$H$26:$H$92,$A18,'3 Receipt itemization'!$N$26:$N$92,$AA$4) -> 0 | AB18: =SUMIFS('3 Receipt itemization'!$D$26:$D$92,'3 Receipt itemization'!$H$26:$H$92,$A18,'3 Receipt itemization'!$N$26:$N$92,"") -> 0 | AD18: ='FIS accounts'!A14 -> 0
A19: Car rental: PEI, NS, NF, NB (15% HST) | B19: 84__060 | E19: =SUMIF('3 Receipt itemization'!$H$26:$H$92,A19,'3 Receipt itemization'!$D$26:$D$92) -> 0 | G19: EN | I19: =SUMIFS('3 Receipt itemization'!$D$26:$D$92,'3 Receipt itemization'!$H$26:$H$92,$A19,'3 Receipt itemization'!$N$26:$N$92,$I$4) -> 0 | J19: =SUMIFS('3 Receipt itemization'!$D$26:$D$92,'3 Receipt itemization'!$H$26:$H$92,$A19,'3 Receipt itemization'!$N$26:$N$92,$J$4) -> 0 | K19: =SUMIFS('3 Receipt itemization'!$D$26:$D$92,'3 Receipt itemization'!$H$26:$H$92,$A19,'3 Receipt itemization'!$N$26:$N$92,K$4) -> 0 | L19: =SUMIFS('3 Receipt itemization'!$D$26:$D$92,'3 Receipt itemization'!$H$26:$H$92,$A19,'3 Receipt itemization'!$N$26:$N$92,L$4) -> 0 | M19: =SUMIFS('3 Receipt itemization'!$D$26:$D$92,'3 Receipt itemization'!$H$26:$H$92,$A19,'3 Receipt itemization'!$N$26:$N$92,M$4) -> 0 | N19: =SUMIFS('3 Receipt itemization'!$D$26:$D$92,'3 Receipt itemization'!$H$26:$H$92,$A19,'3 Receipt itemization'!$N$26:$N$92,$N$4) -> 0 | O19: =SUMIFS('3 Receipt itemization'!$D$26:$D$92,'3 Receipt itemization'!$H$26:$H$92,$A19,'3 Receipt itemization'!$N$26:$N$92,$O$4) -> 0 | P19: =SUMIFS('3 Receipt itemization'!$D$26:$D$92,'3 Receipt itemization'!$H$26:$H$92,$A19,'3 Receipt itemization'!$N$26:$N$92,P$4) -> 0 | Q19: =SUMIFS('3 Receipt itemization'!$D$26:$D$92,'3 Receipt itemization'!$H$26:$H$92,$A19,'3 Receipt itemization'!$N$26:$N$92,$Q$4) -> 0 | R19: =SUMIFS('3 Receipt itemization'!$D$26:$D$92,'3 Receipt itemization'!$H$26:$H$92,$A19,'3 Receipt itemization'!$N$26:$N$92,$R$4) -> 0 | S19: =SUMIFS('3 Receipt itemization'!$D$26:$D$92,'3 Receipt itemization'!$H$26:$H$92,$A19,'3 Receipt itemization'!$N$26:$N$92,$S$4) -> 0 | T19: =SUMIFS('3 Receipt itemization'!$D$26:$D$92,'3 Receipt itemization'!$H$26:$H$92,$A19,'3 Receipt itemization'!$N$26:$N$92,$T$4) -> 0 | U19: =SUMIFS('3 Receipt itemization'!$D$26:$D$92,'3 Receipt itemization'!$H$26:$H$92,$A19,'3 Receipt itemization'!$N$26:$N$92,$U$4) -> 0 | V19: =SUMIFS('3 Receipt itemization'!$D$26:$D$92,'3 Receipt itemization'!$H$26:$H$92,$A19,'3 Receipt itemization'!$N$26:$N$92,$V$4) -> 0 | W19: =SUMIFS('3 Receipt itemization'!$D$26:$D$92,'3 Receipt itemization'!$H$26:$H$92,$A19,'3 Receipt itemization'!$N$26:$N$92,$W$4) -> 0 | X19: =SUMIFS('3 Receipt itemization'!$D$26:$D$92,'3 Receipt itemization'!$H$26:$H$92,$A19,'3 Receipt itemization'!$N$26:$N$92,$X$4) -> 0 | Y19: =SUMIFS('3 Receipt itemization'!$D$26:$D$92,'3 Receipt itemization'!$H$26:$H$92,$A19,'3 Receipt itemization'!$N$26:$N$92,$Y$4) -> 0 | Z19: =SUMIFS('3 Receipt itemization'!$D$26:$D$92,'3 Receipt itemization'!$H$26:$H$92,$A19,'3 Receipt itemization'!$N$26:$N$92,$Z$4) -> 0 | AA19: =SUMIFS('3 Receipt itemization'!$D$26:$D$92,'3 Receipt itemization'!$H$26:$H$92,$A19,'3 Receipt itemization'!$N$26:$N$92,$AA$4) -> 0 | AB19: =SUMIFS('3 Receipt itemization'!$D$26:$D$92,'3 Receipt itemization'!$H$26:$H$92,$A19,'3 Receipt itemization'!$N$26:$N$92,"") -> 0 | AD19: ='FIS accounts'!A15 -> 0
A20: Car rental: all other provinces / territories | B20: 84__060 | E20: =SUMIF('3 Receipt itemization'!$H$26:$H$92,A20,'3 Receipt itemization'!$D$26:$D$92) -> 0 | G20: EE | I20: =SUMIFS('3 Receipt itemization'!$D$26:$D$92,'3 Receipt itemization'!$H$26:$H$92,$A20,'3 Receipt itemization'!$N$26:$N$92,$I$4) -> 0 | J20: =SUMIFS('3 Receipt itemization'!$D$26:$D$92,'3 Receipt itemization'!$H$26:$H$92,$A20,'3 Receipt itemization'!$N$26:$N$92,$J$4) -> 0 | K20: =SUMIFS('3 Receipt itemization'!$D$26:$D$92,'3 Receipt itemization'!$H$26:$H$92,$A20,'3 Receipt itemization'!$N$26:$N$92,K$4) -> 0 | L20: =SUMIFS('3 Receipt itemization'!$D$26:$D$92,'3 Receipt itemization'!$H$26:$H$92,$A20,'3 Receipt itemization'!$N$26:$N$92,L$4) -> 0 | M20: =SUMIFS('3 Receipt itemization'!$D$26:$D$92,'3 Receipt itemization'!$H$26:$H$92,$A20,'3 Receipt itemization'!$N$26:$N$92,M$4) -> 0 | N20: =SUMIFS('3 Receipt itemization'!$D$26:$D$92,'3 Receipt itemization'!$H$26:$H$92,$A20,'3 Receipt itemization'!$N$26:$N$92,$N$4) -> 0 | O20: =SUMIFS('3 Receipt itemization'!$D$26:$D$92,'3 Receipt itemization'!$H$26:$H$92,$A20,'3 Receipt itemization'!$N$26:$N$92,$O$4) -> 0 | P20: =SUMIFS('3 Receipt itemization'!$D$26:$D$92,'3 Receipt itemization'!$H$26:$H$92,$A20,'3 Receipt itemization'!$N$26:$N$92,P$4) -> 0 | Q20: =SUMIFS('3 Receipt itemization'!$D$26:$D$92,'3 Receipt itemization'!$H$26:$H$92,$A20,'3 Receipt itemization'!$N$26:$N$92,$Q$4) -> 0 | R20: =SUMIFS('3 Receipt itemization'!$D$26:$D$92,'3 Receipt itemization'!$H$26:$H$92,$A20,'3 Receipt itemization'!$N$26:$N$92,$R$4) -> 0 | S20: =SUMIFS('3 Receipt itemization'!$D$26:$D$92,'3 Receipt itemization'!$H$26:$H$92,$A20,'3 Receipt itemization'!$N$26:$N$92,$S$4) -> 0 | T20: =SUMIFS('3 Receipt itemization'!$D$26:$D$92,'3 Receipt itemization'!$H$26:$H$92,$A20,'3 Receipt itemization'!$N$26:$N$92,$T$4) -> 0 | U20: =SUMIFS('3 Receipt itemization'!$D$26:$D$92,'3 Receipt itemization'!$H$26:$H$92,$A20,'3 Receipt itemization'!$N$26:$N$92,$U$4) -> 0 | V20: =SUMIFS('3 Receipt itemization'!$D$26:$D$92,'3 Receipt itemization'!$H$26:$H$92,$A20,'3 Receipt itemization'!$N$26:$N$92,$V$4) -> 0 | W20: =SUMIFS('3 Receipt itemization'!$D$26:$D$92,'3 Receipt itemization'!$H$26:$H$92,$A20,'3 Receipt itemization'!$N$26:$N$92,$W$4) -> 0 | X20: =SUMIFS('3 Receipt itemization'!$D$26:$D$92,'3 Receipt itemization'!$H$26:$H$92,$A20,'3 Receipt itemization'!$N$26:$N$92,$X$4) -> 0 | Y20: =SUMIFS('3 Receipt itemization'!$D$26:$D$92,'3 Receipt itemization'!$H$26:$H$92,$A20,'3 Receipt itemization'!$N$26:$N$92,$Y$4) -> 0 | Z20: =SUMIFS('3 Receipt itemization'!$D$26:$D$92,'3 Receipt itemization'!$H$26:$H$92,$A20,'3 Receipt itemization'!$N$26:$N$92,$Z$4) -> 0 | AA20: =SUMIFS('3 Receipt itemization'!$D$26:$D$92,'3 Receipt itemization'!$H$26:$H$92,$A20,'3 Receipt itemization'!$N$26:$N$92,$AA$4) -> 0 | AB20: =SUMIFS('3 Receipt itemization'!$D$26:$D$92,'3 Receipt itemization'!$H$26:$H$92,$A20,'3 Receipt itemization'!$N$26:$N$92,"") -> 0 | AD20: ='FIS accounts'!A16 -> 0
A21: Car rental: USA / International | B21: 84__060 | E21: =SUMIF('3 Receipt itemization'!$H$26:$H$92,A21,'3 Receipt itemization'!$D$26:$D$92) -> 0 | G21: E0 | I21: =SUMIFS('3 Receipt itemization'!$D$26:$D$92,'3 Receipt itemization'!$H$26:$H$92,$A21,'3 Receipt itemization'!$N$26:$N$92,$I$4) -> 0 | J21: =SUMIFS('3 Receipt itemization'!$D$26:$D$92,'3 Receipt itemization'!$H$26:$H$92,$A21,'3 Receipt itemization'!$N$26:$N$92,$J$4) -> 0 | K21: =SUMIFS('3 Receipt itemization'!$D$26:$D$92,'3 Receipt itemization'!$H$26:$H$92,$A21,'3 Receipt itemization'!$N$26:$N$92,K$4) -> 0 | L21: =SUMIFS('3 Receipt itemization'!$D$26:$D$92,'3 Receipt itemization'!$H$26:$H$92,$A21,'3 Receipt itemization'!$N$26:$N$92,L$4) -> 0 | M21: =SUMIFS('3 Receipt itemization'!$D$26:$D$92,'3 Receipt itemization'!$H$26:$H$92,$A21,'3 Receipt itemization'!$N$26:$N$92,M$4) -> 0 | N21: =SUMIFS('3 Receipt itemization'!$D$26:$D$92,'3 Receipt itemization'!$H$26:$H$92,$A21,'3 Receipt itemization'!$N$26:$N$92,$N$4) -> 0 | O21: =SUMIFS('3 Receipt itemization'!$D$26:$D$92,'3 Receipt itemization'!$H$26:$H$92,$A21,'3 Receipt itemization'!$N$26:$N$92,$O$4) -> 0 | P21: =SUMIFS('3 Receipt itemization'!$D$26:$D$92,'3 Receipt itemization'!$H$26:$H$92,$A21,'3 Receipt itemization'!$N$26:$N$92,P$4) -> 0 | Q21: =SUMIFS('3 Receipt itemization'!$D$26:$D$92,'3 Receipt itemization'!$H$26:$H$92,$A21,'3 Receipt itemization'!$N$26:$N$92,$Q$4) -> 0 | R21: =SUMIFS('3 Receipt itemization'!$D$26:$D$92,'3 Receipt itemization'!$H$26:$H$92,$A21,'3 Receipt itemization'!$N$26:$N$92,$R$4) -> 0 | S21: =SUMIFS('3 Receipt itemization'!$D$26:$D$92,'3 Receipt itemization'!$H$26:$H$92,$A21,'3 Receipt itemization'!$N$26:$N$92,$S$4) -> 0 | T21: =SUMIFS('3 Receipt itemization'!$D$26:$D$92,'3 Receipt itemization'!$H$26:$H$92,$A21,'3 Receipt itemization'!$N$26:$N$92,$T$4) -> 0 | U21: =SUMIFS('3 Receipt itemization'!$D$26:$D$92,'3 Receipt itemization'!$H$26:$H$92,$A21,'3 Receipt itemization'!$N$26:$N$92,$U$4) -> 0 | V21: =SUMIFS('3 Receipt itemization'!$D$26:$D$92,'3 Receipt itemization'!$H$26:$H$92,$A21,'3 Receipt itemization'!$N$26:$N$92,$V$4) -> 0 | W21: =SUMIFS('3 Receipt itemization'!$D$26:$D$92,'3 Receipt itemization'!$H$26:$H$92,$A21,'3 Receipt itemization'!$N$26:$N$92,$W$4) -> 0 | X21: =SUMIFS('3 Receipt itemization'!$D$26:$D$92,'3 Receipt itemization'!$H$26:$H$92,$A21,'3 Receipt itemization'!$N$26:$N$92,$X$4) -> 0 | Y21: =SUMIFS('3 Receipt itemization'!$D$26:$D$92,'3 Receipt itemization'!$H$26:$H$92,$A21,'3 Receipt itemization'!$N$26:$N$92,$Y$4) -> 0 | Z21: =SUMIFS('3 Receipt itemization'!$D$26:$D$92,'3 Receipt itemization'!$H$26:$H$92,$A21,'3 Receipt itemization'!$N$26:$N$92,$Z$4) -> 0 | AA21: =SUMIFS('3 Receipt itemization'!$D$26:$D$92,'3 Receipt itemization'!$H$26:$H$92,$A21,'3 Receipt itemization'!$N$26:$N$92,$AA$4) -> 0 | AB21: =SUMIFS('3 Receipt itemization'!$D$26:$D$92,'3 Receipt itemization'!$H$26:$H$92,$A21,'3 Receipt itemization'!$N$26:$N$92,"") -> 0 | AD21: ='FIS accounts'!A17 -> 0
A22: HOSPITALITY / Business Meals in Toronto | B22: 836400 | E22: =SUMIF('3 Receipt itemization'!$H$26:$H$92,A22,'3 Receipt itemization'!$D$26:$D$92) -> 0 | G22: ER | I22: =SUMIFS('3 Receipt itemization'!$D$26:$D$92,'3 Receipt itemization'!$H$26:$H$92,$A22,'3 Receipt itemization'!$N$26:$N$92,$I$4) -> 0 | J22: =SUMIFS('3 Receipt itemization'!$D$26:$D$92,'3 Receipt itemization'!$H$26:$H$92,$A22,'3 Receipt itemization'!$N$26:$N$92,$J$4) -> 0 | K22: =SUMIFS('3 Receipt itemization'!$D$26:$D$92,'3 Receipt itemization'!$H$26:$H$92,$A22,'3 Receipt itemization'!$N$26:$N$92,K$4) -> 0 | L22: =SUMIFS('3 Receipt itemization'!$D$26:$D$92,'3 Receipt itemization'!$H$26:$H$92,$A22,'3 Receipt itemization'!$N$26:$N$92,L$4) -> 0 | M22: =SUMIFS('3 Receipt itemization'!$D$26:$D$92,'3 Receipt itemization'!$H$26:$H$92,$A22,'3 Receipt itemization'!$N$26:$N$92,M$4) -> 0 | N22: =SUMIFS('3 Receipt itemization'!$D$26:$D$92,'3 Receipt itemization'!$H$26:$H$92,$A22,'3 Receipt itemization'!$N$26:$N$92,$N$4) -> 0 | O22: =SUMIFS('3 Receipt itemization'!$D$26:$D$92,'3 Receipt itemization'!$H$26:$H$92,$A22,'3 Receipt itemization'!$N$26:$N$92,$O$4) -> 0 | P22: =SUMIFS('3 Receipt itemization'!$D$26:$D$92,'3 Receipt itemization'!$H$26:$H$92,$A22,'3 Receipt itemization'!$N$26:$N$92,P$4) -> 0 | Q22: =SUMIFS('3 Receipt itemization'!$D$26:$D$92,'3 Receipt itemization'!$H$26:$H$92,$A22,'3 Receipt itemization'!$N$26:$N$92,$Q$4) -> 0 | R22: =SUMIFS('3 Receipt itemization'!$D$26:$D$92,'3 Receipt itemization'!$H$26:$H$92,$A22,'3 Receipt itemization'!$N$26:$N$92,$R$4) -> 0 | S22: =SUMIFS('3 Receipt itemization'!$D$26:$D$92,'3 Receipt itemization'!$H$26:$H$92,$A22,'3 Receipt itemization'!$N$26:$N$92,$S$4) -> 0 | T22: =SUMIFS('3 Receipt itemization'!$D$26:$D$92,'3 Receipt itemization'!$H$26:$H$92,$A22,'3 Receipt itemization'!$N$26:$N$92,$T$4) -> 0 | U22: =SUMIFS('3 Receipt itemization'!$D$26:$D$92,'3 Receipt itemization'!$H$26:$H$92,$A22,'3 Receipt itemization'!$N$26:$N$92,$U$4) -> 0 | V22: =SUMIFS('3 Receipt itemization'!$D$26:$D$92,'3 Receipt itemization'!$H$26:$H$92,$A22,'3 Receipt itemization'!$N$26:$N$92,$V$4) -> 0 | W22: =SUMIFS('3 Receipt itemization'!$D$26:$D$92,'3 Receipt itemization'!$H$26:$H$92,$A22,'3 Receipt itemization'!$N$26:$N$92,$W$4) -> 0 | X22: =SUMIFS('3 Receipt itemization'!$D$26:$D$92,'3 Receipt itemization'!$H$26:$H$92,$A22,'3 Receipt itemization'!$N$26:$N$92,$X$4) -> 0 | Y22: =SUMIFS('3 Receipt itemization'!$D$26:$D$92,'3 Receipt itemization'!$H$26:$H$92,$A22,'3 Receipt itemization'!$N$26:$N$92,$Y$4) -> 0 | Z22: =SUMIFS('3 Receipt itemization'!$D$26:$D$92,'3 Receipt itemization'!$H$26:$H$92,$A22,'3 Receipt itemization'!$N$26:$N$92,$Z$4) -> 0 | AA22: =SUMIFS('3 Receipt itemization'!$D$26:$D$92,'3 Receipt itemization'!$H$26:$H$92,$A22,'3 Receipt itemization'!$N$26:$N$92,$AA$4) -> 0 | AB22: =SUMIFS('3 Receipt itemization'!$D$26:$D$92,'3 Receipt itemization'!$H$26:$H$92,$A22,'3 Receipt itemization'!$N$26:$N$92,"") -> 0 | AD22: ='FIS accounts'!A18 -> 0
A23: Meals: ON (13%HST) | B23: 84__070 | E23: =SUMIF('3 Receipt itemization'!$H$26:$H$92,A23,'3 Receipt itemization'!$D$26:$D$92) -> 0 | G23: ER | I23: =SUMIFS('3 Receipt itemization'!$D$26:$D$92,'3 Receipt itemization'!$H$26:$H$92,$A23,'3 Receipt itemization'!$N$26:$N$92,$I$4) -> 0 | J23: =SUMIFS('3 Receipt itemization'!$D$26:$D$92,'3 Receipt itemization'!$H$26:$H$92,$A23,'3 Receipt itemization'!$N$26:$N$92,$J$4) -> 0 | K23: =SUMIFS('3 Receipt itemization'!$D$26:$D$92,'3 Receipt itemization'!$H$26:$H$92,$A23,'3 Receipt itemization'!$N$26:$N$92,K$4) -> 0 | L23: =SUMIFS('3 Receipt itemization'!$D$26:$D$92,'3 Receipt itemization'!$H$26:$H$92,$A23,'3 Receipt itemization'!$N$26:$N$92,L$4) -> 0 | M23: =SUMIFS('3 Receipt itemization'!$D$26:$D$92,'3 Receipt itemization'!$H$26:$H$92,$A23,'3 Receipt itemization'!$N$26:$N$92,M$4) -> 0 | N23: =SUMIFS('3 Receipt itemization'!$D$26:$D$92,'3 Receipt itemization'!$H$26:$H$92,$A23,'3 Receipt itemization'!$N$26:$N$92,$N$4) -> 0 | O23: =SUMIFS('3 Receipt itemization'!$D$26:$D$92,'3 Receipt itemization'!$H$26:$H$92,$A23,'3 Receipt itemization'!$N$26:$N$92,$O$4) -> 0 | P23: =SUMIFS('3 Receipt itemization'!$D$26:$D$92,'3 Receipt itemization'!$H$26:$H$92,$A23,'3 Receipt itemization'!$N$26:$N$92,P$4) -> 0 | Q23: =SUMIFS('3 Receipt itemization'!$D$26:$D$92,'3 Receipt itemization'!$H$26:$H$92,$A23,'3 Receipt itemization'!$N$26:$N$92,$Q$4) -> 0 | R23: =SUMIFS('3 Receipt itemization'!$D$26:$D$92,'3 Receipt itemization'!$H$26:$H$92,$A23,'3 Receipt itemization'!$N$26:$N$92,$R$4) -> 0 | S23: =SUMIFS('3 Receipt itemization'!$D$26:$D$92,'3 Receipt itemization'!$H$26:$H$92,$A23,'3 Receipt itemization'!$N$26:$N$92,$S$4) -> 0 | T23: =SUMIFS('3 Receipt itemization'!$D$26:$D$92,'3 Receipt itemization'!$H$26:$H$92,$A23,'3 Receipt itemization'!$N$26:$N$92,$T$4) -> 0 | U23: =SUMIFS('3 Receipt itemization'!$D$26:$D$92,'3 Receipt itemization'!$H$26:$H$92,$A23,'3 Receipt itemization'!$N$26:$N$92,$U$4) -> 0 | V23: =SUMIFS('3 Receipt itemization'!$D$26:$D$92,'3 Receipt itemization'!$H$26:$H$92,$A23,'3 Receipt itemization'!$N$26:$N$92,$V$4) -> 0 | W23: =SUMIFS('3 Receipt itemization'!$D$26:$D$92,'3 Receipt itemization'!$H$26:$H$92,$A23,'3 Receipt itemization'!$N$26:$N$92,$W$4) -> 0 | X23: =SUMIFS('3 Receipt itemization'!$D$26:$D$92,'3 Receipt itemization'!$H$26:$H$92,$A23,'3 Receipt itemization'!$N$26:$N$92,$X$4) -> 0 | Y23: =SUMIFS('3 Receipt itemization'!$D$26:$D$92,'3 Receipt itemization'!$H$26:$H$92,$A23,'3 Receipt itemization'!$N$26:$N$92,$Y$4) -> 0 | Z23: =SUMIFS('3 Receipt itemization'!$D$26:$D$92,'3 Receipt itemization'!$H$26:$H$92,$A23,'3 Receipt itemization'!$N$26:$N$92,$Z$4) -> 0 | AA23: =SUMIFS('3 Receipt itemization'!$D$26:$D$92,'3 Receipt itemization'!$H$26:$H$92,$A23,'3 Receipt itemization'!$N$26:$N$92,$AA$4) -> 0 | AB23: =SUMIFS('3 Receipt itemization'!$D$26:$D$92,'3 Receipt itemization'!$H$26:$H$92,$A23,'3 Receipt itemization'!$N$26:$N$92,"") -> 0 | AD23: ='FIS accounts'!A19 -> 0
A24: Meals: PEI, NS, NF, NB (15% HST) | B24: 84__070 | E24: =SUMIF('3 Receipt itemization'!$H$26:$H$92,A24,'3 Receipt itemization'!$D$26:$D$92) -> 0 | G24: EN | I24: =SUMIFS('3 Receipt itemization'!$D$26:$D$92,'3 Receipt itemization'!$H$26:$H$92,$A24,'3 Receipt itemization'!$N$26:$N$92,$I$4) -> 0 | J24: =SUMIFS('3 Receipt itemization'!$D$26:$D$92,'3 Receipt itemization'!$H$26:$H$92,$A24,'3 Receipt itemization'!$N$26:$N$92,$J$4) -> 0 | K24: =SUMIFS('3 Receipt itemization'!$D$26:$D$92,'3 Receipt itemization'!$H$26:$H$92,$A24,'3 Receipt itemization'!$N$26:$N$92,K$4) -> 0 | L24: =SUMIFS('3 Receipt itemization'!$D$26:$D$92,'3 Receipt itemization'!$H$26:$H$92,$A24,'3 Receipt itemization'!$N$26:$N$92,L$4) -> 0 | M24: =SUMIFS('3 Receipt itemization'!$D$26:$D$92,'3 Receipt itemization'!$H$26:$H$92,$A24,'3 Receipt itemization'!$N$26:$N$92,M$4) -> 0 | N24: =SUMIFS('3 Receipt itemization'!$D$26:$D$92,'3 Receipt itemization'!$H$26:$H$92,$A24,'3 Receipt itemization'!$N$26:$N$92,$N$4) -> 0 | O24: =SUMIFS('3 Receipt itemization'!$D$26:$D$92,'3 Receipt itemization'!$H$26:$H$92,$A24,'3 Receipt itemization'!$N$26:$N$92,$O$4) -> 0 | P24: =SUMIFS('3 Receipt itemization'!$D$26:$D$92,'3 Receipt itemization'!$H$26:$H$92,$A24,'3 Receipt itemization'!$N$26:$N$92,P$4) -> 0 | Q24: =SUMIFS('3 Receipt itemization'!$D$26:$D$92,'3 Receipt itemization'!$H$26:$H$92,$A24,'3 Receipt itemization'!$N$26:$N$92,$Q$4) -> 0 | R24: =SUMIFS('3 Receipt itemization'!$D$26:$D$92,'3 Receipt itemization'!$H$26:$H$92,$A24,'3 Receipt itemization'!$N$26:$N$92,$R$4) -> 0 | S24: =SUMIFS('3 Receipt itemization'!$D$26:$D$92,'3 Receipt itemization'!$H$26:$H$92,$A24,'3 Receipt itemization'!$N$26:$N$92,$S$4) -> 0 | T24: =SUMIFS('3 Receipt itemization'!$D$26:$D$92,'3 Receipt itemization'!$H$26:$H$92,$A24,'3 Receipt itemization'!$N$26:$N$92,$T$4) -> 0 | U24: =SUMIFS('3 Receipt itemization'!$D$26:$D$92,'3 Receipt itemization'!$H$26:$H$92,$A24,'3 Receipt itemization'!$N$26:$N$92,$U$4) -> 0 | V24: =SUMIFS('3 Receipt itemization'!$D$26:$D$92,'3 Receipt itemization'!$H$26:$H$92,$A24,'3 Receipt itemization'!$N$26:$N$92,$V$4) -> 0 | W24: =SUMIFS('3 Receipt itemization'!$D$26:$D$92,'3 Receipt itemization'!$H$26:$H$92,$A24,'3 Receipt itemization'!$N$26:$N$92,$W$4) -> 0 | X24: =SUMIFS('3 Receipt itemization'!$D$26:$D$92,'3 Receipt itemization'!$H$26:$H$92,$A24,'3 Receipt itemization'!$N$26:$N$92,$X$4) -> 0 | Y24: =SUMIFS('3 Receipt itemization'!$D$26:$D$92,'3 Receipt itemization'!$H$26:$H$92,$A24,'3 Receipt itemization'!$N$26:$N$92,$Y$4) -> 0 | Z24: =SUMIFS('3 Receipt itemization'!$D$26:$D$92,'3 Receipt itemization'!$H$26:$H$92,$A24,'3 Receipt itemization'!$N$26:$N$92,$Z$4) -> 0 | AA24: =SUMIFS('3 Receipt itemization'!$D$26:$D$92,'3 Receipt itemization'!$H$26:$H$92,$A24,'3 Receipt itemization'!$N$26:$N$92,$AA$4) -> 0 | AB24: =SUMIFS('3 Receipt itemization'!$D$26:$D$92,'3 Receipt itemization'!$H$26:$H$92,$A24,'3 Receipt itemization'!$N$26:$N$92,"") -> 0
A25: Meals: all other provinces / territories | B25: 84__070 | E25: =SUMIF('3 Receipt itemization'!$H$26:$H$92,A25,'3 Receipt itemization'!$D$26:$D$92) -> 0 | G25: EE | I25: =SUMIFS('3 Receipt itemization'!$D$26:$D$92,'3 Receipt itemization'!$H$26:$H$92,$A25,'3 Receipt itemization'!$N$26:$N$92,$I$4) -> 0 | J25: =SUMIFS('3 Receipt itemization'!$D$26:$D$92,'3 Receipt itemization'!$H$26:$H$92,$A25,'3 Receipt itemization'!$N$26:$N$92,$J$4) -> 0 | K25: =SUMIFS('3 Receipt itemization'!$D$26:$D$92,'3 Receipt itemization'!$H$26:$H$92,$A25,'3 Receipt itemization'!$N$26:$N$92,K$4) -> 0 | L25: =SUMIFS('3 Receipt itemization'!$D$26:$D$92,'3 Receipt itemization'!$H$26:$H$92,$A25,'3 Receipt itemization'!$N$26:$N$92,L$4) -> 0 | M25: =SUMIFS('3 Receipt itemization'!$D$26:$D$92,'3 Receipt itemization'!$H$26:$H$92,$A25,'3 Receipt itemization'!$N$26:$N$92,M$4) -> 0 | N25: =SUMIFS('3 Receipt itemization'!$D$26:$D$92,'3 Receipt itemization'!$H$26:$H$92,$A25,'3 Receipt itemization'!$N$26:$N$92,$N$4) -> 0 | O25: =SUMIFS('3 Receipt itemization'!$D$26:$D$92,'3 Receipt itemization'!$H$26:$H$92,$A25,'3 Receipt itemization'!$N$26:$N$92,$O$4) -> 0 | P25: =SUMIFS('3 Receipt itemization'!$D$26:$D$92,'3 Receipt itemization'!$H$26:$H$92,$A25,'3 Receipt itemization'!$N$26:$N$92,P$4) -> 0 | Q25: =SUMIFS('3 Receipt itemization'!$D$26:$D$92,'3 Receipt itemization'!$H$26:$H$92,$A25,'3 Receipt itemization'!$N$26:$N$92,$Q$4) -> 0 | R25: =SUMIFS('3 Receipt itemization'!$D$26:$D$92,'3 Receipt itemization'!$H$26:$H$92,$A25,'3 Receipt itemization'!$N$26:$N$92,$R$4) -> 0 | S25: =SUMIFS('3 Receipt itemization'!$D$26:$D$92,'3 Receipt itemization'!$H$26:$H$92,$A25,'3 Receipt itemization'!$N$26:$N$92,$S$4) -> 0 | T25: =SUMIFS('3 Receipt itemization'!$D$26:$D$92,'3 Receipt itemization'!$H$26:$H$92,$A25,'3 Receipt itemization'!$N$26:$N$92,$T$4) -> 0 | U25: =SUMIFS('3 Receipt itemization'!$D$26:$D$92,'3 Receipt itemization'!$H$26:$H$92,$A25,'3 Receipt itemization'!$N$26:$N$92,$U$4) -> 0 | V25: =SUMIFS('3 Receipt itemization'!$D$26:$D$92,'3 Receipt itemization'!$H$26:$H$92,$A25,'3 Receipt itemization'!$N$26:$N$92,$V$4) -> 0 | W25: =SUMIFS('3 Receipt itemization'!$D$26:$D$92,'3 Receipt itemization'!$H$26:$H$92,$A25,'3 Receipt itemization'!$N$26:$N$92,$W$4) -> 0 | X25: =SUMIFS('3 Receipt itemization'!$D$26:$D$92,'3 Receipt itemization'!$H$26:$H$92,$A25,'3 Receipt itemization'!$N$26:$N$92,$X$4) -> 0 | Y25: =SUMIFS('3 Receipt itemization'!$D$26:$D$92,'3 Receipt itemization'!$H$26:$H$92,$A25,'3 Receipt itemization'!$N$26:$N$92,$Y$4) -> 0 | Z25: =SUMIFS('3 Receipt itemization'!$D$26:$D$92,'3 Receipt itemization'!$H$26:$H$92,$A25,'3 Receipt itemization'!$N$26:$N$92,$Z$4) -> 0 | AA25: =SUMIFS('3 Receipt itemization'!$D$26:$D$92,'3 Receipt itemization'!$H$26:$H$92,$A25,'3 Receipt itemization'!$N$26:$N$92,$AA$4) -> 0 | AB25: =SUMIFS('3 Receipt itemization'!$D$26:$D$92,'3 Receipt itemization'!$H$26:$H$92,$A25,'3 Receipt itemization'!$N$26:$N$92,"") -> 0
A26: Meals: USA / International | B26: 84__070 | E26: =SUMIF('3 Receipt itemization'!$H$26:$H$92,A26,'3 Receipt itemization'!$D$26:$D$92) -> 0 | G26: E0 | I26: =SUMIFS('3 Receipt itemization'!$D$26:$D$92,'3 Receipt itemization'!$H$26:$H$92,$A26,'3 Receipt itemization'!$N$26:$N$92,$I$4) -> 0 | J26: =SUMIFS('3 Receipt itemization'!$D$26:$D$92,'3 Receipt itemization'!$H$26:$H$92,$A26,'3 Receipt itemization'!$N$26:$N$92,$J$4) -> 0 | K26: =SUMIFS('3 Receipt itemization'!$D$26:$D$92,'3 Receipt itemization'!$H$26:$H$92,$A26,'3 Receipt itemization'!$N$26:$N$92,K$4) -> 0 | L26: =SUMIFS('3 Receipt itemization'!$D$26:$D$92,'3 Receipt itemization'!$H$26:$H$92,$A26,'3 Receipt itemization'!$N$26:$N$92,L$4) -> 0 | M26: =SUMIFS('3 Receipt itemization'!$D$26:$D$92,'3 Receipt itemization'!$H$26:$H$92,$A26,'3 Receipt itemization'!$N$26:$N$92,M$4) -> 0 | N26: =SUMIFS('3 Receipt itemization'!$D$26:$D$92,'3 Receipt itemization'!$H$26:$H$92,$A26,'3 Receipt itemization'!$N$26:$N$92,$N$4) -> 0 | O26: =SUMIFS('3 Receipt itemization'!$D$26:$D$92,'3 Receipt itemization'!$H$26:$H$92,$A26,'3 Receipt itemization'!$N$26:$N$92,$O$4) -> 0 | P26: =SUMIFS('3 Receipt itemization'!$D$26:$D$92,'3 Receipt itemization'!$H$26:$H$92,$A26,'3 Receipt itemization'!$N$26:$N$92,P$4) -> 0 | Q26: =SUMIFS('3 Receipt itemization'!$D$26:$D$92,'3 Receipt itemization'!$H$26:$H$92,$A26,'3 Receipt itemization'!$N$26:$N$92,$Q$4) -> 0 | R26: =SUMIFS('3 Receipt itemization'!$D$26:$D$92,'3 Receipt itemization'!$H$26:$H$92,$A26,'3 Receipt itemization'!$N$26:$N$92,$R$4) -> 0 | S26: =SUMIFS('3 Receipt itemization'!$D$26:$D$92,'3 Receipt itemization'!$H$26:$H$92,$A26,'3 Receipt itemization'!$N$26:$N$92,$S$4) -> 0 | T26: =SUMIFS('3 Receipt itemization'!$D$26:$D$92,'3 Receipt itemization'!$H$26:$H$92,$A26,'3 Receipt itemization'!$N$26:$N$92,$T$4) -> 0 | U26: =SUMIFS('3 Receipt itemization'!$D$26:$D$92,'3 Receipt itemization'!$H$26:$H$92,$A26,'3 Receipt itemization'!$N$26:$N$92,$U$4) -> 0 | V26: =SUMIFS('3 Receipt itemization'!$D$26:$D$92,'3 Receipt itemization'!$H$26:$H$92,$A26,'3 Receipt itemization'!$N$26:$N$92,$V$4) -> 0 | W26: =SUMIFS('3 Receipt itemization'!$D$26:$D$92,'3 Receipt itemization'!$H$26:$H$92,$A26,'3 Receipt itemization'!$N$26:$N$92,$W$4) -> 0 | X26: =SUMIFS('3 Receipt itemization'!$D$26:$D$92,'3 Receipt itemization'!$H$26:$H$92,$A26,'3 Receipt itemization'!$N$26:$N$92,$X$4) -> 0 | Y26: =SUMIFS('3 Receipt itemization'!$D$26:$D$92,'3 Receipt itemization'!$H$26:$H$92,$A26,'3 Receipt itemization'!$N$26:$N$92,$Y$4) -> 0 | Z26: =SUMIFS('3 Receipt itemization'!$D$26:$D$92,'3 Receipt itemization'!$H$26:$H$92,$A26,'3 Receipt itemization'!$N$26:$N$92,$Z$4) -> 0 | AA26: =SUMIFS('3 Receipt itemization'!$D$26:$D$92,'3 Receipt itemization'!$H$26:$H$92,$A26,'3 Receipt itemization'!$N$26:$N$92,$AA$4) -> 0 | AB26: =SUMIFS('3 Receipt itemization'!$D$26:$D$92,'3 Receipt itemization'!$H$26:$H$92,$A26,'3 Receipt itemization'!$N$26:$N$92,"") -> 0
A27: Taxi: ON (13%HST) | B27: 845000 | E27: =SUMIF('3 Receipt itemization'!$H$26:$H$92,A27,'3 Receipt itemization'!$D$26:$D$92) -> 0 | G27: ER | I27: =SUMIFS('3 Receipt itemization'!$D$26:$D$92,'3 Receipt itemization'!$H$26:$H$92,$A27,'3 Receipt itemization'!$N$26:$N$92,$I$4) -> 0 | J27: =SUMIFS('3 Receipt itemization'!$D$26:$D$92,'3 Receipt itemization'!$H$26:$H$92,$A27,'3 Receipt itemization'!$N$26:$N$92,$J$4) -> 0 | K27: =SUMIFS('3 Receipt itemization'!$D$26:$D$92,'3 Receipt itemization'!$H$26:$H$92,$A27,'3 Receipt itemization'!$N$26:$N$92,K$4) -> 0 | L27: =SUMIFS('3 Receipt itemization'!$D$26:$D$92,'3 Receipt itemization'!$H$26:$H$92,$A27,'3 Receipt itemization'!$N$26:$N$92,L$4) -> 0 | M27: =SUMIFS('3 Receipt itemization'!$D$26:$D$92,'3 Receipt itemization'!$H$26:$H$92,$A27,'3 Receipt itemization'!$N$26:$N$92,M$4) -> 0 | N27: =SUMIFS('3 Receipt itemization'!$D$26:$D$92,'3 Receipt itemization'!$H$26:$H$92,$A27,'3 Receipt itemization'!$N$26:$N$92,$N$4) -> 0 | O27: =SUMIFS('3 Receipt itemization'!$D$26:$D$92,'3 Receipt itemization'!$H$26:$H$92,$A27,'3 Receipt itemization'!$N$26:$N$92,$O$4) -> 0 | P27: =SUMIFS('3 Receipt itemization'!$D$26:$D$92,'3 Receipt itemization'!$H$26:$H$92,$A27,'3 Receipt itemization'!$N$26:$N$92,P$4) -> 0 | Q27: =SUMIFS('3 Receipt itemization'!$D$26:$D$92,'3 Receipt itemization'!$H$26:$H$92,$A27,'3 Receipt itemization'!$N$26:$N$92,$Q$4) -> 0 | R27: =SUMIFS('3 Receipt itemization'!$D$26:$D$92,'3 Receipt itemization'!$H$26:$H$92,$A27,'3 Receipt itemization'!$N$26:$N$92,$R$4) -> 0 | S27: =SUMIFS('3 Receipt itemization'!$D$26:$D$92,'3 Receipt itemization'!$H$26:$H$92,$A27,'3 Receipt itemization'!$N$26:$N$92,$S$4) -> 0 | T27: =SUMIFS('3 Receipt itemization'!$D$26:$D$92,'3 Receipt itemization'!$H$26:$H$92,$A27,'3 Receipt itemization'!$N$26:$N$92,$T$4) -> 0 | U27: =SUMIFS('3 Receipt itemization'!$D$26:$D$92,'3 Receipt itemization'!$H$26:$H$92,$A27,'3 Receipt itemization'!$N$26:$N$92,$U$4) -> 0 | V27: =SUMIFS('3 Receipt itemization'!$D$26:$D$92,'3 Receipt itemization'!$H$26:$H$92,$A27,'3 Receipt itemization'!$N$26:$N$92,$V$4) -> 0 | W27: =SUMIFS('3 Receipt itemization'!$D$26:$D$92,'3 Receipt itemization'!$H$26:$H$92,$A27,'3 Receipt itemization'!$N$26:$N$92,$W$4) -> 0 | X27: =SUMIFS('3 Receipt itemization'!$D$26:$D$92,'3 Receipt itemization'!$H$26:$H$92,$A27,'3 Receipt itemization'!$N$26:$N$92,$X$4) -> 0 | Y27: =SUMIFS('3 Receipt itemization'!$D$26:$D$92,'3 Receipt itemization'!$H$26:$H$92,$A27,'3 Receipt itemization'!$N$26:$N$92,$Y$4) -> 0 | Z27: =SUMIFS('3 Receipt itemization'!$D$26:$D$92,'3 Receipt itemization'!$H$26:$H$92,$A27,'3 Receipt itemization'!$N$26:$N$92,$Z$4) -> 0 | AA27: =SUMIFS('3 Receipt itemization'!$D$26:$D$92,'3 Receipt itemization'!$H$26:$H$92,$A27,'3 Receipt itemization'!$N$26:$N$92,$AA$4) -> 0 | AB27: =SUMIFS('3 Receipt itemization'!$D$26:$D$92,'3 Receipt itemization'!$H$26:$H$92,$A27,'3 Receipt itemization'!$N$26:$N$92,"") -> 0
A28: Taxi: PEI, NS, NF, NB (15% HST) | B28: 845000 | E28: =SUMIF('3 Receipt itemization'!$H$26:$H$92,A28,'3 Receipt itemization'!$D$26:$D$92) -> 0 | G28: EN | I28: =SUMIFS('3 Receipt itemization'!$D$26:$D$92,'3 Receipt itemization'!$H$26:$H$92,$A28,'3 Receipt itemization'!$N$26:$N$92,$I$4) -> 0 | J28: =SUMIFS('3 Receipt itemization'!$D$26:$D$92,'3 Receipt itemization'!$H$26:$H$92,$A28,'3 Receipt itemization'!$N$26:$N$92,$J$4) -> 0 | K28: =SUMIFS('3 Receipt itemization'!$D$26:$D$92,'3 Receipt itemization'!$H$26:$H$92,$A28,'3 Receipt itemization'!$N$26:$N$92,K$4) -> 0 | L28: =SUMIFS('3 Receipt itemization'!$D$26:$D$92,'3 Receipt itemization'!$H$26:$H$92,$A28,'3 Receipt itemization'!$N$26:$N$92,L$4) -> 0 | M28: =SUMIFS('3 Receipt itemization'!$D$26:$D$92,'3 Receipt itemization'!$H$26:$H$92,$A28,'3 Receipt itemization'!$N$26:$N$92,M$4) -> 0 | N28: =SUMIFS('3 Receipt itemization'!$D$26:$D$92,'3 Receipt itemization'!$H$26:$H$92,$A28,'3 Receipt itemization'!$N$26:$N$92,$N$4) -> 0 | O28: =SUMIFS('3 Receipt itemization'!$D$26:$D$92,'3 Receipt itemization'!$H$26:$H$92,$A28,'3 Receipt itemization'!$N$26:$N$92,$O$4) -> 0 | P28: =SUMIFS('3 Receipt itemization'!$D$26:$D$92,'3 Receipt itemization'!$H$26:$H$92,$A28,'3 Receipt itemization'!$N$26:$N$92,P$4) -> 0 | Q28: =SUMIFS('3 Receipt itemization'!$D$26:$D$92,'3 Receipt itemization'!$H$26:$H$92,$A28,'3 Receipt itemization'!$N$26:$N$92,$Q$4) -> 0 | R28: =SUMIFS('3 Receipt itemization'!$D$26:$D$92,'3 Receipt itemization'!$H$26:$H$92,$A28,'3 Receipt itemization'!$N$26:$N$92,$R$4) -> 0 | S28: =SUMIFS('3 Receipt itemization'!$D$26:$D$92,'3 Receipt itemization'!$H$26:$H$92,$A28,'3 Receipt itemization'!$N$26:$N$92,$S$4) -> 0 | T28: =SUMIFS('3 Receipt itemization'!$D$26:$D$92,'3 Receipt itemization'!$H$26:$H$92,$A28,'3 Receipt itemization'!$N$26:$N$92,$T$4) -> 0 | U28: =SUMIFS('3 Receipt itemization'!$D$26:$D$92,'3 Receipt itemization'!$H$26:$H$92,$A28,'3 Receipt itemization'!$N$26:$N$92,$U$4) -> 0 | V28: =SUMIFS('3 Receipt itemization'!$D$26:$D$92,'3 Receipt itemization'!$H$26:$H$92,$A28,'3 Receipt itemization'!$N$26:$N$92,$V$4) -> 0 | W28: =SUMIFS('3 Receipt itemization'!$D$26:$D$92,'3 Receipt itemization'!$H$26:$H$92,$A28,'3 Receipt itemization'!$N$26:$N$92,$W$4) -> 0 | X28: =SUMIFS('3 Receipt itemization'!$D$26:$D$92,'3 Receipt itemization'!$H$26:$H$92,$A28,'3 Receipt itemization'!$N$26:$N$92,$X$4) -> 0 | Y28: =SUMIFS('3 Receipt itemization'!$D$26:$D$92,'3 Receipt itemization'!$H$26:$H$92,$A28,'3 Receipt itemization'!$N$26:$N$92,$Y$4) -> 0 | Z28: =SUMIFS('3 Receipt itemization'!$D$26:$D$92,'3 Receipt itemization'!$H$26:$H$92,$A28,'3 Receipt itemization'!$N$26:$N$92,$Z$4) -> 0 | AA28: =SUMIFS('3 Receipt itemization'!$D$26:$D$92,'3 Receipt itemization'!$H$26:$H$92,$A28,'3 Receipt itemization'!$N$26:$N$92,$AA$4) -> 0 | AB28: =SUMIFS('3 Receipt itemization'!$D$26:$D$92,'3 Receipt itemization'!$H$26:$H$92,$A28,'3 Receipt itemization'!$N$26:$N$92,"") -> 0
A29: Taxi: All other provinces / territories | B29: 845000 | E29: =SUMIF('3 Receipt itemization'!$H$26:$H$92,A29,'3 Receipt itemization'!$D$26:$D$92) -> 0 | G29: EE | I29: =SUMIFS('3 Receipt itemization'!$D$26:$D$92,'3 Receipt itemization'!$H$26:$H$92,$A29,'3 Receipt itemization'!$N$26:$N$92,$I$4) -> 0 | J29: =SUMIFS('3 Receipt itemization'!$D$26:$D$92,'3 Receipt itemization'!$H$26:$H$92,$A29,'3 Receipt itemization'!$N$26:$N$92,$J$4) -> 0 | K29: =SUMIFS('3 Receipt itemization'!$D$26:$D$92,'3 Receipt itemization'!$H$26:$H$92,$A29,'3 Receipt itemization'!$N$26:$N$92,K$4) -> 0 | L29: =SUMIFS('3 Receipt itemization'!$D$26:$D$92,'3 Receipt itemization'!$H$26:$H$92,$A29,'3 Receipt itemization'!$N$26:$N$92,L$4) -> 0 | M29: =SUMIFS('3 Receipt itemization'!$D$26:$D$92,'3 Receipt itemization'!$H$26:$H$92,$A29,'3 Receipt itemization'!$N$26:$N$92,M$4) -> 0 | N29: =SUMIFS('3 Receipt itemization'!$D$26:$D$92,'3 Receipt itemization'!$H$26:$H$92,$A29,'3 Receipt itemization'!$N$26:$N$92,$N$4) -> 0 | O29: =SUMIFS('3 Receipt itemization'!$D$26:$D$92,'3 Receipt itemization'!$H$26:$H$92,$A29,'3 Receipt itemization'!$N$26:$N$92,$O$4) -> 0 | P29: =SUMIFS('3 Receipt itemization'!$D$26:$D$92,'3 Receipt itemization'!$H$26:$H$92,$A29,'3 Receipt itemization'!$N$26:$N$92,P$4) -> 0 | Q29: =SUMIFS('3 Receipt itemization'!$D$26:$D$92,'3 Receipt itemization'!$H$26:$H$92,$A29,'3 Receipt itemization'!$N$26:$N$92,$Q$4) -> 0 | R29: =SUMIFS('3 Receipt itemization'!$D$26:$D$92,'3 Receipt itemization'!$H$26:$H$92,$A29,'3 Receipt itemization'!$N$26:$N$92,$R$4) -> 0 | S29: =SUMIFS('3 Receipt itemization'!$D$26:$D$92,'3 Receipt itemization'!$H$26:$H$92,$A29,'3 Receipt itemization'!$N$26:$N$92,$S$4) -> 0 | T29: =SUMIFS('3 Receipt itemization'!$D$26:$D$92,'3 Receipt itemization'!$H$26:$H$92,$A29,'3 Receipt itemization'!$N$26:$N$92,$T$4) -> 0 | U29: =SUMIFS('3 Receipt itemization'!$D$26:$D$92,'3 Receipt itemization'!$H$26:$H$92,$A29,'3 Receipt itemization'!$N$26:$N$92,$U$4) -> 0 | V29: =SUMIFS('3 Receipt itemization'!$D$26:$D$92,'3 Receipt itemization'!$H$26:$H$92,$A29,'3 Receipt itemization'!$N$26:$N$92,$V$4) -> 0 | W29: =SUMIFS('3 Receipt itemization'!$D$26:$D$92,'3 Receipt itemization'!$H$26:$H$92,$A29,'3 Receipt itemization'!$N$26:$N$92,$W$4) -> 0 | X29: =SUMIFS('3 Receipt itemization'!$D$26:$D$92,'3 Receipt itemization'!$H$26:$H$92,$A29,'3 Receipt itemization'!$N$26:$N$92,$X$4) -> 0 | Y29: =SUMIFS('3 Receipt itemization'!$D$26:$D$92,'3 Receipt itemization'!$H$26:$H$92,$A29,'3 Receipt itemization'!$N$26:$N$92,$Y$4) -> 0 | Z29: =SUMIFS('3 Receipt itemization'!$D$26:$D$92,'3 Receipt itemization'!$H$26:$H$92,$A29,'3 Receipt itemization'!$N$26:$N$92,$Z$4) -> 0 | AA29: =SUMIFS('3 Receipt itemization'!$D$26:$D$92,'3 Receipt itemization'!$H$26:$H$92,$A29,'3 Receipt itemization'!$N$26:$N$92,$AA$4) -> 0 | AB29: =SUMIFS('3 Receipt itemization'!$D$26:$D$92,'3 Receipt itemization'!$H$26:$H$92,$A29,'3 Receipt itemization'!$N$26:$N$92,"") -> 0
A30: Taxi: USA / International | B30: 845000 | E30: =SUMIF('3 Receipt itemization'!$H$26:$H$92,A30,'3 Receipt itemization'!$D$26:$D$92) -> 0 | G30: E0 | I30: =SUMIFS('3 Receipt itemization'!$D$26:$D$92,'3 Receipt itemization'!$H$26:$H$92,$A30,'3 Receipt itemization'!$N$26:$N$92,$I$4) -> 0 | J30: =SUMIFS('3 Receipt itemization'!$D$26:$D$92,'3 Receipt itemization'!$H$26:$H$92,$A30,'3 Receipt itemization'!$N$26:$N$92,$J$4) -> 0 | K30: =SUMIFS('3 Receipt itemization'!$D$26:$D$92,'3 Receipt itemization'!$H$26:$H$92,$A30,'3 Receipt itemization'!$N$26:$N$92,K$4) -> 0 | L30: =SUMIFS('3 Receipt itemization'!$D$26:$D$92,'3 Receipt itemization'!$H$26:$H$92,$A30,'3 Receipt itemization'!$N$26:$N$92,L$4) -> 0 | M30: =SUMIFS('3 Receipt itemization'!$D$26:$D$92,'3 Receipt itemization'!$H$26:$H$92,$A30,'3 Receipt itemization'!$N$26:$N$92,M$4) -> 0 | N30: =SUMIFS('3 Receipt itemization'!$D$26:$D$92,'3 Receipt itemization'!$H$26:$H$92,$A30,'3 Receipt itemization'!$N$26:$N$92,$N$4) -> 0 | O30: =SUMIFS('3 Receipt itemization'!$D$26:$D$92,'3 Receipt itemization'!$H$26:$H$92,$A30,'3 Receipt itemization'!$N$26:$N$92,$O$4) -> 0 | P30: =SUMIFS('3 Receipt itemization'!$D$26:$D$92,'3 Receipt itemization'!$H$26:$H$92,$A30,'3 Receipt itemization'!$N$26:$N$92,P$4) -> 0 | Q30: =SUMIFS('3 Receipt itemization'!$D$26:$D$92,'3 Receipt itemization'!$H$26:$H$92,$A30,'3 Receipt itemization'!$N$26:$N$92,$Q$4) -> 0 | R30: =SUMIFS('3 Receipt itemization'!$D$26:$D$92,'3 Receipt itemization'!$H$26:$H$92,$A30,'3 Receipt itemization'!$N$26:$N$92,$R$4) -> 0 | S30: =SUMIFS('3 Receipt itemization'!$D$26:$D$92,'3 Receipt itemization'!$H$26:$H$92,$A30,'3 Receipt itemization'!$N$26:$N$92,$S$4) -> 0 | T30: =SUMIFS('3 Receipt itemization'!$D$26:$D$92,'3 Receipt itemization'!$H$26:$H$92,$A30,'3 Receipt itemization'!$N$26:$N$92,$T$4) -> 0 | U30: =SUMIFS('3 Receipt itemization'!$D$26:$D$92,'3 Receipt itemization'!$H$26:$H$92,$A30,'3 Receipt itemization'!$N$26:$N$92,$U$4) -> 0 | V30: =SUMIFS('3 Receipt itemization'!$D$26:$D$92,'3 Receipt itemization'!$H$26:$H$92,$A30,'3 Receipt itemization'!$N$26:$N$92,$V$4) -> 0 | W30: =SUMIFS('3 Receipt itemization'!$D$26:$D$92,'3 Receipt itemization'!$H$26:$H$92,$A30,'3 Receipt itemization'!$N$26:$N$92,$W$4) -> 0 | X30: =SUMIFS('3 Receipt itemization'!$D$26:$D$92,'3 Receipt itemization'!$H$26:$H$92,$A30,'3 Receipt itemization'!$N$26:$N$92,$X$4) -> 0 | Y30: =SUMIFS('3 Receipt itemization'!$D$26:$D$92,'3 Receipt itemization'!$H$26:$H$92,$A30,'3 Receipt itemization'!$N$26:$N$92,$Y$4) -> 0 | Z30: =SUMIFS('3 Receipt itemization'!$D$26:$D$92,'3 Receipt itemization'!$H$26:$H$92,$A30,'3 Receipt itemization'!$N$26:$N$92,$Z$4) -> 0 | AA30: =SUMIFS('3 Receipt itemization'!$D$26:$D$92,'3 Receipt itemization'!$H$26:$H$92,$A30,'3 Receipt itemization'!$N$26:$N$92,$AA$4) -> 0 | AB30: =SUMIFS('3 Receipt itemization'!$D$26:$D$92,'3 Receipt itemization'!$H$26:$H$92,$A30,'3 Receipt itemization'!$N$26:$N$92,"") -> 0
A31: Conference fees: within Canada | B31: 837800 | E31: =SUMIF('3 Receipt itemization'!$H$26:$H$92,A31,'3 Receipt itemization'!$D$26:$D$92) -> 0 | G31: E | I31: =SUMIFS('3 Receipt itemization'!$D$26:$D$92,'3 Receipt itemization'!$H$26:$H$92,$A31,'3 Receipt itemization'!$N$26:$N$92,$I$4) -> 0 | J31: =SUMIFS('3 Receipt itemization'!$D$26:$D$92,'3 Receipt itemization'!$H$26:$H$92,$A31,'3 Receipt itemization'!$N$26:$N$92,$J$4) -> 0 | K31: =SUMIFS('3 Receipt itemization'!$D$26:$D$92,'3 Receipt itemization'!$H$26:$H$92,$A31,'3 Receipt itemization'!$N$26:$N$92,K$4) -> 0 | L31: =SUMIFS('3 Receipt itemization'!$D$26:$D$92,'3 Receipt itemization'!$H$26:$H$92,$A31,'3 Receipt itemization'!$N$26:$N$92,L$4) -> 0 | M31: =SUMIFS('3 Receipt itemization'!$D$26:$D$92,'3 Receipt itemization'!$H$26:$H$92,$A31,'3 Receipt itemization'!$N$26:$N$92,M$4) -> 0 | N31: =SUMIFS('3 Receipt itemization'!$D$26:$D$92,'3 Receipt itemization'!$H$26:$H$92,$A31,'3 Receipt itemization'!$N$26:$N$92,$N$4) -> 0 | O31: =SUMIFS('3 Receipt itemization'!$D$26:$D$92,'3 Receipt itemization'!$H$26:$H$92,$A31,'3 Receipt itemization'!$N$26:$N$92,$O$4) -> 0 | P31: =SUMIFS('3 Receipt itemization'!$D$26:$D$92,'3 Receipt itemization'!$H$26:$H$92,$A31,'3 Receipt itemization'!$N$26:$N$92,P$4) -> 0 | Q31: =SUMIFS('3 Receipt itemization'!$D$26:$D$92,'3 Receipt itemization'!$H$26:$H$92,$A31,'3 Receipt itemization'!$N$26:$N$92,$Q$4) -> 0 | R31: =SUMIFS('3 Receipt itemization'!$D$26:$D$92,'3 Receipt itemization'!$H$26:$H$92,$A31,'3 Receipt itemization'!$N$26:$N$92,$R$4) -> 0 | S31: =SUMIFS('3 Receipt itemization'!$D$26:$D$92,'3 Receipt itemization'!$H$26:$H$92,$A31,'3 Receipt itemization'!$N$26:$N$92,$S$4) -> 0 | T31: =SUMIFS('3 Receipt itemization'!$D$26:$D$92,'3 Receipt itemization'!$H$26:$H$92,$A31,'3 Receipt itemization'!$N$26:$N$92,$T$4) -> 0 | U31: =SUMIFS('3 Receipt itemization'!$D$26:$D$92,'3 Receipt itemization'!$H$26:$H$92,$A31,'3 Receipt itemization'!$N$26:$N$92,$U$4) -> 0 | V31: =SUMIFS('3 Receipt itemization'!$D$26:$D$92,'3 Receipt itemization'!$H$26:$H$92,$A31,'3 Receipt itemization'!$N$26:$N$92,$V$4) -> 0 | W31: =SUMIFS('3 Receipt itemization'!$D$26:$D$92,'3 Receipt itemization'!$H$26:$H$92,$A31,'3 Receipt itemization'!$N$26:$N$92,$W$4) -> 0 | X31: =SUMIFS('3 Receipt itemization'!$D$26:$D$92,'3 Receipt itemization'!$H$26:$H$92,$A31,'3 Receipt itemization'!$N$26:$N$92,$X$4) -> 0 | Y31: =SUMIFS('3 Receipt itemization'!$D$26:$D$92,'3 Receipt itemization'!$H$26:$H$92,$A31,'3 Receipt itemization'!$N$26:$N$92,$Y$4) -> 0 | Z31: =SUMIFS('3 Receipt itemization'!$D$26:$D$92,'3 Receipt itemization'!$H$26:$H$92,$A31,'3 Receipt itemization'!$N$26:$N$92,$Z$4) -> 0 | AA31: =SUMIFS('3 Receipt itemization'!$D$26:$D$92,'3 Receipt itemization'!$H$26:$H$92,$A31,'3 Receipt itemization'!$N$26:$N$92,$AA$4) -> 0 | AB31: =SUMIFS('3 Receipt itemization'!$D$26:$D$92,'3 Receipt itemization'!$H$26:$H$92,$A31,'3 Receipt itemization'!$N$26:$N$92,"") -> 0
A32: Conference fees: outside of Canada | B32: 837800 | E32: =SUMIF('3 Receipt itemization'!$H$26:$H$92,A32,'3 Receipt itemization'!$D$26:$D$92) -> 0 | G32: ES | I32: =SUMIFS('3 Receipt itemization'!$D$26:$D$92,'3 Receipt itemization'!$H$26:$H$92,$A32,'3 Receipt itemization'!$N$26:$N$92,$I$4) -> 0 | J32: =SUMIFS('3 Receipt itemization'!$D$26:$D$92,'3 Receipt itemization'!$H$26:$H$92,$A32,'3 Receipt itemization'!$N$26:$N$92,$J$4) -> 0 | K32: =SUMIFS('3 Receipt itemization'!$D$26:$D$92,'3 Receipt itemization'!$H$26:$H$92,$A32,'3 Receipt itemization'!$N$26:$N$92,K$4) -> 0 | L32: =SUMIFS('3 Receipt itemization'!$D$26:$D$92,'3 Receipt itemization'!$H$26:$H$92,$A32,'3 Receipt itemization'!$N$26:$N$92,L$4) -> 0 | M32: =SUMIFS('3 Receipt itemization'!$D$26:$D$92,'3 Receipt itemization'!$H$26:$H$92,$A32,'3 Receipt itemization'!$N$26:$N$92,M$4) -> 0 | N32: =SUMIFS('3 Receipt itemization'!$D$26:$D$92,'3 Receipt itemization'!$H$26:$H$92,$A32,'3 Receipt itemization'!$N$26:$N$92,$N$4) -> 0 | O32: =SUMIFS('3 Receipt itemization'!$D$26:$D$92,'3 Receipt itemization'!$H$26:$H$92,$A32,'3 Receipt itemization'!$N$26:$N$92,$O$4) -> 0 | P32: =SUMIFS('3 Receipt itemization'!$D$26:$D$92,'3 Receipt itemization'!$H$26:$H$92,$A32,'3 Receipt itemization'!$N$26:$N$92,P$4) -> 0 | Q32: =SUMIFS('3 Receipt itemization'!$D$26:$D$92,'3 Receipt itemization'!$H$26:$H$92,$A32,'3 Receipt itemization'!$N$26:$N$92,$Q$4) -> 0 | R32: =SUMIFS('3 Receipt itemization'!$D$26:$D$92,'3 Receipt itemization'!$H$26:$H$92,$A32,'3 Receipt itemization'!$N$26:$N$92,$R$4) -> 0 | S32: =SUMIFS('3 Receipt itemization'!$D$26:$D$92,'3 Receipt itemization'!$H$26:$H$92,$A32,'3 Receipt itemization'!$N$26:$N$92,$S$4) -> 0 | T32: =SUMIFS('3 Receipt itemization'!$D$26:$D$92,'3 Receipt itemization'!$H$26:$H$92,$A32,'3 Receipt itemization'!$N$26:$N$92,$T$4) -> 0 | U32: =SUMIFS('3 Receipt itemization'!$D$26:$D$92,'3 Receipt itemization'!$H$26:$H$92,$A32,'3 Receipt itemization'!$N$26:$N$92,$U$4) -> 0 | V32: =SUMIFS('3 Receipt itemization'!$D$26:$D$92,'3 Receipt itemization'!$H$26:$H$92,$A32,'3 Receipt itemization'!$N$26:$N$92,$V$4) -> 0 | W32: =SUMIFS('3 Receipt itemization'!$D$26:$D$92,'3 Receipt itemization'!$H$26:$H$92,$A32,'3 Receipt itemization'!$N$26:$N$92,$W$4) -> 0 | X32: =SUMIFS('3 Receipt itemization'!$D$26:$D$92,'3 Receipt itemization'!$H$26:$H$92,$A32,'3 Receipt itemization'!$N$26:$N$92,$X$4) -> 0 | Y32: =SUMIFS('3 Receipt itemization'!$D$26:$D$92,'3 Receipt itemization'!$H$26:$H$92,$A32,'3 Receipt itemization'!$N$26:$N$92,$Y$4) -> 0 | Z32: =SUMIFS('3 Receipt itemization'!$D$26:$D$92,'3 Receipt itemization'!$H$26:$H$92,$A32,'3 Receipt itemization'!$N$26:$N$92,$Z$4) -> 0 | AA32: =SUMIFS('3 Receipt itemization'!$D$26:$D$92,'3 Receipt itemization'!$H$26:$H$92,$A32,'3 Receipt itemization'!$N$26:$N$92,$AA$4) -> 0 | AB32: =SUMIFS('3 Receipt itemization'!$D$26:$D$92,'3 Receipt itemization'!$H$26:$H$92,$A32,'3 Receipt itemization'!$N$26:$N$92,"") -> 0
A33: Parking | B33: 835780 | E33: =SUMIF('3 Receipt itemization'!$H$26:$H$92,A33,'3 Receipt itemization'!$D$26:$D$92) -> 0 | G33: E | I33: =SUMIFS('3 Receipt itemization'!$D$26:$D$92,'3 Receipt itemization'!$H$26:$H$92,$A33,'3 Receipt itemization'!$N$26:$N$92,$I$4) -> 0 | J33: =SUMIFS('3 Receipt itemization'!$D$26:$D$92,'3 Receipt itemization'!$H$26:$H$92,$A33,'3 Receipt itemization'!$N$26:$N$92,$J$4) -> 0 | K33: =SUMIFS('3 Receipt itemization'!$D$26:$D$92,'3 Receipt itemization'!$H$26:$H$92,$A33,'3 Receipt itemization'!$N$26:$N$92,K$4) -> 0 | L33: =SUMIFS('3 Receipt itemization'!$D$26:$D$92,'3 Receipt itemization'!$H$26:$H$92,$A33,'3 Receipt itemization'!$N$26:$N$92,L$4) -> 0 | M33: =SUMIFS('3 Receipt itemization'!$D$26:$D$92,'3 Receipt itemization'!$H$26:$H$92,$A33,'3 Receipt itemization'!$N$26:$N$92,M$4) -> 0 | N33: =SUMIFS('3 Receipt itemization'!$D$26:$D$92,'3 Receipt itemization'!$H$26:$H$92,$A33,'3 Receipt itemization'!$N$26:$N$92,$N$4) -> 0 | O33: =SUMIFS('3 Receipt itemization'!$D$26:$D$92,'3 Receipt itemization'!$H$26:$H$92,$A33,'3 Receipt itemization'!$N$26:$N$92,$O$4) -> 0 | P33: =SUMIFS('3 Receipt itemization'!$D$26:$D$92,'3 Receipt itemization'!$H$26:$H$92,$A33,'3 Receipt itemization'!$N$26:$N$92,P$4) -> 0 | Q33: =SUMIFS('3 Receipt itemization'!$D$26:$D$92,'3 Receipt itemization'!$H$26:$H$92,$A33,'3 Receipt itemization'!$N$26:$N$92,$Q$4) -> 0 | R33: =SUMIFS('3 Receipt itemization'!$D$26:$D$92,'3 Receipt itemization'!$H$26:$H$92,$A33,'3 Receipt itemization'!$N$26:$N$92,$R$4) -> 0 | S33: =SUMIFS('3 Receipt itemization'!$D$26:$D$92,'3 Receipt itemization'!$H$26:$H$92,$A33,'3 Receipt itemization'!$N$26:$N$92,$S$4) -> 0 | T33: =SUMIFS('3 Receipt itemization'!$D$26:$D$92,'3 Receipt itemization'!$H$26:$H$92,$A33,'3 Receipt itemization'!$N$26:$N$92,$T$4) -> 0 | U33: =SUMIFS('3 Receipt itemization'!$D$26:$D$92,'3 Receipt itemization'!$H$26:$H$92,$A33,'3 Receipt itemization'!$N$26:$N$92,$U$4) -> 0 | V33: =SUMIFS('3 Receipt itemization'!$D$26:$D$92,'3 Receipt itemization'!$H$26:$H$92,$A33,'3 Receipt itemization'!$N$26:$N$92,$V$4) -> 0 | W33: =SUMIFS('3 Receipt itemization'!$D$26:$D$92,'3 Receipt itemization'!$H$26:$H$92,$A33,'3 Receipt itemization'!$N$26:$N$92,$W$4) -> 0 | X33: =SUMIFS('3 Receipt itemization'!$D$26:$D$92,'3 Receipt itemization'!$H$26:$H$92,$A33,'3 Receipt itemization'!$N$26:$N$92,$X$4) -> 0 | Y33: =SUMIFS('3 Receipt itemization'!$D$26:$D$92,'3 Receipt itemization'!$H$26:$H$92,$A33,'3 Receipt itemization'!$N$26:$N$92,$Y$4) -> 0 | Z33: =SUMIFS('3 Receipt itemization'!$D$26:$D$92,'3 Receipt itemization'!$H$26:$H$92,$A33,'3 Receipt itemization'!$N$26:$N$92,$Z$4) -> 0 | AA33: =SUMIFS('3 Receipt itemization'!$D$26:$D$92,'3 Receipt itemization'!$H$26:$H$92,$A33,'3 Receipt itemization'!$N$26:$N$92,$AA$4) -> 0 | AB33: =SUMIFS('3 Receipt itemization'!$D$26:$D$92,'3 Receipt itemization'!$H$26:$H$92,$A33,'3 Receipt itemization'!$N$26:$N$92,"") -> 0
A34: Cellular | B34: 835080 | E34: =SUMIF('3 Receipt itemization'!$H$26:$H$92,A34,'3 Receipt itemization'!$D$26:$D$92) -> 0 | G34: E1 | I34: =SUMIFS('3 Receipt itemization'!$D$26:$D$92,'3 Receipt itemization'!$H$26:$H$92,$A34,'3 Receipt itemization'!$N$26:$N$92,$I$4) -> 0 | J34: =SUMIFS('3 Receipt itemization'!$D$26:$D$92,'3 Receipt itemization'!$H$26:$H$92,$A34,'3 Receipt itemization'!$N$26:$N$92,$J$4) -> 0 | K34: =SUMIFS('3 Receipt itemization'!$D$26:$D$92,'3 Receipt itemization'!$H$26:$H$92,$A34,'3 Receipt itemization'!$N$26:$N$92,K$4) -> 0 | L34: =SUMIFS('3 Receipt itemization'!$D$26:$D$92,'3 Receipt itemization'!$H$26:$H$92,$A34,'3 Receipt itemization'!$N$26:$N$92,L$4) -> 0 | M34: =SUMIFS('3 Receipt itemization'!$D$26:$D$92,'3 Receipt itemization'!$H$26:$H$92,$A34,'3 Receipt itemization'!$N$26:$N$92,M$4) -> 0 | N34: =SUMIFS('3 Receipt itemization'!$D$26:$D$92,'3 Receipt itemization'!$H$26:$H$92,$A34,'3 Receipt itemization'!$N$26:$N$92,$N$4) -> 0 | O34: =SUMIFS('3 Receipt itemization'!$D$26:$D$92,'3 Receipt itemization'!$H$26:$H$92,$A34,'3 Receipt itemization'!$N$26:$N$92,$O$4) -> 0 | P34: =SUMIFS('3 Receipt itemization'!$D$26:$D$92,'3 Receipt itemization'!$H$26:$H$92,$A34,'3 Receipt itemization'!$N$26:$N$92,P$4) -> 0 | Q34: =SUMIFS('3 Receipt itemization'!$D$26:$D$92,'3 Receipt itemization'!$H$26:$H$92,$A34,'3 Receipt itemization'!$N$26:$N$92,$Q$4) -> 0 | R34: =SUMIFS('3 Receipt itemization'!$D$26:$D$92,'3 Receipt itemization'!$H$26:$H$92,$A34,'3 Receipt itemization'!$N$26:$N$92,$R$4) -> 0 | S34: =SUMIFS('3 Receipt itemization'!$D$26:$D$92,'3 Receipt itemization'!$H$26:$H$92,$A34,'3 Receipt itemization'!$N$26:$N$92,$S$4) -> 0 | T34: =SUMIFS('3 Receipt itemization'!$D$26:$D$92,'3 Receipt itemization'!$H$26:$H$92,$A34,'3 Receipt itemization'!$N$26:$N$92,$T$4) -> 0 | U34: =SUMIFS('3 Receipt itemization'!$D$26:$D$92,'3 Receipt itemization'!$H$26:$H$92,$A34,'3 Receipt itemization'!$N$26:$N$92,$U$4) -> 0 | V34: =SUMIFS('3 Receipt itemization'!$D$26:$D$92,'3 Receipt itemization'!$H$26:$H$92,$A34,'3 Receipt itemization'!$N$26:$N$92,$V$4) -> 0 | W34: =SUMIFS('3 Receipt itemization'!$D$26:$D$92,'3 Receipt itemization'!$H$26:$H$92,$A34,'3 Receipt itemization'!$N$26:$N$92,$W$4) -> 0 | X34: =SUMIFS('3 Receipt itemization'!$D$26:$D$92,'3 Receipt itemization'!$H$26:$H$92,$A34,'3 Receipt itemization'!$N$26:$N$92,$X$4) -> 0 | Y34: =SUMIFS('3 Receipt itemization'!$D$26:$D$92,'3 Receipt itemization'!$H$26:$H$92,$A34,'3 Receipt itemization'!$N$26:$N$92,$Y$4) -> 0 | Z34: =SUMIFS('3 Receipt itemization'!$D$26:$D$92,'3 Receipt itemization'!$H$26:$H$92,$A34,'3 Receipt itemization'!$N$26:$N$92,$Z$4) -> 0 | AA34: =SUMIFS('3 Receipt itemization'!$D$26:$D$92,'3 Receipt itemization'!$H$26:$H$92,$A34,'3 Receipt itemization'!$N$26:$N$92,$AA$4) -> 0 | AB34: =SUMIFS('3 Receipt itemization'!$D$26:$D$92,'3 Receipt itemization'!$H$26:$H$92,$A34,'3 Receipt itemization'!$N$26:$N$92,"") -> 0
A35: Books, Printed Materials | B35: 825600 | E35: =SUMIF('3 Receipt itemization'!$H$26:$H$92,A35,'3 Receipt itemization'!$D$26:$D$92) -> 0 | G35: E5 | I35: =SUMIFS('3 Receipt itemization'!$D$26:$D$92,'3 Receipt itemization'!$H$26:$H$92,$A35,'3 Receipt itemization'!$N$26:$N$92,$I$4) -> 0 | J35: =SUMIFS('3 Receipt itemization'!$D$26:$D$92,'3 Receipt itemization'!$H$26:$H$92,$A35,'3 Receipt itemization'!$N$26:$N$92,$J$4) -> 0 | K35: =SUMIFS('3 Receipt itemization'!$D$26:$D$92,'3 Receipt itemization'!$H$26:$H$92,$A35,'3 Receipt itemization'!$N$26:$N$92,K$4) -> 0 | L35: =SUMIFS('3 Receipt itemization'!$D$26:$D$92,'3 Receipt itemization'!$H$26:$H$92,$A35,'3 Receipt itemization'!$N$26:$N$92,L$4) -> 0 | M35: =SUMIFS('3 Receipt itemization'!$D$26:$D$92,'3 Receipt itemization'!$H$26:$H$92,$A35,'3 Receipt itemization'!$N$26:$N$92,M$4) -> 0 | N35: =SUMIFS('3 Receipt itemization'!$D$26:$D$92,'3 Receipt itemization'!$H$26:$H$92,$A35,'3 Receipt itemization'!$N$26:$N$92,$N$4) -> 0 | O35: =SUMIFS('3 Receipt itemization'!$D$26:$D$92,'3 Receipt itemization'!$H$26:$H$92,$A35,'3 Receipt itemization'!$N$26:$N$92,$O$4) -> 0 | P35: =SUMIFS('3 Receipt itemization'!$D$26:$D$92,'3 Receipt itemization'!$H$26:$H$92,$A35,'3 Receipt itemization'!$N$26:$N$92,P$4) -> 0 | Q35: =SUMIFS('3 Receipt itemization'!$D$26:$D$92,'3 Receipt itemization'!$H$26:$H$92,$A35,'3 Receipt itemization'!$N$26:$N$92,$Q$4) -> 0 | R35: =SUMIFS('3 Receipt itemization'!$D$26:$D$92,'3 Receipt itemization'!$H$26:$H$92,$A35,'3 Receipt itemization'!$N$26:$N$92,$R$4) -> 0 | S35: =SUMIFS('3 Receipt itemization'!$D$26:$D$92,'3 Receipt itemization'!$H$26:$H$92,$A35,'3 Receipt itemization'!$N$26:$N$92,$S$4) -> 0 | T35: =SUMIFS('3 Receipt itemization'!$D$26:$D$92,'3 Receipt itemization'!$H$26:$H$92,$A35,'3 Receipt itemization'!$N$26:$N$92,$T$4) -> 0 | U35: =SUMIFS('3 Receipt itemization'!$D$26:$D$92,'3 Receipt itemization'!$H$26:$H$92,$A35,'3 Receipt itemization'!$N$26:$N$92,$U$4) -> 0 | V35: =SUMIFS('3 Receipt itemization'!$D$26:$D$92,'3 Receipt itemization'!$H$26:$H$92,$A35,'3 Receipt itemization'!$N$26:$N$92,$V$4) -> 0 | W35: =SUMIFS('3 Receipt itemization'!$D$26:$D$92,'3 Receipt itemization'!$H$26:$H$92,$A35,'3 Receipt itemization'!$N$26:$N$92,$W$4) -> 0 | X35: =SUMIFS('3 Receipt itemization'!$D$26:$D$92,'3 Receipt itemization'!$H$26:$H$92,$A35,'3 Receipt itemization'!$N$26:$N$92,$X$4) -> 0 | Y35: =SUMIFS('3 Receipt itemization'!$D$26:$D$92,'3 Receipt itemization'!$H$26:$H$92,$A35,'3 Receipt itemization'!$N$26:$N$92,$Y$4) -> 0 | Z35: =SUMIFS('3 Receipt itemization'!$D$26:$D$92,'3 Receipt itemization'!$H$26:$H$92,$A35,'3 Receipt itemization'!$N$26:$N$92,$Z$4) -> 0 | AA35: =SUMIFS('3 Receipt itemization'!$D$26:$D$92,'3 Receipt itemization'!$H$26:$H$92,$A35,'3 Receipt itemization'!$N$26:$N$92,$AA$4) -> 0 | AB35: =SUMIFS('3 Receipt itemization'!$D$26:$D$92,'3 Receipt itemization'!$H$26:$H$92,$A35,'3 Receipt itemization'!$N$26:$N$92,"") -> 0
A36: Gifts | B36: 836420 | E36: =SUMIF('3 Receipt itemization'!$H$26:$H$92,A36,'3 Receipt itemization'!$D$26:$D$92) -> 0 | G36: E | I36: =SUMIFS('3 Receipt itemization'!$D$26:$D$92,'3 Receipt itemization'!$H$26:$H$92,$A36,'3 Receipt itemization'!$N$26:$N$92,$I$4) -> 0 | J36: =SUMIFS('3 Receipt itemization'!$D$26:$D$92,'3 Receipt itemization'!$H$26:$H$92,$A36,'3 Receipt itemization'!$N$26:$N$92,$J$4) -> 0 | K36: =SUMIFS('3 Receipt itemization'!$D$26:$D$92,'3 Receipt itemization'!$H$26:$H$92,$A36,'3 Receipt itemization'!$N$26:$N$92,K$4) -> 0 | L36: =SUMIFS('3 Receipt itemization'!$D$26:$D$92,'3 Receipt itemization'!$H$26:$H$92,$A36,'3 Receipt itemization'!$N$26:$N$92,L$4) -> 0 | M36: =SUMIFS('3 Receipt itemization'!$D$26:$D$92,'3 Receipt itemization'!$H$26:$H$92,$A36,'3 Receipt itemization'!$N$26:$N$92,M$4) -> 0 | N36: =SUMIFS('3 Receipt itemization'!$D$26:$D$92,'3 Receipt itemization'!$H$26:$H$92,$A36,'3 Receipt itemization'!$N$26:$N$92,$N$4) -> 0 | O36: =SUMIFS('3 Receipt itemization'!$D$26:$D$92,'3 Receipt itemization'!$H$26:$H$92,$A36,'3 Receipt itemization'!$N$26:$N$92,$O$4) -> 0 | P36: =SUMIFS('3 Receipt itemization'!$D$26:$D$92,'3 Receipt itemization'!$H$26:$H$92,$A36,'3 Receipt itemization'!$N$26:$N$92,P$4) -> 0 | Q36: =SUMIFS('3 Receipt itemization'!$D$26:$D$92,'3 Receipt itemization'!$H$26:$H$92,$A36,'3 Receipt itemization'!$N$26:$N$92,$Q$4) -> 0 | R36: =SUMIFS('3 Receipt itemization'!$D$26:$D$92,'3 Receipt itemization'!$H$26:$H$92,$A36,'3 Receipt itemization'!$N$26:$N$92,$R$4) -> 0 | S36: =SUMIFS('3 Receipt itemization'!$D$26:$D$92,'3 Receipt itemization'!$H$26:$H$92,$A36,'3 Receipt itemization'!$N$26:$N$92,$S$4) -> 0 | T36: =SUMIFS('3 Receipt itemization'!$D$26:$D$92,'3 Receipt itemization'!$H$26:$H$92,$A36,'3 Receipt itemization'!$N$26:$N$92,$T$4) -> 0 | U36: =SUMIFS('3 Receipt itemization'!$D$26:$D$92,'3 Receipt itemization'!$H$26:$H$92,$A36,'3 Receipt itemization'!$N$26:$N$92,$U$4) -> 0 | V36: =SUMIFS('3 Receipt itemization'!$D$26:$D$92,'3 Receipt itemization'!$H$26:$H$92,$A36,'3 Receipt itemization'!$N$26:$N$92,$V$4) -> 0 | W36: =SUMIFS('3 Receipt itemization'!$D$26:$D$92,'3 Receipt itemization'!$H$26:$H$92,$A36,'3 Receipt itemization'!$N$26:$N$92,$W$4) -> 0 | X36: =SUMIFS('3 Receipt itemization'!$D$26:$D$92,'3 Receipt itemization'!$H$26:$H$92,$A36,'3 Receipt itemization'!$N$26:$N$92,$X$4) -> 0 | Y36: =SUMIFS('3 Receipt itemization'!$D$26:$D$92,'3 Receipt itemization'!$H$26:$H$92,$A36,'3 Receipt itemization'!$N$26:$N$92,$Y$4) -> 0 | Z36: =SUMIFS('3 Receipt itemization'!$D$26:$D$92,'3 Receipt itemization'!$H$26:$H$92,$A36,'3 Receipt itemization'!$N$26:$N$92,$Z$4) -> 0 | AA36: =SUMIFS('3 Receipt itemization'!$D$26:$D$92,'3 Receipt itemization'!$H$26:$H$92,$A36,'3 Receipt itemization'!$N$26:$N$92,$AA$4) -> 0 | AB36: =SUMIFS('3 Receipt itemization'!$D$26:$D$92,'3 Receipt itemization'!$H$26:$H$92,$A36,'3 Receipt itemization'!$N$26:$N$92,"") -> 0
A37: Membership | B37: 837420 | E37: =SUMIF('3 Receipt itemization'!$H$26:$H$92,A37,'3 Receipt itemization'!$D$26:$D$92) -> 0 | G37: E | I37: =SUMIFS('3 Receipt itemization'!$D$26:$D$92,'3 Receipt itemization'!$H$26:$H$92,$A37,'3 Receipt itemization'!$N$26:$N$92,$I$4) -> 0 | J37: =SUMIFS('3 Receipt itemization'!$D$26:$D$92,'3 Receipt itemization'!$H$26:$H$92,$A37,'3 Receipt itemization'!$N$26:$N$92,$J$4) -> 0 | K37: =SUMIFS('3 Receipt itemization'!$D$26:$D$92,'3 Receipt itemization'!$H$26:$H$92,$A37,'3 Receipt itemization'!$N$26:$N$92,K$4) -> 0 | L37: =SUMIFS('3 Receipt itemization'!$D$26:$D$92,'3 Receipt itemization'!$H$26:$H$92,$A37,'3 Receipt itemization'!$N$26:$N$92,L$4) -> 0 | M37: =SUMIFS('3 Receipt itemization'!$D$26:$D$92,'3 Receipt itemization'!$H$26:$H$92,$A37,'3 Receipt itemization'!$N$26:$N$92,M$4) -> 0 | N37: =SUMIFS('3 Receipt itemization'!$D$26:$D$92,'3 Receipt itemization'!$H$26:$H$92,$A37,'3 Receipt itemization'!$N$26:$N$92,$N$4) -> 0 | O37: =SUMIFS('3 Receipt itemization'!$D$26:$D$92,'3 Receipt itemization'!$H$26:$H$92,$A37,'3 Receipt itemization'!$N$26:$N$92,$O$4) -> 0 | P37: =SUMIFS('3 Receipt itemization'!$D$26:$D$92,'3 Receipt itemization'!$H$26:$H$92,$A37,'3 Receipt itemization'!$N$26:$N$92,P$4) -> 0 | Q37: =SUMIFS('3 Receipt itemization'!$D$26:$D$92,'3 Receipt itemization'!$H$26:$H$92,$A37,'3 Receipt itemization'!$N$26:$N$92,$Q$4) -> 0 | R37: =SUMIFS('3 Receipt itemization'!$D$26:$D$92,'3 Receipt itemization'!$H$26:$H$92,$A37,'3 Receipt itemization'!$N$26:$N$92,$R$4) -> 0 | S37: =SUMIFS('3 Receipt itemization'!$D$26:$D$92,'3 Receipt itemization'!$H$26:$H$92,$A37,'3 Receipt itemization'!$N$26:$N$92,$S$4) -> 0 | T37: =SUMIFS('3 Receipt itemization'!$D$26:$D$92,'3 Receipt itemization'!$H$26:$H$92,$A37,'3 Receipt itemization'!$N$26:$N$92,$T$4) -> 0 | U37: =SUMIFS('3 Receipt itemization'!$D$26:$D$92,'3 Receipt itemization'!$H$26:$H$92,$A37,'3 Receipt itemization'!$N$26:$N$92,$U$4) -> 0 | V37: =SUMIFS('3 Receipt itemization'!$D$26:$D$92,'3 Receipt itemization'!$H$26:$H$92,$A37,'3 Receipt itemization'!$N$26:$N$92,$V$4) -> 0 | W37: =SUMIFS('3 Receipt itemization'!$D$26:$D$92,'3 Receipt itemization'!$H$26:$H$92,$A37,'3 Receipt itemization'!$N$26:$N$92,$W$4) -> 0 | X37: =SUMIFS('3 Receipt itemization'!$D$26:$D$92,'3 Receipt itemization'!$H$26:$H$92,$A37,'3 Receipt itemization'!$N$26:$N$92,$X$4) -> 0 | Y37: =SUMIFS('3 Receipt itemization'!$D$26:$D$92,'3 Receipt itemization'!$H$26:$H$92,$A37,'3 Receipt itemization'!$N$26:$N$92,$Y$4) -> 0 | Z37: =SUMIFS('3 Receipt itemization'!$D$26:$D$92,'3 Receipt itemization'!$H$26:$H$92,$A37,'3 Receipt itemization'!$N$26:$N$92,$Z$4) -> 0 | AA37: =SUMIFS('3 Receipt itemization'!$D$26:$D$92,'3 Receipt itemization'!$H$26:$H$92,$A37,'3 Receipt itemization'!$N$26:$N$92,$AA$4) -> 0 | AB37: =SUMIFS('3 Receipt itemization'!$D$26:$D$92,'3 Receipt itemization'!$H$26:$H$92,$A37,'3 Receipt itemization'!$N$26:$N$92,"") -> 0
A38: Subscription | B38: 825610 | E38: =SUMIF('3 Receipt itemization'!$H$26:$H$92,A38,'3 Receipt itemization'!$D$26:$D$92) -> 0 | G38: E | I38: =SUMIFS('3 Receipt itemization'!$D$26:$D$92,'3 Receipt itemization'!$H$26:$H$92,$A38,'3 Receipt itemization'!$N$26:$N$92,$I$4) -> 0 | J38: =SUMIFS('3 Receipt itemization'!$D$26:$D$92,'3 Receipt itemization'!$H$26:$H$92,$A38,'3 Receipt itemization'!$N$26:$N$92,$J$4) -> 0 | K38: =SUMIFS('3 Receipt itemization'!$D$26:$D$92,'3 Receipt itemization'!$H$26:$H$92,$A38,'3 Receipt itemization'!$N$26:$N$92,K$4) -> 0 | L38: =SUMIFS('3 Receipt itemization'!$D$26:$D$92,'3 Receipt itemization'!$H$26:$H$92,$A38,'3 Receipt itemization'!$N$26:$N$92,L$4) -> 0 | M38: =SUMIFS('3 Receipt itemization'!$D$26:$D$92,'3 Receipt itemization'!$H$26:$H$92,$A38,'3 Receipt itemization'!$N$26:$N$92,M$4) -> 0 | N38: =SUMIFS('3 Receipt itemization'!$D$26:$D$92,'3 Receipt itemization'!$H$26:$H$92,$A38,'3 Receipt itemization'!$N$26:$N$92,$N$4) -> 0 | O38: =SUMIFS('3 Receipt itemization'!$D$26:$D$92,'3 Receipt itemization'!$H$26:$H$92,$A38,'3 Receipt itemization'!$N$26:$N$92,$O$4) -> 0 | P38: =SUMIFS('3 Receipt itemization'!$D$26:$D$92,'3 Receipt itemization'!$H$26:$H$92,$A38,'3 Receipt itemization'!$N$26:$N$92,P$4) -> 0 | Q38: =SUMIFS('3 Receipt itemization'!$D$26:$D$92,'3 Receipt itemization'!$H$26:$H$92,$A38,'3 Receipt itemization'!$N$26:$N$92,$Q$4) -> 0 | R38: =SUMIFS('3 Receipt itemization'!$D$26:$D$92,'3 Receipt itemization'!$H$26:$H$92,$A38,'3 Receipt itemization'!$N$26:$N$92,$R$4) -> 0 | S38: =SUMIFS('3 Receipt itemization'!$D$26:$D$92,'3 Receipt itemization'!$H$26:$H$92,$A38,'3 Receipt itemization'!$N$26:$N$92,$S$4) -> 0 | T38: =SUMIFS('3 Receipt itemization'!$D$26:$D$92,'3 Receipt itemization'!$H$26:$H$92,$A38,'3 Receipt itemization'!$N$26:$N$92,$T$4) -> 0 | U38: =SUMIFS('3 Receipt itemization'!$D$26:$D$92,'3 Receipt itemization'!$H$26:$H$92,$A38,'3 Receipt itemization'!$N$26:$N$92,$U$4) -> 0 | V38: =SUMIFS('3 Receipt itemization'!$D$26:$D$92,'3 Receipt itemization'!$H$26:$H$92,$A38,'3 Receipt itemization'!$N$26:$N$92,$V$4) -> 0 | W38: =SUMIFS('3 Receipt itemization'!$D$26:$D$92,'3 Receipt itemization'!$H$26:$H$92,$A38,'3 Receipt itemization'!$N$26:$N$92,$W$4) -> 0 | X38: =SUMIFS('3 Receipt itemization'!$D$26:$D$92,'3 Receipt itemization'!$H$26:$H$92,$A38,'3 Receipt itemization'!$N$26:$N$92,$X$4) -> 0 | Y38: =SUMIFS('3 Receipt itemization'!$D$26:$D$92,'3 Receipt itemization'!$H$26:$H$92,$A38,'3 Receipt itemization'!$N$26:$N$92,$Y$4) -> 0 | Z38: =SUMIFS('3 Receipt itemization'!$D$26:$D$92,'3 Receipt itemization'!$H$26:$H$92,$A38,'3 Receipt itemization'!$N$26:$N$92,$Z$4) -> 0 | AA38: =SUMIFS('3 Receipt itemization'!$D$26:$D$92,'3 Receipt itemization'!$H$26:$H$92,$A38,'3 Receipt itemization'!$N$26:$N$92,$AA$4) -> 0 | AB38: =SUMIFS('3 Receipt itemization'!$D$26:$D$92,'3 Receipt itemization'!$H$26:$H$92,$A38,'3 Receipt itemization'!$N$26:$N$92,"") -> 0
A39: Supplies: OfficeSuppl (825800) / ComputerSuppl (825820) | B39: 8258 | E39: =SUMIF('3 Receipt itemization'!$H$26:$H$92,A39,'3 Receipt itemization'!$D$26:$D$92) -> 0 | G39: E | I39: =SUMIFS('3 Receipt itemization'!$D$26:$D$92,'3 Receipt itemization'!$H$26:$H$92,$A39,'3 Receipt itemization'!$N$26:$N$92,$I$4) -> 0 | J39: =SUMIFS('3 Receipt itemization'!$D$26:$D$92,'3 Receipt itemization'!$H$26:$H$92,$A39,'3 Receipt itemization'!$N$26:$N$92,$J$4) -> 0 | K39: =SUMIFS('3 Receipt itemization'!$D$26:$D$92,'3 Receipt itemization'!$H$26:$H$92,$A39,'3 Receipt itemization'!$N$26:$N$92,K$4) -> 0 | L39: =SUMIFS('3 Receipt itemization'!$D$26:$D$92,'3 Receipt itemization'!$H$26:$H$92,$A39,'3 Receipt itemization'!$N$26:$N$92,L$4) -> 0 | M39: =SUMIFS('3 Receipt itemization'!$D$26:$D$92,'3 Receipt itemization'!$H$26:$H$92,$A39,'3 Receipt itemization'!$N$26:$N$92,M$4) -> 0 | N39: =SUMIFS('3 Receipt itemization'!$D$26:$D$92,'3 Receipt itemization'!$H$26:$H$92,$A39,'3 Receipt itemization'!$N$26:$N$92,$N$4) -> 0 | O39: =SUMIFS('3 Receipt itemization'!$D$26:$D$92,'3 Receipt itemization'!$H$26:$H$92,$A39,'3 Receipt itemization'!$N$26:$N$92,$O$4) -> 0 | P39: =SUMIFS('3 Receipt itemization'!$D$26:$D$92,'3 Receipt itemization'!$H$26:$H$92,$A39,'3 Receipt itemization'!$N$26:$N$92,P$4) -> 0 | Q39: =SUMIFS('3 Receipt itemization'!$D$26:$D$92,'3 Receipt itemization'!$H$26:$H$92,$A39,'3 Receipt itemization'!$N$26:$N$92,$Q$4) -> 0 | R39: =SUMIFS('3 Receipt itemization'!$D$26:$D$92,'3 Receipt itemization'!$H$26:$H$92,$A39,'3 Receipt itemization'!$N$26:$N$92,$R$4) -> 0 | S39: =SUMIFS('3 Receipt itemization'!$D$26:$D$92,'3 Receipt itemization'!$H$26:$H$92,$A39,'3 Receipt itemization'!$N$26:$N$92,$S$4) -> 0 | T39: =SUMIFS('3 Receipt itemization'!$D$26:$D$92,'3 Receipt itemization'!$H$26:$H$92,$A39,'3 Receipt itemization'!$N$26:$N$92,$T$4) -> 0 | U39: =SUMIFS('3 Receipt itemization'!$D$26:$D$92,'3 Receipt itemization'!$H$26:$H$92,$A39,'3 Receipt itemization'!$N$26:$N$92,$U$4) -> 0 | V39: =SUMIFS('3 Receipt itemization'!$D$26:$D$92,'3 Receipt itemization'!$H$26:$H$92,$A39,'3 Receipt itemization'!$N$26:$N$92,$V$4) -> 0 | W39: =SUMIFS('3 Receipt itemization'!$D$26:$D$92,'3 Receipt itemization'!$H$26:$H$92,$A39,'3 Receipt itemization'!$N$26:$N$92,$W$4) -> 0 | X39: =SUMIFS('3 Receipt itemization'!$D$26:$D$92,'3 Receipt itemization'!$H$26:$H$92,$A39,'3 Receipt itemization'!$N$26:$N$92,$X$4) -> 0 | Y39: =SUMIFS('3 Receipt itemization'!$D$26:$D$92,'3 Receipt itemization'!$H$26:$H$92,$A39,'3 Receipt itemization'!$N$26:$N$92,$Y$4) -> 0 | Z39: =SUMIFS('3 Receipt itemization'!$D$26:$D$92,'3 Receipt itemization'!$H$26:$H$92,$A39,'3 Receipt itemization'!$N$26:$N$92,$Z$4) -> 0 | AA39: =SUMIFS('3 Receipt itemization'!$D$26:$D$92,'3 Receipt itemization'!$H$26:$H$92,$A39,'3 Receipt itemization'!$N$26:$N$92,$AA$4) -> 0 | AB39: =SUMIFS('3 Receipt itemization'!$D$26:$D$92,'3 Receipt itemization'!$H$26:$H$92,$A39,'3 Receipt itemization'!$N$26:$N$92,"") -> 0
A40: Other1 | B40: 8_____ | E40: =SUMIF('3 Receipt itemization'!$H$26:$H$92,A40,'3 Receipt itemization'!$D$26:$D$92) -> 0 | G40: E | I40: =SUMIFS('3 Receipt itemization'!$D$26:$D$92,'3 Receipt itemization'!$H$26:$H$92,$A40,'3 Receipt itemization'!$N$26:$N$92,$I$4) -> 0 | J40: =SUMIFS('3 Receipt itemization'!$D$26:$D$92,'3 Receipt itemization'!$H$26:$H$92,$A40,'3 Receipt itemization'!$N$26:$N$92,$J$4) -> 0 | K40: =SUMIFS('3 Receipt itemization'!$D$26:$D$92,'3 Receipt itemization'!$H$26:$H$92,$A40,'3 Receipt itemization'!$N$26:$N$92,K$4) -> 0 | L40: =SUMIFS('3 Receipt itemization'!$D$26:$D$92,'3 Receipt itemization'!$H$26:$H$92,$A40,'3 Receipt itemization'!$N$26:$N$92,L$4) -> 0 | M40: =SUMIFS('3 Receipt itemization'!$D$26:$D$92,'3 Receipt itemization'!$H$26:$H$92,$A40,'3 Receipt itemization'!$N$26:$N$92,M$4) -> 0 | N40: =SUMIFS('3 Receipt itemization'!$D$26:$D$92,'3 Receipt itemization'!$H$26:$H$92,$A40,'3 Receipt itemization'!$N$26:$N$92,$N$4) -> 0 | O40: =SUMIFS('3 Receipt itemization'!$D$26:$D$92,'3 Receipt itemization'!$H$26:$H$92,$A40,'3 Receipt itemization'!$N$26:$N$92,$O$4) -> 0 | P40: =SUMIFS('3 Receipt itemization'!$D$26:$D$92,'3 Receipt itemization'!$H$26:$H$92,$A40,'3 Receipt itemization'!$N$26:$N$92,P$4) -> 0 | Q40: =SUMIFS('3 Receipt itemization'!$D$26:$D$92,'3 Receipt itemization'!$H$26:$H$92,$A40,'3 Receipt itemization'!$N$26:$N$92,$Q$4) -> 0 | R40: =SUMIFS('3 Receipt itemization'!$D$26:$D$92,'3 Receipt itemization'!$H$26:$H$92,$A40,'3 Receipt itemization'!$N$26:$N$92,$R$4) -> 0 | S40: =SUMIFS('3 Receipt itemization'!$D$26:$D$92,'3 Receipt itemization'!$H$26:$H$92,$A40,'3 Receipt itemization'!$N$26:$N$92,$S$4) -> 0 | T40: =SUMIFS('3 Receipt itemization'!$D$26:$D$92,'3 Receipt itemization'!$H$26:$H$92,$A40,'3 Receipt itemization'!$N$26:$N$92,$T$4) -> 0 | U40: =SUMIFS('3 Receipt itemization'!$D$26:$D$92,'3 Receipt itemization'!$H$26:$H$92,$A40,'3 Receipt itemization'!$N$26:$N$92,$U$4) -> 0 | V40: =SUMIFS('3 Receipt itemization'!$D$26:$D$92,'3 Receipt itemization'!$H$26:$H$92,$A40,'3 Receipt itemization'!$N$26:$N$92,$V$4) -> 0 | W40: =SUMIFS('3 Receipt itemization'!$D$26:$D$92,'3 Receipt itemization'!$H$26:$H$92,$A40,'3 Receipt itemization'!$N$26:$N$92,$W$4) -> 0 | X40: =SUMIFS('3 Receipt itemization'!$D$26:$D$92,'3 Receipt itemization'!$H$26:$H$92,$A40,'3 Receipt itemization'!$N$26:$N$92,$X$4) -> 0 | Y40: =SUMIFS('3 Receipt itemization'!$D$26:$D$92,'3 Receipt itemization'!$H$26:$H$92,$A40,'3 Receipt itemization'!$N$26:$N$92,$Y$4) -> 0 | Z40: =SUMIFS('3 Receipt itemization'!$D$26:$D$92,'3 Receipt itemization'!$H$26:$H$92,$A40,'3 Receipt itemization'!$N$26:$N$92,$Z$4) -> 0 | AA40: =SUMIFS('3 Receipt itemization'!$D$26:$D$92,'3 Receipt itemization'!$H$26:$H$92,$A40,'3 Receipt itemization'!$N$26:$N$92,$AA$4) -> 0 | AB40: =SUMIFS('3 Receipt itemization'!$D$26:$D$92,'3 Receipt itemization'!$H$26:$H$92,$A40,'3 Receipt itemization'!$N$26:$N$92,"") -> 0
A41: Other2 | B41: 8_____ | E41: =SUMIF('3 Receipt itemization'!$H$26:$H$92,A41,'3 Receipt itemization'!$D$26:$D$92) -> 0 | G41: E | I41: =SUMIFS('3 Receipt itemization'!$D$26:$D$92,'3 Receipt itemization'!$H$26:$H$92,$A41,'3 Receipt itemization'!$N$26:$N$92,$I$4) -> 0 | J41: =SUMIFS('3 Receipt itemization'!$D$26:$D$92,'3 Receipt itemization'!$H$26:$H$92,$A41,'3 Receipt itemization'!$N$26:$N$92,$J$4) -> 0 | K41: =SUMIFS('3 Receipt itemization'!$D$26:$D$92,'3 Receipt itemization'!$H$26:$H$92,$A41,'3 Receipt itemization'!$N$26:$N$92,K$4) -> 0 | L41: =SUMIFS('3 Receipt itemization'!$D$26:$D$92,'3 Receipt itemization'!$H$26:$H$92,$A41,'3 Receipt itemization'!$N$26:$N$92,L$4) -> 0 | M41: =SUMIFS('3 Receipt itemization'!$D$26:$D$92,'3 Receipt itemization'!$H$26:$H$92,$A41,'3 Receipt itemization'!$N$26:$N$92,M$4) -> 0 | N41: =SUMIFS('3 Receipt itemization'!$D$26:$D$92,'3 Receipt itemization'!$H$26:$H$92,$A41,'3 Receipt itemization'!$N$26:$N$92,$N$4) -> 0 | O41: =SUMIFS('3 Receipt itemization'!$D$26:$D$92,'3 Receipt itemization'!$H$26:$H$92,$A41,'3 Receipt itemization'!$N$26:$N$92,$O$4) -> 0 | P41: =SUMIFS('3 Receipt itemization'!$D$26:$D$92,'3 Receipt itemization'!$H$26:$H$92,$A41,'3 Receipt itemization'!$N$26:$N$92,P$4) -> 0 | Q41: =SUMIFS('3 Receipt itemization'!$D$26:$D$92,'3 Receipt itemization'!$H$26:$H$92,$A41,'3 Receipt itemization'!$N$26:$N$92,$Q$4) -> 0 | R41: =SUMIFS('3 Receipt itemization'!$D$26:$D$92,'3 Receipt itemization'!$H$26:$H$92,$A41,'3 Receipt itemization'!$N$26:$N$92,$R$4) -> 0 | S41: =SUMIFS('3 Receipt itemization'!$D$26:$D$92,'3 Receipt itemization'!$H$26:$H$92,$A41,'3 Receipt itemization'!$N$26:$N$92,$S$4) -> 0 | T41: =SUMIFS('3 Receipt itemization'!$D$26:$D$92,'3 Receipt itemization'!$H$26:$H$92,$A41,'3 Receipt itemization'!$N$26:$N$92,$T$4) -> 0 | U41: =SUMIFS('3 Receipt itemization'!$D$26:$D$92,'3 Receipt itemization'!$H$26:$H$92,$A41,'3 Receipt itemization'!$N$26:$N$92,$U$4) -> 0 | V41: =SUMIFS('3 Receipt itemization'!$D$26:$D$92,'3 Receipt itemization'!$H$26:$H$92,$A41,'3 Receipt itemization'!$N$26:$N$92,$V$4) -> 0 | W41: =SUMIFS('3 Receipt itemization'!$D$26:$D$92,'3 Receipt itemization'!$H$26:$H$92,$A41,'3 Receipt itemization'!$N$26:$N$92,$W$4) -> 0 | X41: =SUMIFS('3 Receipt itemization'!$D$26:$D$92,'3 Receipt itemization'!$H$26:$H$92,$A41,'3 Receipt itemization'!$N$26:$N$92,$X$4) -> 0 | Y41: =SUMIFS('3 Receipt itemization'!$D$26:$D$92,'3 Receipt itemization'!$H$26:$H$92,$A41,'3 Receipt itemization'!$N$26:$N$92,$Y$4) -> 0 | Z41: =SUMIFS('3 Receipt itemization'!$D$26:$D$92,'3 Receipt itemization'!$H$26:$H$92,$A41,'3 Receipt itemization'!$N$26:$N$92,$Z$4) -> 0 | AA41: =SUMIFS('3 Receipt itemization'!$D$26:$D$92,'3 Receipt itemization'!$H$26:$H$92,$A41,'3 Receipt itemization'!$N$26:$N$92,$AA$4) -> 0 | AB41: =SUMIFS('3 Receipt itemization'!$D$26:$D$92,'3 Receipt itemization'!$H$26:$H$92,$A41,'3 Receipt itemization'!$N$26:$N$92,"") -> 0
A42: Sponsors | B42: 835000 | E42: =SUMIF('3 Receipt itemization'!$H$26:$H$92,A42,'3 Receipt itemization'!$D$26:$D$92) -> 0 | G42: E0 | I42: =SUMIFS('3 Receipt itemization'!$D$26:$D$92,'3 Receipt itemization'!$H$26:$H$92,$A42,'3 Receipt itemization'!$N$26:$N$92,$I$4) -> 0 | J42: =SUMIFS('3 Receipt itemization'!$D$26:$D$92,'3 Receipt itemization'!$H$26:$H$92,$A42,'3 Receipt itemization'!$N$26:$N$92,$J$4) -> 0 | K42: =SUMIFS('3 Receipt itemization'!$D$26:$D$92,'3 Receipt itemization'!$H$26:$H$92,$A42,'3 Receipt itemization'!$N$26:$N$92,K$4) -> 0 | L42: =SUMIFS('3 Receipt itemization'!$D$26:$D$92,'3 Receipt itemization'!$H$26:$H$92,$A42,'3 Receipt itemization'!$N$26:$N$92,L$4) -> 0 | M42: =SUMIFS('3 Receipt itemization'!$D$26:$D$92,'3 Receipt itemization'!$H$26:$H$92,$A42,'3 Receipt itemization'!$N$26:$N$92,M$4) -> 0 | N42: =SUMIFS('3 Receipt itemization'!$D$26:$D$92,'3 Receipt itemization'!$H$26:$H$92,$A42,'3 Receipt itemization'!$N$26:$N$92,$N$4) -> 0 | O42: =SUMIFS('3 Receipt itemization'!$D$26:$D$92,'3 Receipt itemization'!$H$26:$H$92,$A42,'3 Receipt itemization'!$N$26:$N$92,$O$4) -> 0 | P42: =SUMIFS('3 Receipt itemization'!$D$26:$D$92,'3 Receipt itemization'!$H$26:$H$92,$A42,'3 Receipt itemization'!$N$26:$N$92,P$4) -> 0 | Q42: =SUMIFS('3 Receipt itemization'!$D$26:$D$92,'3 Receipt itemization'!$H$26:$H$92,$A42,'3 Receipt itemization'!$N$26:$N$92,$Q$4) -> 0 | R42: =SUMIFS('3 Receipt itemization'!$D$26:$D$92,'3 Receipt itemization'!$H$26:$H$92,$A42,'3 Receipt itemization'!$N$26:$N$92,$R$4) -> 0 | S42: =SUMIFS('3 Receipt itemization'!$D$26:$D$92,'3 Receipt itemization'!$H$26:$H$92,$A42,'3 Receipt itemization'!$N$26:$N$92,$S$4) -> 0 | T42: =SUMIFS('3 Receipt itemization'!$D$26:$D$92,'3 Receipt itemization'!$H$26:$H$92,$A42,'3 Receipt itemization'!$N$26:$N$92,$T$4) -> 0 | U42: =SUMIFS('3 Receipt itemization'!$D$26:$D$92,'3 Receipt itemization'!$H$26:$H$92,$A42,'3 Receipt itemization'!$N$26:$N$92,$U$4) -> 0 | V42: =SUMIFS('3 Receipt itemization'!$D$26:$D$92,'3 Receipt itemization'!$H$26:$H$92,$A42,'3 Receipt itemization'!$N$26:$N$92,$V$4) -> 0 | W42: =SUMIFS('3 Receipt itemization'!$D$26:$D$92,'3 Receipt itemization'!$H$26:$H$92,$A42,'3 Receipt itemization'!$N$26:$N$92,$W$4) -> 0 | X42: =SUMIFS('3 Receipt itemization'!$D$26:$D$92,'3 Receipt itemization'!$H$26:$H$92,$A42,'3 Receipt itemization'!$N$26:$N$92,$X$4) -> 0 | Y42: =SUMIFS('3 Receipt itemization'!$D$26:$D$92,'3 Receipt itemization'!$H$26:$H$92,$A42,'3 Receipt itemization'!$N$26:$N$92,$Y$4) -> 0 | Z42: =SUMIFS('3 Receipt itemization'!$D$26:$D$92,'3 Receipt itemization'!$H$26:$H$92,$A42,'3 Receipt itemization'!$N$26:$N$92,$Z$4) -> 0 | AA42: =SUMIFS('3 Receipt itemization'!$D$26:$D$92,'3 Receipt itemization'!$H$26:$H$92,$A42,'3 Receipt itemization'!$N$26:$N$92,$AA$4) -> 0 | AB42: =SUMIFS('3 Receipt itemization'!$D$26:$D$92,'3 Receipt itemization'!$H$26:$H$92,$A42,'3 Receipt itemization'!$N$26:$N$92,"") -> 0
B43: total | E43: =SUM(E5:E42) -> 0 | I43: =SUM(I5:I42) -> 0 | J43: 0 | K43: =SUM(K5:K42) -> 0 | L43: =SUM(L5:L42) -> 0 | M43: 0 | N43: 0 | O43: 0 | P43: 0 | Q43: 0 | R43: 0 | S43: 0 | T43: 0 | U43: 0 | V43: 0 | W43: 0 | X43: 0 | Y43: 0 | Z43: 0 | AA43: 0 | AB43: 0
B45: check diff | E45: =E43-SUM(I43:AB43) -> 0
A47: If required, change the GL account details entered on rows 31 to 39 (columns A, B, G) for the GLs most frequently used within your division/dept.
A49: https://finance.utoronto.ca/faqs/hst/?highlight=fis%20hst%20tax%20codes
A51: when to use software GL 825200 vs 825201
A52: https://finance.utoronto.ca/knowledgecentre/what-gl-account-should-you-use-when-purchasing-computer-software/

Sheet FIS accounts
B1: Enter FIS accounts for your specific areas in COLUMN A
B4: i.e. 1xxxx / 1xxxxx FAS
B5: xxxxx / 2xxxxx Research: J.Doe
B6: [LIST UP TO A MAX OF 19 ACCOUNTS]

Sheet GTFM notes (hidden)
B1: Click to review the Guide to Financial Management: Travel and Other Reimbursable Expenses – Policies and Guidelines
A3: The purpose and relevance to University business of each expenditure must be clearly documented such that the purpose could be reasonably understood by an outside party.
A4: All expense claims should be submitted for reimbursement on a timely basis, and it would be unreasonable to expect reimbursement after more than one year after the related expenses have been incurred.
A5: Original detailed receipts and proof of payment must accompany the expense report. If you are missing reciepts, please complete the Missing Receipts Form.
A6: Please note that receipts are very important for income tax purposes. The Canada Revenue Agency considers all amounts paid to individuals without receipts to be income to the individual and, therefore, taxable.
B8: goto BOC rates | C8: Foreign Currency: If expenditures are in another currency, and is charged to a credit card, attach a copy of the credit card summary showing the conversion. For cash payments, use the rate paid when the foreign currency was purchased. If this is not provided, use FIS or Bank of Canada rates. Ensure a copy of the conversion rate is printed and attached to the expense report. www.bankofcanada.ca/rates/exchange/daily-exchange-rates-lookup
A10: Below are excerpts from the GTFM, click on the links below to view the full details in the GTFM
B11: Airfare: | C11: For domestic and international flights, the standard class of service is the least expensive economy class fare. Prior Approval is required for all business class and premium economy travel Ensure to include a copy of the pre-approval with your expense report. The lack of availability of economy seats due to late travel arrangements which could reasonably have been avoided through better planning would generally not be viewed as adequate justification for Business Class or Premium Economy travel. Requests for long flight segments (i.e. greater than 6 hours in duration) are to be submitted in writing to the one-up approver (head of the unit, principal, dean, director, chair or senior executive) who will provide written approval prior to booking travel. Examples of circumstances that may justify travelling in Business Class or Premium Economy could include: • physical constraints on a long flight segment (in excess of 6 hours), or • medical reasons which preclude travelling in economy. Caution: Some granting agencies, such as the Tri-Agencies, specifically limit air and rail travel reimbursement to the lowest available fare.
B13: Hotel: | C13: The standard for accommodation is a single room with a private bath in a business class hotel. Use of luxury accommodation will not be reimbursed. Receipt requirement: If the accommodation is booked through a third party booking site (like Expedia), then the order confirmation from the third party booking site showing credit card payment and travel dates, including a statement of guest charges or hotel bill with travel dates from the host establishment for other charges (or a hotel bill with travel dates where there were no other charges, if provided) should accompany the reimbursement request. Meals/refreshments charged to hotel bill: if meals are charged to the hotel room, include the detailed restaurant invoice along with the hotel invoice.
B15: Hospitality / Alcohol: | C15: Hospitality in Toronto: Reasonable costs of meals or hospitality, when providing for a specific business purpose, are reimbursable. Such hospitality might include social, athletic, and cultural events. There must be clear documentation as to the business purpose of the hospitality (e.g. taking out a guest lecturer for a meal, or interviewing a potential faculty member), noting the names of the individuals, or the group, involved. - For regular in-house meetings between University employees, no alcohol is permitted - Alcohol may be provided at special social events such as holiday lunches, holiday parties, retirement parties and other social events; ensure to include details. Please review the GTFM for more details.
B17: Cell: | C17: Reasonable measures should be taken to reduce or minimize any business-related cell/smart phone roaming and tethering charges when travelling on University business. If these charges are considered excessive, they may not be allowable expenses.
C18: Please see the memo dated April 1, 2013
